{"text_format":"1","workbook":"xlsx","n_sheets":2,"sheets":["game","data"],"not_rendered":{"charts":1,"images":0,"macros":1,"external_links":0,"defined_names":0,"comments":0,"pivot_tables":0},"unopened":[],"bounds":{"document_bytes":16777216,"sheet_cells":100000,"rows_first":2000,"rows_last":500,"rows_between":2000,"halvings":0,"cell_chars":16384,"cell_head_chars":4096},"cells_cut":0,"cells_raw":0,"read":"whole","date_system":"1900"}

{"sheet":"game","index":0,"n_rows":32,"n_cols":31,"rows_kept":32,"cut":false,"hidden":false,"merged":[[3,15,3,25],[2,28,2,31],[2,15,2,26],[5,27,5,28],[5,15,5,25],[4,3,4,13],[5,3,5,13],[6,3,6,13],[6,15,6,25],[4,15,4,26],[0,0,0,4],[2,0,2,1],[2,3,2,13],[3,3,3,13],[3,0,9,1],[31,15,31,18],[30,19,30,22],[31,19,31,22],[10,14,10,30],[7,3,7,13],[8,3,8,5],[8,6,8,8],[11,9,11,11],[11,3,11,5],[11,6,11,7],[30,15,30,18]]}
["משחק: מכפלת זוג או פרט",null,null,null,null,"במקרה שנפתח סרגל צהוב בראש הגיליון, יש ללחוץ \"Enable Content\""]
[]
["שלב א",null,null,"שלב ב",null,null,null,null,null,null,null,null,null,null,null,"שלב ג",null,null,null,null,null,null,null,null,null,null,null,null,"משימה"]
["בנו שתי \"קוביות\" כרצונכם: בכל \"קובייה\" ניתן לרשום עד 16 מספרים (כמות המספרים על שתי \"הקוביות\" יכולה להיות שונה). ",null,null,"שחקו במשחק עם הקוביות שבניתם. ",null,null,null,null,null,null,null,null,null,null,null,"לפניכם לוח כפל לניתוח המשחק. ",null,null,null,null,null,null,null,null,null,null,null,null,"בנו משחק הוגן."]
[null,null,null,"מחליטים על שמות: שחקן אחד יכונה השחקן הזוגי, והאחר יכונה השחקן האי-זוגי",null,null,null,null,null,null,null,null,null,null,null,"ז - מכפלה זוגית, פ (פרט) - מכפלה אי-זוגית"]
[null,null,null,"בכל סיבוב, מטילים את שתי הקוביות באמצעות לחיצה על כפתור  \"הטלה\"\n\n",null,null,null,null,null,null,null,null,null,null,null,"האם המשחק שבניתם הוא הוגן? "]
[null,null,null,"אם המכפלה היא מספר זוגי, השחקן הזוגי מקבל נקודה, ",null,null,null,null,null,null,null,null,null,null,null,"השוו את מסקנתכם עם השערתכם."]
[null,null,null,"אם המכפלה היא מספר אי-זוגי, השחקן האי-זוגי מקבל נקודה"]
[null,null,null,"עקבו אחר רישום תוצאות המכפלה.",null,null,"האם המשחק הוגן?"]
[]
[]
["קובייה א","קובייה ב",null,"תוצאות הטלות",null,null,"ניקוד מצטבר",null,null,null,null,null,null,null,"´",{"$f":"IF(ISBLANK($B13),\"\",$B13)","v":""},{"$f":"IF(ISBLANK($B14),\"\",$B14)","v":""},{"$f":"IF(ISBLANK($B15),\"\",$B15)","v":""},{"$f":"IF(ISBLANK($B16),\"\",$B16)","v":""},{"$f":"IF(ISBLANK($B17),\"\",$B17)","v":""},{"$f":"IF(ISBLANK($B18),\"\",$B18)","v":""},{"$f":"IF(ISBLANK($B19),\"\",$B19)","v":""},{"$f":"IF(ISBLANK($B20),\"\",$B20)","v":""},{"$f":"IF(ISBLANK($B21),\"\",$B21)","v":""},{"$f":"IF(ISBLANK($B22),\"\",$B22)","v":""},{"$f":"IF(ISBLANK($B23),\"\",$B23)","v":""},{"$f":"IF(ISBLANK($B24),\"\",$B24)","v":""},{"$f":"IF(ISBLANK($B25),\"\",$B25)","v":""},{"$f":"IF(ISBLANK($B26),\"\",$B26)","v":""},{"$f":"IF(ISBLANK($B27),\"\",$B27)","v":""},{"$f":"IF(ISBLANK($B28),\"\",$B28)","v":""}]
[null,null,null,"קובייה א","קובייה ב","מכפלה","שחקן זוגי","שחקן אי-זוגי",null,null,null,null,null,null,{"$f":"IF(ISBLANK(A13),\"\",A13)","v":""},{"$f":"IF(OR(ISBLANK($A13),ISBLANK($B$13)),\"\",IF(MOD($A13*$B$13,2)=0,\"ז\",\" פ\"))","v":""},{"$f":"IF(OR(ISBLANK($A13),ISBLANK($B$14)),\"\",IF(MOD($A13*$B$14,2)=0,\"ז\",\"פ\"))","v":""},{"$f":"IF(OR(ISBLANK($A13),ISBLANK($B$15)),\"\",IF(MOD($A13*$B$15,2)=0,\"ז\",\"פ\"))","v":""},{"$f":"IF(OR(ISBLANK($A13),ISBLANK($B$16)),\"\",IF(MOD($A13*$B$16,2)=0,\"ז\",\"פ\"))","v":""},{"$f":"IF(OR(ISBLANK($A13),ISBLANK($B$17)),\"\",IF(MOD($A13*$B$17,2)=0,\"ז\",\"פ\"))","v":""},{"$f":"IF(OR(ISBLANK($A13),ISBLANK($B$18)),\"\",IF(MOD($A13*$B$18,2)=0,\"ז\",\" פ\"))","v":""},{"$f":"IF(OR(ISBLANK($A13),ISBLANK($B$19)),\"\",IF(MOD($A13*$B$19,2)=0,\"ז\",\"פ\"))","v":""},{"$f":"IF(OR(ISBLANK($A13),ISBLANK($B$20)),\"\",IF(MOD($A13*$B$20,2)=0,\"ז\",\"פ\"))","v":""},{"$f":"IF(OR(ISBLANK($A13),ISBLANK($B$21)),\"\",IF(MOD($A13*$B$21,2)=0,\"ז\",\"פ\"))","v":""},{"$f":"IF(OR(ISBLANK($A13),ISBLANK($B$22)),\"\",IF(MOD($A13*$B$22,2)=0,\"ז\",\" פ\"))","v":""},{"$f":"IF(OR(ISBLANK($A13),ISBLANK($B$23)),\"\",IF(MOD($A13*$B$23,2)=0,\"ז\",\"פ\"))","v":""},{"$f":"IF(OR(ISBLANK($A13),ISBLANK($B$24)),\"\",IF(MOD($A13*$B$24,2)=0,\"ז\",\"פ\"))","v":""},{"$f":"IF(OR(ISBLANK($A13),ISBLANK($B$25)),\"\",IF(MOD($A13*$B$25,2)=0,\"ז\",\"פ\"))","v":""},{"$f":"IF(OR(ISBLANK($A13),ISBLANK($B$26)),\"\",IF(MOD($A13*$B$26,2)=0,\"ז\",\"פ\"))","v":""},{"$f":"IF(OR(ISBLANK($A13),ISBLANK($B$27)),\"\",IF(MOD($A13*$B$27,2)=0,\"ז\",\"פ\"))","v":""},{"$f":"IF(OR(ISBLANK($A13),ISBLANK($B$28)),\"\",IF(MOD($A13*$B$28,2)=0,\"ז\",\"פ\"))","v":""}]
[null,null,null,null,null,null,null,null,null,null,null,null,null,null,"",{"$f":"IF(OR(ISBLANK($A14),ISBLANK($B$13)),\"\",IF(MOD($A14*$B$13,2)=0,\"ז\",\" פ\"))","v":""},{"$f":"IF(OR(ISBLANK($A14),ISBLANK($B$14)),\"\",IF(MOD($A14*$B$14,2)=0,\"ז\",\"פ\"))","v":""},{"$f":"IF(OR(ISBLANK($A14),ISBLANK($B$15)),\"\",IF(MOD($A14*$B$15,2)=0,\"ז\",\"פ\"))","v":""},{"$f":"IF(OR(ISBLANK($A14),ISBLANK($B$16)),\"\",IF(MOD($A14*$B$16,2)=0,\"ז\",\"פ\"))","v":""},{"$f":"IF(OR(ISBLANK($A14),ISBLANK($B$17)),\"\",IF(MOD($A14*$B$17,2)=0,\"ז\",\"פ\"))","v":""},{"$f":"IF(OR(ISBLANK($A14),ISBLANK($B$18)),\"\",IF(MOD($A14*$B$18,2)=0,\"ז\",\" פ\"))","v":""},{"$f":"IF(OR(ISBLANK($A14),ISBLANK($B$19)),\"\",IF(MOD($A14*$B$19,2)=0,\"ז\",\"פ\"))","v":""},{"$f":"IF(OR(ISBLANK($A14),ISBLANK($B$20)),\"\",IF(MOD($A14*$B$20,2)=0,\"ז\",\"פ\"))","v":""},{"$f":"IF(OR(ISBLANK($A14),ISBLANK($B$21)),\"\",IF(MOD($A14*$B$21,2)=0,\"ז\",\"פ\"))","v":""},{"$f":"IF(OR(ISBLANK($A14),ISBLANK($B$22)),\"\",IF(MOD($A14*$B$22,2)=0,\"ז\",\" פ\"))","v":""},{"$f":"IF(OR(ISBLANK($A14),ISBLANK($B$23)),\"\",IF(MOD($A14*$B$23,2)=0,\"ז\",\"פ\"))","v":""},{"$f":"IF(OR(ISBLANK($A14),ISBLANK($B$24)),\"\",IF(MOD($A14*$B$24,2)=0,\"ז\",\"פ\"))","v":""},{"$f":"IF(OR(ISBLANK($A14),ISBLANK($B$25)),\"\",IF(MOD($A14*$B$25,2)=0,\"ז\",\"פ\"))","v":""},{"$f":"IF(OR(ISBLANK($A14),ISBLANK($B$26)),\"\",IF(MOD($A14*$B$26,2)=0,\"ז\",\"פ\"))","v":""},{"$f":"IF(OR(ISBLANK($A14),ISBLANK($B$27)),\"\",IF(MOD($A14*$B$27,2)=0,\"ז\",\"פ\"))","v":""},{"$f":"IF(OR(ISBLANK($A14),ISBLANK($B$28)),\"\",IF(MOD($A14*$B$28,2)=0,\"ז\",\"פ\"))","v":""}]
[null,null,null,null,null,null,null,null,null,null,null,null,null,null,"","","","","","","","","","","","","","","","",""]
[null,null,null,null,null,null,null,null,null,null,null,null,null,null,"","","","","","","","","","","","","","","","",""]
[null,null,null,null,null,null,null,null,null,null,null,null,null,null,"","","","","","","","","","","","","","","","",""]
[null,null,null,null,null,null,null,null,null,null,null,null,null,null,"","","","","","","","","","","","","","","","",""]
[null,null,null,null,null,null,null,null,null,null,null,null,null,null,"","","","","","","","","","","","","","","","",""]
[null,null,null,null,null,null,null,null,null,null,null,null,null,null,"","","","","","","","","","","","","","","","",""]
[null,null,null,null,null,null,null,null,null,null,null,null,null,null,"","","","","","","","","","","","","","","","",""]
[null,null,null,null,null,null,null,null,null,null,null,null,null,null,"","","","","","","","","","","","","","","","",""]
[null,null,null,null,null,null,null,null,null,null,null,null,null,null,"","","","","","","","","","","","","","","","",""]
[null,null,null,null,null,null,null,null,null,null,null,null,null,null,"","","","","","","","","","","","","","","","",""]
[null,null,null,null,null,null,null,null,null,null,null,null,null,null,"","","","","","","","","","","","","","","","",""]
[null,null,null,null,null,null,null,null,null,null,null,null,null,null,{"$f":"IF(ISBLANK(A26),\"\",A26)","v":""},"","","","","","","","","","","","","","","",""]
[null,null,null,null,null,null,null,null,null,null,null,null,null,null,"","","","","","","","","","","","","","","","",""]
[null,null,null,null,null,null,null,null,null,null,null,null,null,null,"","","","","","","","","","","","","","","","",""]
[]
[]
[null,null,null,null,null,null,null,null,null,null,null,null,null,null,null,"תוצאות זוגיות",null,null,null,"תוצאות אי-זוגיות"]
[null,null,null,null,null,null,null,null,null,null,null,null,null,null,null,{"$f":"COUNTIF(data!N3:AB18,0)","v":0},null,null,null,{"$f":"COUNTIF(data!N3:AB18,1)","v":0}]

{"sheet":"data","index":1,"n_rows":1650,"n_cols":29,"rows_kept":1650,"cut":false,"hidden":false,"merged":[[1,5,1,7]]}
[null,null,null,null,null,null,null,"מכפלות",{"$f":"IF(ISBLANK(game!F14),\"\",MOD(game!F14,2))","v":""},"זוגי","אי-זוגי"]
["range A",{"$f":"IF(ISBLANK(game!A13),0,IF(ISBLANK(game!A14),1,IF(ISBLANK(game!A15),2,IF(ISBLANK(game!A16),3,IF(ISBLANK(game!A17),4,IF(ISBLANK(game!A18),5,IF(ISBLANK(game!A19),6,IF(ISBLANK(game!A20),7,IF(ISBLANK(game!A21),8,IF(ISBLANK(game!A22),9,IF(ISBLANK(game!A23),10,IF(ISBLANK(game!A24),11,IF(ISBLANK(game!A25),12,IF(ISBLANK(game!A26),13,IF(ISBLANK(game!A27),14,IF(ISBLANK(game!A28),15,16))))))))))))))))","v":0},null,null,null,"הטלת קוביות",null,null,{"$f":"IF(ISBLANK(game!F15),\"\",MOD(game!F15,2))","v":""},{"$f":"COUNTIF(I:I,0)","v":0},{"$f":"COUNTIF(I:I,1)","v":0},null,null,{"$f":"game!P12","v":""},{"$f":"game!Q12","v":""},{"$f":"game!R12","v":""},{"$f":"game!S12","v":""},{"$f":"game!T12","v":""},{"$f":"game!U12","v":""},{"$f":"game!V12","v":""},{"$f":"game!W12","v":""},{"$f":"game!X12","v":""},{"$f":"game!Y12","v":""},{"$f":"game!Z12","v":""},{"$f":"game!AA12","v":""},{"$f":"game!AB12","v":""},{"$f":"game!AC12","v":""},{"$f":"game!AD12","v":""},{"$f":"game!AE12","v":""}]
["range B",{"$f":"IF(ISBLANK(game!B13),0,IF(ISBLANK(game!B14),1,IF(ISBLANK(game!B15),2,IF(ISBLANK(game!B16),3,IF(ISBLANK(game!B17),4,IF(ISBLANK(game!B18),5,IF(ISBLANK(game!B19),6,IF(ISBLANK(game!B20),7,IF(ISBLANK(game!B21),8,IF(ISBLANK(game!B22),9,IF(ISBLANK(game!B23),10,IF(ISBLANK(game!B24),11,IF(ISBLANK(game!B25),12,IF(ISBLANK(game!B26),13,IF(ISBLANK(game!B27),14,IF(ISBLANK(game!B28),15,16))))))))))))))))","v":0},null,null,null,"קובייה א","קובייה ב",null,{"$f":"IF(ISBLANK(game!F16),\"\",MOD(game!F16,2))","v":""},null,null,null,{"$f":"game!O13","v":""},{"$f":"MOD($M3*N$2,2)","v":{"$error":"#VALUE!"}},{"$f":"MOD($M3*O$2,2)","v":{"$error":"#VALUE!"}},{"$error":"#VALUE!"},{"$error":"#VALUE!"},{"$error":"#VALUE!"},{"$error":"#VALUE!"},{"$error":"#VALUE!"},{"$error":"#VALUE!"},{"$error":"#VALUE!"},{"$error":"#VALUE!"},{"$error":"#VALUE!"},{"$error":"#VALUE!"},{"$error":"#VALUE!"},{"$error":"#VALUE!"},{"$error":"#VALUE!"}]
[null,null,null,null,null,{"$f":"INDIRECT(ADDRESS((RANDBETWEEN(13,12+B2)),1, , ,\"game\"))","v":{"$error":"#NUM!"}},{"$f":"INDIRECT(ADDRESS((RANDBETWEEN(13,12+B3)),2, , ,\"game\"))","v":{"$error":"#NUM!"}},{"$f":"F4*G4","v":{"$error":"#NUM!"}},{"$f":"IF(ISBLANK(game!F17),\"\",MOD(game!F17,2))","v":""},null,null,null,{"$f":"game!O14","v":""},{"$f":"MOD($M4*N$2,2)","v":{"$error":"#VALUE!"}},{"$error":"#VALUE!"},{"$error":"#VALUE!"},{"$error":"#VALUE!"},{"$error":"#VALUE!"},{"$error":"#VALUE!"},{"$error":"#VALUE!"},{"$error":"#VALUE!"},{"$error":"#VALUE!"},{"$error":"#VALUE!"},{"$error":"#VALUE!"},{"$error":"#VALUE!"},{"$error":"#VALUE!"},{"$error":"#VALUE!"},{"$error":"#VALUE!"}]
["counter",14,null,null,null,null,null,null,{"$f":"IF(ISBLANK(game!F18),\"\",MOD(game!F18,2))","v":""},null,null,null,{"$f":"game!O15","v":""},{"$error":"#VALUE!"},{"$error":"#VALUE!"},{"$error":"#VALUE!"},{"$error":"#VALUE!"},{"$error":"#VALUE!"},{"$error":"#VALUE!"},{"$error":"#VALUE!"},{"$error":"#VALUE!"},{"$error":"#VALUE!"},{"$error":"#VALUE!"},{"$error":"#VALUE!"},{"$error":"#VALUE!"},{"$error":"#VALUE!"},{"$error":"#VALUE!"},{"$error":"#VALUE!"}]
[null,null,null,null,null,null,null,null,{"$f":"IF(ISBLANK(game!F19),\"\",MOD(game!F19,2))","v":""},null,null,null,{"$f":"game!O16","v":""},{"$error":"#VALUE!"},{"$error":"#VALUE!"},{"$error":"#VALUE!"},{"$error":"#VALUE!"},{"$error":"#VALUE!"},{"$error":"#VALUE!"},{"$error":"#VALUE!"},{"$error":"#VALUE!"},{"$error":"#VALUE!"},{"$error":"#VALUE!"},{"$error":"#VALUE!"},{"$error":"#VALUE!"},{"$error":"#VALUE!"},{"$error":"#VALUE!"},{"$error":"#VALUE!"}]
[null,null,null,null,null,null,null,null,{"$f":"IF(ISBLANK(game!F20),\"\",MOD(game!F20,2))","v":""},null,null,null,{"$f":"game!O17","v":""},{"$error":"#VALUE!"},{"$error":"#VALUE!"},{"$error":"#VALUE!"},{"$error":"#VALUE!"},{"$error":"#VALUE!"},{"$error":"#VALUE!"},{"$error":"#VALUE!"},{"$error":"#VALUE!"},{"$error":"#VALUE!"},{"$error":"#VALUE!"},{"$error":"#VALUE!"},{"$error":"#VALUE!"},{"$error":"#VALUE!"},{"$error":"#VALUE!"},{"$error":"#VALUE!"}]
[null,null,null,null,null,null,null,null,{"$f":"IF(ISBLANK(game!F21),\"\",MOD(game!F21,2))","v":""},null,null,null,{"$f":"game!O18","v":""},{"$error":"#VALUE!"},{"$error":"#VALUE!"},{"$error":"#VALUE!"},{"$error":"#VALUE!"},{"$error":"#VALUE!"},{"$error":"#VALUE!"},{"$error":"#VALUE!"},{"$error":"#VALUE!"},{"$error":"#VALUE!"},{"$error":"#VALUE!"},{"$error":"#VALUE!"},{"$error":"#VALUE!"},{"$error":"#VALUE!"},{"$error":"#VALUE!"},{"$error":"#VALUE!"}]
[null,null,null,null,null,null,null,null,{"$f":"IF(ISBLANK(game!F22),\"\",MOD(game!F22,2))","v":""},null,null,null,{"$f":"game!O19","v":""},{"$error":"#VALUE!"},{"$error":"#VALUE!"},{"$error":"#VALUE!"},{"$error":"#VALUE!"},{"$error":"#VALUE!"},{"$error":"#VALUE!"},{"$error":"#VALUE!"},{"$error":"#VALUE!"},{"$error":"#VALUE!"},{"$error":"#VALUE!"},{"$error":"#VALUE!"},{"$error":"#VALUE!"},{"$error":"#VALUE!"},{"$error":"#VALUE!"},{"$error":"#VALUE!"}]
[null,null,null,null,null,null,null,null,{"$f":"IF(ISBLANK(game!F23),\"\",MOD(game!F23,2))","v":""},null,null,null,{"$f":"game!O20","v":""},{"$error":"#VALUE!"},{"$error":"#VALUE!"},{"$error":"#VALUE!"},{"$error":"#VALUE!"},{"$error":"#VALUE!"},{"$error":"#VALUE!"},{"$error":"#VALUE!"},{"$error":"#VALUE!"},{"$error":"#VALUE!"},{"$error":"#VALUE!"},{"$error":"#VALUE!"},{"$error":"#VALUE!"},{"$error":"#VALUE!"},{"$error":"#VALUE!"},{"$error":"#VALUE!"}]
[null,null,null,null,null,null,null,null,{"$f":"IF(ISBLANK(game!F24),\"\",MOD(game!F24,2))","v":""},null,null,null,{"$f":"game!O21","v":""},{"$error":"#VALUE!"},{"$error":"#VALUE!"},{"$error":"#VALUE!"},{"$error":"#VALUE!"},{"$error":"#VALUE!"},{"$error":"#VALUE!"},{"$error":"#VALUE!"},{"$error":"#VALUE!"},{"$error":"#VALUE!"},{"$error":"#VALUE!"},{"$error":"#VALUE!"},{"$error":"#VALUE!"},{"$error":"#VALUE!"},{"$error":"#VALUE!"},{"$error":"#VALUE!"}]
[null,null,null,null,null,null,null,null,{"$f":"IF(ISBLANK(game!F25),\"\",MOD(game!F25,2))","v":""},null,null,null,{"$f":"game!O22","v":""},{"$error":"#VALUE!"},{"$error":"#VALUE!"},{"$error":"#VALUE!"},{"$error":"#VALUE!"},{"$error":"#VALUE!"},{"$error":"#VALUE!"},{"$error":"#VALUE!"},{"$error":"#VALUE!"},{"$error":"#VALUE!"},{"$error":"#VALUE!"},{"$error":"#VALUE!"},{"$error":"#VALUE!"},{"$error":"#VALUE!"},{"$error":"#VALUE!"},{"$error":"#VALUE!"}]
[null,null,null,null,null,null,null,null,{"$f":"IF(ISBLANK(game!F26),\"\",MOD(game!F26,2))","v":""},null,null,null,{"$f":"game!O23","v":""},{"$error":"#VALUE!"},{"$error":"#VALUE!"},{"$error":"#VALUE!"},{"$error":"#VALUE!"},{"$error":"#VALUE!"},{"$error":"#VALUE!"},{"$error":"#VALUE!"},{"$error":"#VALUE!"},{"$error":"#VALUE!"},{"$error":"#VALUE!"},{"$error":"#VALUE!"},{"$error":"#VALUE!"},{"$error":"#VALUE!"},{"$error":"#VALUE!"},{"$error":"#VALUE!"}]
[null,null,null,null,null,null,null,null,{"$f":"IF(ISBLANK(game!F27),\"\",MOD(game!F27,2))","v":""},null,null,null,{"$f":"game!O24","v":""},{"$error":"#VALUE!"},{"$error":"#VALUE!"},{"$error":"#VALUE!"},{"$error":"#VALUE!"},{"$error":"#VALUE!"},{"$error":"#VALUE!"},{"$error":"#VALUE!"},{"$error":"#VALUE!"},{"$error":"#VALUE!"},{"$error":"#VALUE!"},{"$error":"#VALUE!"},{"$error":"#VALUE!"},{"$error":"#VALUE!"},{"$error":"#VALUE!"},{"$error":"#VALUE!"}]
[null,null,null,null,null,null,null,null,{"$f":"IF(ISBLANK(game!F28),\"\",MOD(game!F28,2))","v":""},null,null,null,{"$f":"game!O25","v":""},{"$error":"#VALUE!"},{"$error":"#VALUE!"},{"$error":"#VALUE!"},{"$error":"#VALUE!"},{"$error":"#VALUE!"},{"$error":"#VALUE!"},{"$error":"#VALUE!"},{"$error":"#VALUE!"},{"$error":"#VALUE!"},{"$error":"#VALUE!"},{"$error":"#VALUE!"},{"$error":"#VALUE!"},{"$error":"#VALUE!"},{"$error":"#VALUE!"},{"$error":"#VALUE!"}]
[null,null,null,null,null,null,null,null,{"$f":"IF(ISBLANK(game!F29),\"\",MOD(game!F29,2))","v":""},null,null,null,{"$f":"game!O26","v":""},{"$error":"#VALUE!"},{"$error":"#VALUE!"},{"$error":"#VALUE!"},{"$error":"#VALUE!"},{"$error":"#VALUE!"},{"$error":"#VALUE!"},{"$error":"#VALUE!"},{"$error":"#VALUE!"},{"$error":"#VALUE!"},{"$error":"#VALUE!"},{"$error":"#VALUE!"},{"$error":"#VALUE!"},{"$error":"#VALUE!"},{"$error":"#VALUE!"},{"$error":"#VALUE!"}]
[null,null,null,null,null,null,null,null,{"$f":"IF(ISBLANK(game!F30),\"\",MOD(game!F30,2))","v":""},null,null,null,{"$f":"game!O27","v":""},{"$error":"#VALUE!"},{"$error":"#VALUE!"},{"$error":"#VALUE!"},{"$error":"#VALUE!"},{"$error":"#VALUE!"},{"$error":"#VALUE!"},{"$error":"#VALUE!"},{"$error":"#VALUE!"},{"$error":"#VALUE!"},{"$error":"#VALUE!"},{"$error":"#VALUE!"},{"$error":"#VALUE!"},{"$error":"#VALUE!"},{"$error":"#VALUE!"},{"$error":"#VALUE!"}]
[null,null,null,null,null,null,null,null,{"$f":"IF(ISBLANK(game!F31),\"\",MOD(game!F31,2))","v":""},null,null,null,{"$f":"game!O28","v":""},{"$error":"#VALUE!"},{"$error":"#VALUE!"},{"$error":"#VALUE!"},{"$error":"#VALUE!"},{"$error":"#VALUE!"},{"$error":"#VALUE!"},{"$error":"#VALUE!"},{"$error":"#VALUE!"},{"$error":"#VALUE!"},{"$error":"#VALUE!"},{"$error":"#VALUE!"},{"$error":"#VALUE!"},{"$error":"#VALUE!"},{"$error":"#VALUE!"},{"$error":"#VALUE!"}]
[null,null,null,null,null,null,null,null,{"$f":"IF(ISBLANK(game!F32),\"\",MOD(game!F32,2))","v":""}]
[null,null,null,null,null,null,null,null,{"$f":"IF(ISBLANK(game!F33),\"\",MOD(game!F33,2))","v":""}]
[null,null,null,null,null,null,null,null,{"$f":"IF(ISBLANK(game!F34),\"\",MOD(game!F34,2))","v":""}]
[null,null,null,null,null,null,null,null,{"$f":"IF(ISBLANK(game!F35),\"\",MOD(game!F35,2))","v":""}]
[null,null,null,null,null,null,null,null,{"$f":"IF(ISBLANK(game!F36),\"\",MOD(game!F36,2))","v":""}]
[null,null,null,null,null,null,null,null,{"$f":"IF(ISBLANK(game!F37),\"\",MOD(game!F37,2))","v":""}]
[null,null,null,null,null,null,null,null,{"$f":"IF(ISBLANK(game!F38),\"\",MOD(game!F38,2))","v":""}]
[null,null,null,null,null,null,null,null,{"$f":"IF(ISBLANK(game!F39),\"\",MOD(game!F39,2))","v":""}]
[null,null,null,null,null,null,null,null,{"$f":"IF(ISBLANK(game!F40),\"\",MOD(game!F40,2))","v":""}]
[null,null,null,null,null,null,null,null,{"$f":"IF(ISBLANK(game!F41),\"\",MOD(game!F41,2))","v":""}]
[null,null,null,null,null,null,null,null,{"$f":"IF(ISBLANK(game!F42),\"\",MOD(game!F42,2))","v":""}]
[null,null,null,null,null,null,null,null,{"$f":"IF(ISBLANK(game!F43),\"\",MOD(game!F43,2))","v":""}]
[null,null,null,null,null,null,null,null,{"$f":"IF(ISBLANK(game!F44),\"\",MOD(game!F44,2))","v":""}]
[null,null,null,null,null,null,null,null,{"$f":"IF(ISBLANK(game!F45),\"\",MOD(game!F45,2))","v":""}]
[null,null,null,null,null,null,null,null,{"$f":"IF(ISBLANK(game!F46),\"\",MOD(game!F46,2))","v":""}]
[null,null,null,null,null,null,null,null,{"$f":"IF(ISBLANK(game!F47),\"\",MOD(game!F47,2))","v":""}]
[null,null,null,null,null,null,null,null,{"$f":"IF(ISBLANK(game!F48),\"\",MOD(game!F48,2))","v":""}]
[null,null,null,null,null,null,null,null,{"$f":"IF(ISBLANK(game!F49),\"\",MOD(game!F49,2))","v":""}]
[null,null,null,null,null,null,null,null,{"$f":"IF(ISBLANK(game!F50),\"\",MOD(game!F50,2))","v":""}]
[null,null,null,null,null,null,null,null,{"$f":"IF(ISBLANK(game!F51),\"\",MOD(game!F51,2))","v":""}]
[null,null,null,null,null,null,null,null,{"$f":"IF(ISBLANK(game!F52),\"\",MOD(game!F52,2))","v":""}]
[null,null,null,null,null,null,null,null,{"$f":"IF(ISBLANK(game!F53),\"\",MOD(game!F53,2))","v":""}]
[null,null,null,null,null,null,null,null,{"$f":"IF(ISBLANK(game!F54),\"\",MOD(game!F54,2))","v":""}]
[null,null,null,null,null,null,null,null,{"$f":"IF(ISBLANK(game!F55),\"\",MOD(game!F55,2))","v":""}]
[null,null,null,null,null,null,null,null,{"$f":"IF(ISBLANK(game!F56),\"\",MOD(game!F56,2))","v":""}]
[null,null,null,null,null,null,null,null,{"$f":"IF(ISBLANK(game!F57),\"\",MOD(game!F57,2))","v":""}]
[null,null,null,null,null,null,null,null,{"$f":"IF(ISBLANK(game!F58),\"\",MOD(game!F58,2))","v":""}]
[null,null,null,null,null,null,null,null,{"$f":"IF(ISBLANK(game!F59),\"\",MOD(game!F59,2))","v":""}]
[null,null,null,null,null,null,null,null,{"$f":"IF(ISBLANK(game!F60),\"\",MOD(game!F60,2))","v":""}]
[null,null,null,null,null,null,null,null,{"$f":"IF(ISBLANK(game!F61),\"\",MOD(game!F61,2))","v":""}]
[null,null,null,null,null,null,null,null,{"$f":"IF(ISBLANK(game!F62),\"\",MOD(game!F62,2))","v":""}]
[null,null,null,null,null,null,null,null,{"$f":"IF(ISBLANK(game!F63),\"\",MOD(game!F63,2))","v":""}]
[null,null,null,null,null,null,null,null,{"$f":"IF(ISBLANK(game!F64),\"\",MOD(game!F64,2))","v":""}]
[null,null,null,null,null,null,null,null,{"$f":"IF(ISBLANK(game!F65),\"\",MOD(game!F65,2))","v":""}]
[null,null,null,null,null,null,null,null,{"$f":"IF(ISBLANK(game!F66),\"\",MOD(game!F66,2))","v":""}]
[null,null,null,null,null,null,null,null,{"$f":"IF(ISBLANK(game!F67),\"\",MOD(game!F67,2))","v":""}]
[null,null,null,null,null,null,null,null,{"$f":"IF(ISBLANK(game!F68),\"\",MOD(game!F68,2))","v":""}]
[null,null,null,null,null,null,null,null,{"$f":"IF(ISBLANK(game!F69),\"\",MOD(game!F69,2))","v":""}]
[null,null,null,null,null,null,null,null,{"$f":"IF(ISBLANK(game!F70),\"\",MOD(game!F70,2))","v":""}]
[null,null,null,null,null,null,null,null,{"$f":"IF(ISBLANK(game!F71),\"\",MOD(game!F71,2))","v":""}]
[null,null,null,null,null,null,null,null,{"$f":"IF(ISBLANK(game!F72),\"\",MOD(game!F72,2))","v":""}]
[null,null,null,null,null,null,null,null,{"$f":"IF(ISBLANK(game!F73),\"\",MOD(game!F73,2))","v":""}]
[null,null,null,null,null,null,null,null,{"$f":"IF(ISBLANK(game!F74),\"\",MOD(game!F74,2))","v":""}]
[null,null,null,null,null,null,null,null,{"$f":"IF(ISBLANK(game!F75),\"\",MOD(game!F75,2))","v":""}]
[null,null,null,null,null,null,null,null,{"$f":"IF(ISBLANK(game!F76),\"\",MOD(game!F76,2))","v":""}]
[null,null,null,null,null,null,null,null,{"$f":"IF(ISBLANK(game!F77),\"\",MOD(game!F77,2))","v":""}]
[null,null,null,null,null,null,null,null,{"$f":"IF(ISBLANK(game!F78),\"\",MOD(game!F78,2))","v":""}]
[null,null,null,null,null,null,null,null,{"$f":"IF(ISBLANK(game!F79),\"\",MOD(game!F79,2))","v":""}]
[null,null,null,null,null,null,null,null,{"$f":"IF(ISBLANK(game!F80),\"\",MOD(game!F80,2))","v":""}]
[null,null,null,null,null,null,null,null,{"$f":"IF(ISBLANK(game!F81),\"\",MOD(game!F81,2))","v":""}]
[null,null,null,null,null,null,null,null,{"$f":"IF(ISBLANK(game!F82),\"\",MOD(game!F82,2))","v":""}]
[null,null,null,null,null,null,null,null,{"$f":"IF(ISBLANK(game!F83),\"\",MOD(game!F83,2))","v":""}]
[null,null,null,null,null,null,null,null,{"$f":"IF(ISBLANK(game!F84),\"\",MOD(game!F84,2))","v":""}]
[null,null,null,null,null,null,null,null,{"$f":"IF(ISBLANK(game!F85),\"\",MOD(game!F85,2))","v":""}]
[null,null,null,null,null,null,null,null,{"$f":"IF(ISBLANK(game!F86),\"\",MOD(game!F86,2))","v":""}]
[null,null,null,null,null,null,null,null,{"$f":"IF(ISBLANK(game!F87),\"\",MOD(game!F87,2))","v":""}]
[null,null,null,null,null,null,null,null,{"$f":"IF(ISBLANK(game!F88),\"\",MOD(game!F88,2))","v":""}]
[null,null,null,null,null,null,null,null,{"$f":"IF(ISBLANK(game!F89),\"\",MOD(game!F89,2))","v":""}]
[null,null,null,null,null,null,null,null,{"$f":"IF(ISBLANK(game!F90),\"\",MOD(game!F90,2))","v":""}]
[null,null,null,null,null,null,null,null,{"$f":"IF(ISBLANK(game!F91),\"\",MOD(game!F91,2))","v":""}]
[null,null,null,null,null,null,null,null,{"$f":"IF(ISBLANK(game!F92),\"\",MOD(game!F92,2))","v":""}]
[null,null,null,null,null,null,null,null,{"$f":"IF(ISBLANK(game!F93),\"\",MOD(game!F93,2))","v":""}]
[null,null,null,null,null,null,null,null,{"$f":"IF(ISBLANK(game!F94),\"\",MOD(game!F94,2))","v":""}]
[null,null,null,null,null,null,null,null,{"$f":"IF(ISBLANK(game!F95),\"\",MOD(game!F95,2))","v":""}]
[null,null,null,null,null,null,null,null,{"$f":"IF(ISBLANK(game!F96),\"\",MOD(game!F96,2))","v":""}]
[null,null,null,null,null,null,null,null,{"$f":"IF(ISBLANK(game!F97),\"\",MOD(game!F97,2))","v":""}]
[null,null,null,null,null,null,null,null,{"$f":"IF(ISBLANK(game!F98),\"\",MOD(game!F98,2))","v":""}]
[null,null,null,null,null,null,null,null,{"$f":"IF(ISBLANK(game!F99),\"\",MOD(game!F99,2))","v":""}]
[null,null,null,null,null,null,null,null,{"$f":"IF(ISBLANK(game!F100),\"\",MOD(game!F100,2))","v":""}]
[null,null,null,null,null,null,null,null,{"$f":"IF(ISBLANK(game!F101),\"\",MOD(game!F101,2))","v":""}]
[null,null,null,null,null,null,null,null,{"$f":"IF(ISBLANK(game!F102),\"\",MOD(game!F102,2))","v":""}]
[null,null,null,null,null,null,null,null,{"$f":"IF(ISBLANK(game!F103),\"\",MOD(game!F103,2))","v":""}]
[null,null,null,null,null,null,null,null,{"$f":"IF(ISBLANK(game!F104),\"\",MOD(game!F104,2))","v":""}]
[null,null,null,null,null,null,null,null,{"$f":"IF(ISBLANK(game!F105),\"\",MOD(game!F105,2))","v":""}]
[null,null,null,null,null,null,null,null,{"$f":"IF(ISBLANK(game!F106),\"\",MOD(game!F106,2))","v":""}]
[null,null,null,null,null,null,null,null,{"$f":"IF(ISBLANK(game!F107),\"\",MOD(game!F107,2))","v":""}]
[null,null,null,null,null,null,null,null,{"$f":"IF(ISBLANK(game!F108),\"\",MOD(game!F108,2))","v":""}]
[null,null,null,null,null,null,null,null,{"$f":"IF(ISBLANK(game!F109),\"\",MOD(game!F109,2))","v":""}]
[null,null,null,null,null,null,null,null,{"$f":"IF(ISBLANK(game!F110),\"\",MOD(game!F110,2))","v":""}]
[null,null,null,null,null,null,null,null,{"$f":"IF(ISBLANK(game!F111),\"\",MOD(game!F111,2))","v":""}]
[null,null,null,null,null,null,null,null,{"$f":"IF(ISBLANK(game!F112),\"\",MOD(game!F112,2))","v":""}]
[null,null,null,null,null,null,null,null,{"$f":"IF(ISBLANK(game!F113),\"\",MOD(game!F113,2))","v":""}]
[null,null,null,null,null,null,null,null,{"$f":"IF(ISBLANK(game!F114),\"\",MOD(game!F114,2))","v":""}]
[null,null,null,null,null,null,null,null,{"$f":"IF(ISBLANK(game!F115),\"\",MOD(game!F115,2))","v":""}]
[null,null,null,null,null,null,null,null,{"$f":"IF(ISBLANK(game!F116),\"\",MOD(game!F116,2))","v":""}]
[null,null,null,null,null,null,null,null,{"$f":"IF(ISBLANK(game!F117),\"\",MOD(game!F117,2))","v":""}]
[null,null,null,null,null,null,null,null,{"$f":"IF(ISBLANK(game!F118),\"\",MOD(game!F118,2))","v":""}]
[null,null,null,null,null,null,null,null,{"$f":"IF(ISBLANK(game!F119),\"\",MOD(game!F119,2))","v":""}]
[null,null,null,null,null,null,null,null,{"$f":"IF(ISBLANK(game!F120),\"\",MOD(game!F120,2))","v":""}]
[null,null,null,null,null,null,null,null,{"$f":"IF(ISBLANK(game!F121),\"\",MOD(game!F121,2))","v":""}]
[null,null,null,null,null,null,null,null,{"$f":"IF(ISBLANK(game!F122),\"\",MOD(game!F122,2))","v":""}]
[null,null,null,null,null,null,null,null,{"$f":"IF(ISBLANK(game!F123),\"\",MOD(game!F123,2))","v":""}]
[null,null,null,null,null,null,null,null,{"$f":"IF(ISBLANK(game!F124),\"\",MOD(game!F124,2))","v":""}]
[null,null,null,null,null,null,null,null,{"$f":"IF(ISBLANK(game!F125),\"\",MOD(game!F125,2))","v":""}]
[null,null,null,null,null,null,null,null,{"$f":"IF(ISBLANK(game!F126),\"\",MOD(game!F126,2))","v":""}]
[null,null,null,null,null,null,null,null,{"$f":"IF(ISBLANK(game!F127),\"\",MOD(game!F127,2))","v":""}]
[null,null,null,null,null,null,null,null,{"$f":"IF(ISBLANK(game!F128),\"\",MOD(game!F128,2))","v":""}]
[null,null,null,null,null,null,null,null,{"$f":"IF(ISBLANK(game!F129),\"\",MOD(game!F129,2))","v":""}]
[null,null,null,null,null,null,null,null,{"$f":"IF(ISBLANK(game!F130),\"\",MOD(game!F130,2))","v":""}]
[null,null,null,null,null,null,null,null,{"$f":"IF(ISBLANK(game!F131),\"\",MOD(game!F131,2))","v":""}]
[null,null,null,null,null,null,null,null,{"$f":"IF(ISBLANK(game!F132),\"\",MOD(game!F132,2))","v":""}]
[null,null,null,null,null,null,null,null,{"$f":"IF(ISBLANK(game!F133),\"\",MOD(game!F133,2))","v":""}]
[null,null,null,null,null,null,null,null,{"$f":"IF(ISBLANK(game!F134),\"\",MOD(game!F134,2))","v":""}]
[null,null,null,null,null,null,null,null,{"$f":"IF(ISBLANK(game!F135),\"\",MOD(game!F135,2))","v":""}]
[null,null,null,null,null,null,null,null,{"$f":"IF(ISBLANK(game!F136),\"\",MOD(game!F136,2))","v":""}]
[null,null,null,null,null,null,null,null,{"$f":"IF(ISBLANK(game!F137),\"\",MOD(game!F137,2))","v":""}]
[null,null,null,null,null,null,null,null,{"$f":"IF(ISBLANK(game!F138),\"\",MOD(game!F138,2))","v":""}]
[null,null,null,null,null,null,null,null,{"$f":"IF(ISBLANK(game!F139),\"\",MOD(game!F139,2))","v":""}]
[null,null,null,null,null,null,null,null,{"$f":"IF(ISBLANK(game!F140),\"\",MOD(game!F140,2))","v":""}]
[null,null,null,null,null,null,null,null,{"$f":"IF(ISBLANK(game!F141),\"\",MOD(game!F141,2))","v":""}]
[null,null,null,null,null,null,null,null,{"$f":"IF(ISBLANK(game!F142),\"\",MOD(game!F142,2))","v":""}]
[null,null,null,null,null,null,null,null,{"$f":"IF(ISBLANK(game!F143),\"\",MOD(game!F143,2))","v":""}]
[null,null,null,null,null,null,null,null,{"$f":"IF(ISBLANK(game!F144),\"\",MOD(game!F144,2))","v":""}]
[null,null,null,null,null,null,null,null,{"$f":"IF(ISBLANK(game!F145),\"\",MOD(game!F145,2))","v":""}]
[null,null,null,null,null,null,null,null,{"$f":"IF(ISBLANK(game!F146),\"\",MOD(game!F146,2))","v":""}]
[null,null,null,null,null,null,null,null,{"$f":"IF(ISBLANK(game!F147),\"\",MOD(game!F147,2))","v":""}]
[null,null,null,null,null,null,null,null,{"$f":"IF(ISBLANK(game!F148),\"\",MOD(game!F148,2))","v":""}]
[null,null,null,null,null,null,null,null,{"$f":"IF(ISBLANK(game!F149),\"\",MOD(game!F149,2))","v":""}]
[null,null,null,null,null,null,null,null,{"$f":"IF(ISBLANK(game!F150),\"\",MOD(game!F150,2))","v":""}]
[null,null,null,null,null,null,null,null,{"$f":"IF(ISBLANK(game!F151),\"\",MOD(game!F151,2))","v":""}]
[null,null,null,null,null,null,null,null,{"$f":"IF(ISBLANK(game!F152),\"\",MOD(game!F152,2))","v":""}]
[null,null,null,null,null,null,null,null,{"$f":"IF(ISBLANK(game!F153),\"\",MOD(game!F153,2))","v":""}]
[null,null,null,null,null,null,null,null,{"$f":"IF(ISBLANK(game!F154),\"\",MOD(game!F154,2))","v":""}]
[null,null,null,null,null,null,null,null,{"$f":"IF(ISBLANK(game!F155),\"\",MOD(game!F155,2))","v":""}]
[null,null,null,null,null,null,null,null,{"$f":"IF(ISBLANK(game!F156),\"\",MOD(game!F156,2))","v":""}]
[null,null,null,null,null,null,null,null,{"$f":"IF(ISBLANK(game!F157),\"\",MOD(game!F157,2))","v":""}]
[null,null,null,null,null,null,null,null,{"$f":"IF(ISBLANK(game!F158),\"\",MOD(game!F158,2))","v":""}]
[null,null,null,null,null,null,null,null,{"$f":"IF(ISBLANK(game!F159),\"\",MOD(game!F159,2))","v":""}]
[null,null,null,null,null,null,null,null,{"$f":"IF(ISBLANK(game!F160),\"\",MOD(game!F160,2))","v":""}]
[null,null,null,null,null,null,null,null,{"$f":"IF(ISBLANK(game!F161),\"\",MOD(game!F161,2))","v":""}]
[null,null,null,null,null,null,null,null,{"$f":"IF(ISBLANK(game!F162),\"\",MOD(game!F162,2))","v":""}]
[null,null,null,null,null,null,null,null,{"$f":"IF(ISBLANK(game!F163),\"\",MOD(game!F163,2))","v":""}]
[null,null,null,null,null,null,null,null,{"$f":"IF(ISBLANK(game!F164),\"\",MOD(game!F164,2))","v":""}]
[null,null,null,null,null,null,null,null,{"$f":"IF(ISBLANK(game!F165),\"\",MOD(game!F165,2))","v":""}]
[null,null,null,null,null,null,null,null,{"$f":"IF(ISBLANK(game!F166),\"\",MOD(game!F166,2))","v":""}]
[null,null,null,null,null,null,null,null,{"$f":"IF(ISBLANK(game!F167),\"\",MOD(game!F167,2))","v":""}]
[null,null,null,null,null,null,null,null,{"$f":"IF(ISBLANK(game!F168),\"\",MOD(game!F168,2))","v":""}]
[null,null,null,null,null,null,null,null,{"$f":"IF(ISBLANK(game!F169),\"\",MOD(game!F169,2))","v":""}]
[null,null,null,null,null,null,null,null,{"$f":"IF(ISBLANK(game!F170),\"\",MOD(game!F170,2))","v":""}]
[null,null,null,null,null,null,null,null,{"$f":"IF(ISBLANK(game!F171),\"\",MOD(game!F171,2))","v":""}]
[null,null,null,null,null,null,null,null,{"$f":"IF(ISBLANK(game!F172),\"\",MOD(game!F172,2))","v":""}]
[null,null,null,null,null,null,null,null,{"$f":"IF(ISBLANK(game!F173),\"\",MOD(game!F173,2))","v":""}]
[null,null,null,null,null,null,null,null,{"$f":"IF(ISBLANK(game!F174),\"\",MOD(game!F174,2))","v":""}]
[null,null,null,null,null,null,null,null,{"$f":"IF(ISBLANK(game!F175),\"\",MOD(game!F175,2))","v":""}]
[null,null,null,null,null,null,null,null,{"$f":"IF(ISBLANK(game!F176),\"\",MOD(game!F176,2))","v":""}]
[null,null,null,null,null,null,null,null,{"$f":"IF(ISBLANK(game!F177),\"\",MOD(game!F177,2))","v":""}]
[null,null,null,null,null,null,null,null,{"$f":"IF(ISBLANK(game!F178),\"\",MOD(game!F178,2))","v":""}]
[null,null,null,null,null,null,null,null,{"$f":"IF(ISBLANK(game!F179),\"\",MOD(game!F179,2))","v":""}]
[null,null,null,null,null,null,null,null,{"$f":"IF(ISBLANK(game!F180),\"\",MOD(game!F180,2))","v":""}]
[null,null,null,null,null,null,null,null,{"$f":"IF(ISBLANK(game!F181),\"\",MOD(game!F181,2))","v":""}]
[null,null,null,null,null,null,null,null,{"$f":"IF(ISBLANK(game!F182),\"\",MOD(game!F182,2))","v":""}]
[null,null,null,null,null,null,null,null,{"$f":"IF(ISBLANK(game!F183),\"\",MOD(game!F183,2))","v":""}]
[null,null,null,null,null,null,null,null,{"$f":"IF(ISBLANK(game!F184),\"\",MOD(game!F184,2))","v":""}]
[null,null,null,null,null,null,null,null,{"$f":"IF(ISBLANK(game!F185),\"\",MOD(game!F185,2))","v":""}]
[null,null,null,null,null,null,null,null,{"$f":"IF(ISBLANK(game!F186),\"\",MOD(game!F186,2))","v":""}]
[null,null,null,null,null,null,null,null,{"$f":"IF(ISBLANK(game!F187),\"\",MOD(game!F187,2))","v":""}]
[null,null,null,null,null,null,null,null,{"$f":"IF(ISBLANK(game!F188),\"\",MOD(game!F188,2))","v":""}]
[null,null,null,null,null,null,null,null,{"$f":"IF(ISBLANK(game!F189),\"\",MOD(game!F189,2))","v":""}]
[null,null,null,null,null,null,null,null,{"$f":"IF(ISBLANK(game!F190),\"\",MOD(game!F190,2))","v":""}]
[null,null,null,null,null,null,null,null,{"$f":"IF(ISBLANK(game!F191),\"\",MOD(game!F191,2))","v":""}]
[null,null,null,null,null,null,null,null,{"$f":"IF(ISBLANK(game!F192),\"\",MOD(game!F192,2))","v":""}]
[null,null,null,null,null,null,null,null,{"$f":"IF(ISBLANK(game!F193),\"\",MOD(game!F193,2))","v":""}]
[null,null,null,null,null,null,null,null,{"$f":"IF(ISBLANK(game!F194),\"\",MOD(game!F194,2))","v":""}]
[null,null,null,null,null,null,null,null,{"$f":"IF(ISBLANK(game!F195),\"\",MOD(game!F195,2))","v":""}]
[null,null,null,null,null,null,null,null,{"$f":"IF(ISBLANK(game!F196),\"\",MOD(game!F196,2))","v":""}]
[null,null,null,null,null,null,null,null,{"$f":"IF(ISBLANK(game!F197),\"\",MOD(game!F197,2))","v":""}]
[null,null,null,null,null,null,null,null,{"$f":"IF(ISBLANK(game!F198),\"\",MOD(game!F198,2))","v":""}]
[null,null,null,null,null,null,null,null,{"$f":"IF(ISBLANK(game!F199),\"\",MOD(game!F199,2))","v":""}]
[null,null,null,null,null,null,null,null,{"$f":"IF(ISBLANK(game!F200),\"\",MOD(game!F200,2))","v":""}]
[null,null,null,null,null,null,null,null,{"$f":"IF(ISBLANK(game!F201),\"\",MOD(game!F201,2))","v":""}]
[null,null,null,null,null,null,null,null,{"$f":"IF(ISBLANK(game!F202),\"\",MOD(game!F202,2))","v":""}]
[null,null,null,null,null,null,null,null,{"$f":"IF(ISBLANK(game!F203),\"\",MOD(game!F203,2))","v":""}]
[null,null,null,null,null,null,null,null,{"$f":"IF(ISBLANK(game!F204),\"\",MOD(game!F204,2))","v":""}]
[null,null,null,null,null,null,null,null,{"$f":"IF(ISBLANK(game!F205),\"\",MOD(game!F205,2))","v":""}]
[null,null,null,null,null,null,null,null,{"$f":"IF(ISBLANK(game!F206),\"\",MOD(game!F206,2))","v":""}]
[null,null,null,null,null,null,null,null,{"$f":"IF(ISBLANK(game!F207),\"\",MOD(game!F207,2))","v":""}]
[null,null,null,null,null,null,null,null,{"$f":"IF(ISBLANK(game!F208),\"\",MOD(game!F208,2))","v":""}]
[null,null,null,null,null,null,null,null,{"$f":"IF(ISBLANK(game!F209),\"\",MOD(game!F209,2))","v":""}]
[null,null,null,null,null,null,null,null,{"$f":"IF(ISBLANK(game!F210),\"\",MOD(game!F210,2))","v":""}]
[null,null,null,null,null,null,null,null,{"$f":"IF(ISBLANK(game!F211),\"\",MOD(game!F211,2))","v":""}]
[null,null,null,null,null,null,null,null,{"$f":"IF(ISBLANK(game!F212),\"\",MOD(game!F212,2))","v":""}]
[null,null,null,null,null,null,null,null,{"$f":"IF(ISBLANK(game!F213),\"\",MOD(game!F213,2))","v":""}]
[null,null,null,null,null,null,null,null,{"$f":"IF(ISBLANK(game!F214),\"\",MOD(game!F214,2))","v":""}]
[null,null,null,null,null,null,null,null,{"$f":"IF(ISBLANK(game!F215),\"\",MOD(game!F215,2))","v":""}]
[null,null,null,null,null,null,null,null,{"$f":"IF(ISBLANK(game!F216),\"\",MOD(game!F216,2))","v":""}]
[null,null,null,null,null,null,null,null,{"$f":"IF(ISBLANK(game!F217),\"\",MOD(game!F217,2))","v":""}]
[null,null,null,null,null,null,null,null,{"$f":"IF(ISBLANK(game!F218),\"\",MOD(game!F218,2))","v":""}]
[null,null,null,null,null,null,null,null,{"$f":"IF(ISBLANK(game!F219),\"\",MOD(game!F219,2))","v":""}]
[null,null,null,null,null,null,null,null,{"$f":"IF(ISBLANK(game!F220),\"\",MOD(game!F220,2))","v":""}]
[null,null,null,null,null,null,null,null,{"$f":"IF(ISBLANK(game!F221),\"\",MOD(game!F221,2))","v":""}]
[null,null,null,null,null,null,null,null,{"$f":"IF(ISBLANK(game!F222),\"\",MOD(game!F222,2))","v":""}]
[null,null,null,null,null,null,null,null,{"$f":"IF(ISBLANK(game!F223),\"\",MOD(game!F223,2))","v":""}]
[null,null,null,null,null,null,null,null,{"$f":"IF(ISBLANK(game!F224),\"\",MOD(game!F224,2))","v":""}]
[null,null,null,null,null,null,null,null,{"$f":"IF(ISBLANK(game!F225),\"\",MOD(game!F225,2))","v":""}]
[null,null,null,null,null,null,null,null,{"$f":"IF(ISBLANK(game!F226),\"\",MOD(game!F226,2))","v":""}]
[null,null,null,null,null,null,null,null,{"$f":"IF(ISBLANK(game!F227),\"\",MOD(game!F227,2))","v":""}]
[null,null,null,null,null,null,null,null,{"$f":"IF(ISBLANK(game!F228),\"\",MOD(game!F228,2))","v":""}]
[null,null,null,null,null,null,null,null,{"$f":"IF(ISBLANK(game!F229),\"\",MOD(game!F229,2))","v":""}]
[null,null,null,null,null,null,null,null,{"$f":"IF(ISBLANK(game!F230),\"\",MOD(game!F230,2))","v":""}]
[null,null,null,null,null,null,null,null,{"$f":"IF(ISBLANK(game!F231),\"\",MOD(game!F231,2))","v":""}]
[null,null,null,null,null,null,null,null,{"$f":"IF(ISBLANK(game!F232),\"\",MOD(game!F232,2))","v":""}]
[null,null,null,null,null,null,null,null,{"$f":"IF(ISBLANK(game!F233),\"\",MOD(game!F233,2))","v":""}]
[null,null,null,null,null,null,null,null,{"$f":"IF(ISBLANK(game!F234),\"\",MOD(game!F234,2))","v":""}]
[null,null,null,null,null,null,null,null,{"$f":"IF(ISBLANK(game!F235),\"\",MOD(game!F235,2))","v":""}]
[null,null,null,null,null,null,null,null,{"$f":"IF(ISBLANK(game!F236),\"\",MOD(game!F236,2))","v":""}]
[null,null,null,null,null,null,null,null,{"$f":"IF(ISBLANK(game!F237),\"\",MOD(game!F237,2))","v":""}]
[null,null,null,null,null,null,null,null,{"$f":"IF(ISBLANK(game!F238),\"\",MOD(game!F238,2))","v":""}]
[null,null,null,null,null,null,null,null,{"$f":"IF(ISBLANK(game!F239),\"\",MOD(game!F239,2))","v":""}]
[null,null,null,null,null,null,null,null,{"$f":"IF(ISBLANK(game!F240),\"\",MOD(game!F240,2))","v":""}]
[null,null,null,null,null,null,null,null,{"$f":"IF(ISBLANK(game!F241),\"\",MOD(game!F241,2))","v":""}]
[null,null,null,null,null,null,null,null,{"$f":"IF(ISBLANK(game!F242),\"\",MOD(game!F242,2))","v":""}]
[null,null,null,null,null,null,null,null,{"$f":"IF(ISBLANK(game!F243),\"\",MOD(game!F243,2))","v":""}]
[null,null,null,null,null,null,null,null,{"$f":"IF(ISBLANK(game!F244),\"\",MOD(game!F244,2))","v":""}]
[null,null,null,null,null,null,null,null,{"$f":"IF(ISBLANK(game!F245),\"\",MOD(game!F245,2))","v":""}]
[null,null,null,null,null,null,null,null,{"$f":"IF(ISBLANK(game!F246),\"\",MOD(game!F246,2))","v":""}]
[null,null,null,null,null,null,null,null,{"$f":"IF(ISBLANK(game!F247),\"\",MOD(game!F247,2))","v":""}]
[null,null,null,null,null,null,null,null,{"$f":"IF(ISBLANK(game!F248),\"\",MOD(game!F248,2))","v":""}]
[null,null,null,null,null,null,null,null,{"$f":"IF(ISBLANK(game!F249),\"\",MOD(game!F249,2))","v":""}]
[null,null,null,null,null,null,null,null,{"$f":"IF(ISBLANK(game!F250),\"\",MOD(game!F250,2))","v":""}]
[null,null,null,null,null,null,null,null,{"$f":"IF(ISBLANK(game!F251),\"\",MOD(game!F251,2))","v":""}]
[null,null,null,null,null,null,null,null,{"$f":"IF(ISBLANK(game!F252),\"\",MOD(game!F252,2))","v":""}]
[null,null,null,null,null,null,null,null,{"$f":"IF(ISBLANK(game!F253),\"\",MOD(game!F253,2))","v":""}]
[null,null,null,null,null,null,null,null,{"$f":"IF(ISBLANK(game!F254),\"\",MOD(game!F254,2))","v":""}]
[null,null,null,null,null,null,null,null,{"$f":"IF(ISBLANK(game!F255),\"\",MOD(game!F255,2))","v":""}]
[null,null,null,null,null,null,null,null,{"$f":"IF(ISBLANK(game!F256),\"\",MOD(game!F256,2))","v":""}]
[null,null,null,null,null,null,null,null,{"$f":"IF(ISBLANK(game!F257),\"\",MOD(game!F257,2))","v":""}]
[null,null,null,null,null,null,null,null,{"$f":"IF(ISBLANK(game!F258),\"\",MOD(game!F258,2))","v":""}]
[null,null,null,null,null,null,null,null,{"$f":"IF(ISBLANK(game!F259),\"\",MOD(game!F259,2))","v":""}]
[null,null,null,null,null,null,null,null,{"$f":"IF(ISBLANK(game!F260),\"\",MOD(game!F260,2))","v":""}]
[null,null,null,null,null,null,null,null,{"$f":"IF(ISBLANK(game!F261),\"\",MOD(game!F261,2))","v":""}]
[null,null,null,null,null,null,null,null,{"$f":"IF(ISBLANK(game!F262),\"\",MOD(game!F262,2))","v":""}]
[null,null,null,null,null,null,null,null,{"$f":"IF(ISBLANK(game!F263),\"\",MOD(game!F263,2))","v":""}]
[null,null,null,null,null,null,null,null,{"$f":"IF(ISBLANK(game!F264),\"\",MOD(game!F264,2))","v":""}]
[null,null,null,null,null,null,null,null,{"$f":"IF(ISBLANK(game!F265),\"\",MOD(game!F265,2))","v":""}]
[null,null,null,null,null,null,null,null,{"$f":"IF(ISBLANK(game!F266),\"\",MOD(game!F266,2))","v":""}]
[null,null,null,null,null,null,null,null,{"$f":"IF(ISBLANK(game!F267),\"\",MOD(game!F267,2))","v":""}]
[null,null,null,null,null,null,null,null,{"$f":"IF(ISBLANK(game!F268),\"\",MOD(game!F268,2))","v":""}]
[null,null,null,null,null,null,null,null,{"$f":"IF(ISBLANK(game!F269),\"\",MOD(game!F269,2))","v":""}]
[null,null,null,null,null,null,null,null,{"$f":"IF(ISBLANK(game!F270),\"\",MOD(game!F270,2))","v":""}]
[null,null,null,null,null,null,null,null,{"$f":"IF(ISBLANK(game!F271),\"\",MOD(game!F271,2))","v":""}]
[null,null,null,null,null,null,null,null,{"$f":"IF(ISBLANK(game!F272),\"\",MOD(game!F272,2))","v":""}]
[null,null,null,null,null,null,null,null,{"$f":"IF(ISBLANK(game!F273),\"\",MOD(game!F273,2))","v":""}]
[null,null,null,null,null,null,null,null,{"$f":"IF(ISBLANK(game!F274),\"\",MOD(game!F274,2))","v":""}]
[null,null,null,null,null,null,null,null,{"$f":"IF(ISBLANK(game!F275),\"\",MOD(game!F275,2))","v":""}]
[null,null,null,null,null,null,null,null,{"$f":"IF(ISBLANK(game!F276),\"\",MOD(game!F276,2))","v":""}]
[null,null,null,null,null,null,null,null,{"$f":"IF(ISBLANK(game!F277),\"\",MOD(game!F277,2))","v":""}]
[null,null,null,null,null,null,null,null,{"$f":"IF(ISBLANK(game!F278),\"\",MOD(game!F278,2))","v":""}]
[null,null,null,null,null,null,null,null,{"$f":"IF(ISBLANK(game!F279),\"\",MOD(game!F279,2))","v":""}]
[null,null,null,null,null,null,null,null,{"$f":"IF(ISBLANK(game!F280),\"\",MOD(game!F280,2))","v":""}]
[null,null,null,null,null,null,null,null,{"$f":"IF(ISBLANK(game!F281),\"\",MOD(game!F281,2))","v":""}]
[null,null,null,null,null,null,null,null,{"$f":"IF(ISBLANK(game!F282),\"\",MOD(game!F282,2))","v":""}]
[null,null,null,null,null,null,null,null,{"$f":"IF(ISBLANK(game!F283),\"\",MOD(game!F283,2))","v":""}]
[null,null,null,null,null,null,null,null,{"$f":"IF(ISBLANK(game!F284),\"\",MOD(game!F284,2))","v":""}]
[null,null,null,null,null,null,null,null,{"$f":"IF(ISBLANK(game!F285),\"\",MOD(game!F285,2))","v":""}]
[null,null,null,null,null,null,null,null,{"$f":"IF(ISBLANK(game!F286),\"\",MOD(game!F286,2))","v":""}]
[null,null,null,null,null,null,null,null,{"$f":"IF(ISBLANK(game!F287),\"\",MOD(game!F287,2))","v":""}]
[null,null,null,null,null,null,null,null,{"$f":"IF(ISBLANK(game!F288),\"\",MOD(game!F288,2))","v":""}]
[null,null,null,null,null,null,null,null,{"$f":"IF(ISBLANK(game!F289),\"\",MOD(game!F289,2))","v":""}]
[null,null,null,null,null,null,null,null,{"$f":"IF(ISBLANK(game!F290),\"\",MOD(game!F290,2))","v":""}]
[null,null,null,null,null,null,null,null,{"$f":"IF(ISBLANK(game!F291),\"\",MOD(game!F291,2))","v":""}]
[null,null,null,null,null,null,null,null,{"$f":"IF(ISBLANK(game!F292),\"\",MOD(game!F292,2))","v":""}]
[null,null,null,null,null,null,null,null,{"$f":"IF(ISBLANK(game!F293),\"\",MOD(game!F293,2))","v":""}]
[null,null,null,null,null,null,null,null,{"$f":"IF(ISBLANK(game!F294),\"\",MOD(game!F294,2))","v":""}]
[null,null,null,null,null,null,null,null,{"$f":"IF(ISBLANK(game!F295),\"\",MOD(game!F295,2))","v":""}]
[null,null,null,null,null,null,null,null,{"$f":"IF(ISBLANK(game!F296),\"\",MOD(game!F296,2))","v":""}]
[null,null,null,null,null,null,null,null,{"$f":"IF(ISBLANK(game!F297),\"\",MOD(game!F297,2))","v":""}]
[null,null,null,null,null,null,null,null,{"$f":"IF(ISBLANK(game!F298),\"\",MOD(game!F298,2))","v":""}]
[null,null,null,null,null,null,null,null,{"$f":"IF(ISBLANK(game!F299),\"\",MOD(game!F299,2))","v":""}]
[null,null,null,null,null,null,null,null,{"$f":"IF(ISBLANK(game!F300),\"\",MOD(game!F300,2))","v":""}]
[null,null,null,null,null,null,null,null,{"$f":"IF(ISBLANK(game!F301),\"\",MOD(game!F301,2))","v":""}]
[null,null,null,null,null,null,null,null,{"$f":"IF(ISBLANK(game!F302),\"\",MOD(game!F302,2))","v":""}]
[null,null,null,null,null,null,null,null,{"$f":"IF(ISBLANK(game!F303),\"\",MOD(game!F303,2))","v":""}]
[null,null,null,null,null,null,null,null,{"$f":"IF(ISBLANK(game!F304),\"\",MOD(game!F304,2))","v":""}]
[null,null,null,null,null,null,null,null,{"$f":"IF(ISBLANK(game!F305),\"\",MOD(game!F305,2))","v":""}]
[null,null,null,null,null,null,null,null,{"$f":"IF(ISBLANK(game!F306),\"\",MOD(game!F306,2))","v":""}]
[null,null,null,null,null,null,null,null,{"$f":"IF(ISBLANK(game!F307),\"\",MOD(game!F307,2))","v":""}]
[null,null,null,null,null,null,null,null,{"$f":"IF(ISBLANK(game!F308),\"\",MOD(game!F308,2))","v":""}]
[null,null,null,null,null,null,null,null,{"$f":"IF(ISBLANK(game!F309),\"\",MOD(game!F309,2))","v":""}]
[null,null,null,null,null,null,null,null,{"$f":"IF(ISBLANK(game!F310),\"\",MOD(game!F310,2))","v":""}]
[null,null,null,null,null,null,null,null,{"$f":"IF(ISBLANK(game!F311),\"\",MOD(game!F311,2))","v":""}]
[null,null,null,null,null,null,null,null,{"$f":"IF(ISBLANK(game!F312),\"\",MOD(game!F312,2))","v":""}]
[null,null,null,null,null,null,null,null,{"$f":"IF(ISBLANK(game!F313),\"\",MOD(game!F313,2))","v":""}]
[null,null,null,null,null,null,null,null,{"$f":"IF(ISBLANK(game!F314),\"\",MOD(game!F314,2))","v":""}]
[null,null,null,null,null,null,null,null,{"$f":"IF(ISBLANK(game!F315),\"\",MOD(game!F315,2))","v":""}]
[null,null,null,null,null,null,null,null,{"$f":"IF(ISBLANK(game!F316),\"\",MOD(game!F316,2))","v":""}]
[null,null,null,null,null,null,null,null,{"$f":"IF(ISBLANK(game!F317),\"\",MOD(game!F317,2))","v":""}]
[null,null,null,null,null,null,null,null,{"$f":"IF(ISBLANK(game!F318),\"\",MOD(game!F318,2))","v":""}]
[null,null,null,null,null,null,null,null,{"$f":"IF(ISBLANK(game!F319),\"\",MOD(game!F319,2))","v":""}]
[null,null,null,null,null,null,null,null,{"$f":"IF(ISBLANK(game!F320),\"\",MOD(game!F320,2))","v":""}]
[null,null,null,null,null,null,null,null,{"$f":"IF(ISBLANK(game!F321),\"\",MOD(game!F321,2))","v":""}]
[null,null,null,null,null,null,null,null,{"$f":"IF(ISBLANK(game!F322),\"\",MOD(game!F322,2))","v":""}]
[null,null,null,null,null,null,null,null,{"$f":"IF(ISBLANK(game!F323),\"\",MOD(game!F323,2))","v":""}]
[null,null,null,null,null,null,null,null,{"$f":"IF(ISBLANK(game!F324),\"\",MOD(game!F324,2))","v":""}]
[null,null,null,null,null,null,null,null,{"$f":"IF(ISBLANK(game!F325),\"\",MOD(game!F325,2))","v":""}]
[null,null,null,null,null,null,null,null,{"$f":"IF(ISBLANK(game!F326),\"\",MOD(game!F326,2))","v":""}]
[null,null,null,null,null,null,null,null,{"$f":"IF(ISBLANK(game!F327),\"\",MOD(game!F327,2))","v":""}]
[null,null,null,null,null,null,null,null,{"$f":"IF(ISBLANK(game!F328),\"\",MOD(game!F328,2))","v":""}]
[null,null,null,null,null,null,null,null,{"$f":"IF(ISBLANK(game!F329),\"\",MOD(game!F329,2))","v":""}]
[null,null,null,null,null,null,null,null,{"$f":"IF(ISBLANK(game!F330),\"\",MOD(game!F330,2))","v":""}]
[null,null,null,null,null,null,null,null,{"$f":"IF(ISBLANK(game!F331),\"\",MOD(game!F331,2))","v":""}]
[null,null,null,null,null,null,null,null,{"$f":"IF(ISBLANK(game!F332),\"\",MOD(game!F332,2))","v":""}]
[null,null,null,null,null,null,null,null,{"$f":"IF(ISBLANK(game!F333),\"\",MOD(game!F333,2))","v":""}]
[null,null,null,null,null,null,null,null,{"$f":"IF(ISBLANK(game!F334),\"\",MOD(game!F334,2))","v":""}]
[null,null,null,null,null,null,null,null,{"$f":"IF(ISBLANK(game!F335),\"\",MOD(game!F335,2))","v":""}]
[null,null,null,null,null,null,null,null,{"$f":"IF(ISBLANK(game!F336),\"\",MOD(game!F336,2))","v":""}]
[null,null,null,null,null,null,null,null,{"$f":"IF(ISBLANK(game!F337),\"\",MOD(game!F337,2))","v":""}]
[null,null,null,null,null,null,null,null,{"$f":"IF(ISBLANK(game!F338),\"\",MOD(game!F338,2))","v":""}]
[null,null,null,null,null,null,null,null,{"$f":"IF(ISBLANK(game!F339),\"\",MOD(game!F339,2))","v":""}]
[null,null,null,null,null,null,null,null,{"$f":"IF(ISBLANK(game!F340),\"\",MOD(game!F340,2))","v":""}]
[null,null,null,null,null,null,null,null,{"$f":"IF(ISBLANK(game!F341),\"\",MOD(game!F341,2))","v":""}]
[null,null,null,null,null,null,null,null,{"$f":"IF(ISBLANK(game!F342),\"\",MOD(game!F342,2))","v":""}]
[null,null,null,null,null,null,null,null,{"$f":"IF(ISBLANK(game!F343),\"\",MOD(game!F343,2))","v":""}]
[null,null,null,null,null,null,null,null,{"$f":"IF(ISBLANK(game!F344),\"\",MOD(game!F344,2))","v":""}]
[null,null,null,null,null,null,null,null,{"$f":"IF(ISBLANK(game!F345),\"\",MOD(game!F345,2))","v":""}]
[null,null,null,null,null,null,null,null,{"$f":"IF(ISBLANK(game!F346),\"\",MOD(game!F346,2))","v":""}]
[null,null,null,null,null,null,null,null,{"$f":"IF(ISBLANK(game!F347),\"\",MOD(game!F347,2))","v":""}]
[null,null,null,null,null,null,null,null,{"$f":"IF(ISBLANK(game!F348),\"\",MOD(game!F348,2))","v":""}]
[null,null,null,null,null,null,null,null,{"$f":"IF(ISBLANK(game!F349),\"\",MOD(game!F349,2))","v":""}]
[null,null,null,null,null,null,null,null,{"$f":"IF(ISBLANK(game!F350),\"\",MOD(game!F350,2))","v":""}]
[null,null,null,null,null,null,null,null,{"$f":"IF(ISBLANK(game!F351),\"\",MOD(game!F351,2))","v":""}]
[null,null,null,null,null,null,null,null,{"$f":"IF(ISBLANK(game!F352),\"\",MOD(game!F352,2))","v":""}]
[null,null,null,null,null,null,null,null,{"$f":"IF(ISBLANK(game!F353),\"\",MOD(game!F353,2))","v":""}]
[null,null,null,null,null,null,null,null,{"$f":"IF(ISBLANK(game!F354),\"\",MOD(game!F354,2))","v":""}]
[null,null,null,null,null,null,null,null,{"$f":"IF(ISBLANK(game!F355),\"\",MOD(game!F355,2))","v":""}]
[null,null,null,null,null,null,null,null,{"$f":"IF(ISBLANK(game!F356),\"\",MOD(game!F356,2))","v":""}]
[null,null,null,null,null,null,null,null,{"$f":"IF(ISBLANK(game!F357),\"\",MOD(game!F357,2))","v":""}]
[null,null,null,null,null,null,null,null,{"$f":"IF(ISBLANK(game!F358),\"\",MOD(game!F358,2))","v":""}]
[null,null,null,null,null,null,null,null,{"$f":"IF(ISBLANK(game!F359),\"\",MOD(game!F359,2))","v":""}]
[null,null,null,null,null,null,null,null,{"$f":"IF(ISBLANK(game!F360),\"\",MOD(game!F360,2))","v":""}]
[null,null,null,null,null,null,null,null,{"$f":"IF(ISBLANK(game!F361),\"\",MOD(game!F361,2))","v":""}]
[null,null,null,null,null,null,null,null,{"$f":"IF(ISBLANK(game!F362),\"\",MOD(game!F362,2))","v":""}]
[null,null,null,null,null,null,null,null,{"$f":"IF(ISBLANK(game!F363),\"\",MOD(game!F363,2))","v":""}]
[null,null,null,null,null,null,null,null,{"$f":"IF(ISBLANK(game!F364),\"\",MOD(game!F364,2))","v":""}]
[null,null,null,null,null,null,null,null,{"$f":"IF(ISBLANK(game!F365),\"\",MOD(game!F365,2))","v":""}]
[null,null,null,null,null,null,null,null,{"$f":"IF(ISBLANK(game!F366),\"\",MOD(game!F366,2))","v":""}]
[null,null,null,null,null,null,null,null,{"$f":"IF(ISBLANK(game!F367),\"\",MOD(game!F367,2))","v":""}]
[null,null,null,null,null,null,null,null,{"$f":"IF(ISBLANK(game!F368),\"\",MOD(game!F368,2))","v":""}]
[null,null,null,null,null,null,null,null,{"$f":"IF(ISBLANK(game!F369),\"\",MOD(game!F369,2))","v":""}]
[null,null,null,null,null,null,null,null,{"$f":"IF(ISBLANK(game!F370),\"\",MOD(game!F370,2))","v":""}]
[null,null,null,null,null,null,null,null,{"$f":"IF(ISBLANK(game!F371),\"\",MOD(game!F371,2))","v":""}]
[null,null,null,null,null,null,null,null,{"$f":"IF(ISBLANK(game!F372),\"\",MOD(game!F372,2))","v":""}]
[null,null,null,null,null,null,null,null,{"$f":"IF(ISBLANK(game!F373),\"\",MOD(game!F373,2))","v":""}]
[null,null,null,null,null,null,null,null,{"$f":"IF(ISBLANK(game!F374),\"\",MOD(game!F374,2))","v":""}]
[null,null,null,null,null,null,null,null,{"$f":"IF(ISBLANK(game!F375),\"\",MOD(game!F375,2))","v":""}]
[null,null,null,null,null,null,null,null,{"$f":"IF(ISBLANK(game!F376),\"\",MOD(game!F376,2))","v":""}]
[null,null,null,null,null,null,null,null,{"$f":"IF(ISBLANK(game!F377),\"\",MOD(game!F377,2))","v":""}]
[null,null,null,null,null,null,null,null,{"$f":"IF(ISBLANK(game!F378),\"\",MOD(game!F378,2))","v":""}]
[null,null,null,null,null,null,null,null,{"$f":"IF(ISBLANK(game!F379),\"\",MOD(game!F379,2))","v":""}]
[null,null,null,null,null,null,null,null,{"$f":"IF(ISBLANK(game!F380),\"\",MOD(game!F380,2))","v":""}]
[null,null,null,null,null,null,null,null,{"$f":"IF(ISBLANK(game!F381),\"\",MOD(game!F381,2))","v":""}]
[null,null,null,null,null,null,null,null,{"$f":"IF(ISBLANK(game!F382),\"\",MOD(game!F382,2))","v":""}]
[null,null,null,null,null,null,null,null,{"$f":"IF(ISBLANK(game!F383),\"\",MOD(game!F383,2))","v":""}]
[null,null,null,null,null,null,null,null,{"$f":"IF(ISBLANK(game!F384),\"\",MOD(game!F384,2))","v":""}]
[null,null,null,null,null,null,null,null,{"$f":"IF(ISBLANK(game!F385),\"\",MOD(game!F385,2))","v":""}]
[null,null,null,null,null,null,null,null,{"$f":"IF(ISBLANK(game!F386),\"\",MOD(game!F386,2))","v":""}]
[null,null,null,null,null,null,null,null,{"$f":"IF(ISBLANK(game!F387),\"\",MOD(game!F387,2))","v":""}]
[null,null,null,null,null,null,null,null,{"$f":"IF(ISBLANK(game!F388),\"\",MOD(game!F388,2))","v":""}]
[null,null,null,null,null,null,null,null,{"$f":"IF(ISBLANK(game!F389),\"\",MOD(game!F389,2))","v":""}]
[null,null,null,null,null,null,null,null,{"$f":"IF(ISBLANK(game!F390),\"\",MOD(game!F390,2))","v":""}]
[null,null,null,null,null,null,null,null,{"$f":"IF(ISBLANK(game!F391),\"\",MOD(game!F391,2))","v":""}]
[null,null,null,null,null,null,null,null,{"$f":"IF(ISBLANK(game!F392),\"\",MOD(game!F392,2))","v":""}]
[null,null,null,null,null,null,null,null,{"$f":"IF(ISBLANK(game!F393),\"\",MOD(game!F393,2))","v":""}]
[null,null,null,null,null,null,null,null,{"$f":"IF(ISBLANK(game!F394),\"\",MOD(game!F394,2))","v":""}]
[null,null,null,null,null,null,null,null,{"$f":"IF(ISBLANK(game!F395),\"\",MOD(game!F395,2))","v":""}]
[null,null,null,null,null,null,null,null,{"$f":"IF(ISBLANK(game!F396),\"\",MOD(game!F396,2))","v":""}]
[null,null,null,null,null,null,null,null,{"$f":"IF(ISBLANK(game!F397),\"\",MOD(game!F397,2))","v":""}]
[null,null,null,null,null,null,null,null,{"$f":"IF(ISBLANK(game!F398),\"\",MOD(game!F398,2))","v":""}]
[null,null,null,null,null,null,null,null,{"$f":"IF(ISBLANK(game!F399),\"\",MOD(game!F399,2))","v":""}]
[null,null,null,null,null,null,null,null,{"$f":"IF(ISBLANK(game!F400),\"\",MOD(game!F400,2))","v":""}]
[null,null,null,null,null,null,null,null,{"$f":"IF(ISBLANK(game!F401),\"\",MOD(game!F401,2))","v":""}]
[null,null,null,null,null,null,null,null,{"$f":"IF(ISBLANK(game!F402),\"\",MOD(game!F402,2))","v":""}]
[null,null,null,null,null,null,null,null,{"$f":"IF(ISBLANK(game!F403),\"\",MOD(game!F403,2))","v":""}]
[null,null,null,null,null,null,null,null,{"$f":"IF(ISBLANK(game!F404),\"\",MOD(game!F404,2))","v":""}]
[null,null,null,null,null,null,null,null,{"$f":"IF(ISBLANK(game!F405),\"\",MOD(game!F405,2))","v":""}]
[null,null,null,null,null,null,null,null,{"$f":"IF(ISBLANK(game!F406),\"\",MOD(game!F406,2))","v":""}]
[null,null,null,null,null,null,null,null,{"$f":"IF(ISBLANK(game!F407),\"\",MOD(game!F407,2))","v":""}]
[null,null,null,null,null,null,null,null,{"$f":"IF(ISBLANK(game!F408),\"\",MOD(game!F408,2))","v":""}]
[null,null,null,null,null,null,null,null,{"$f":"IF(ISBLANK(game!F409),\"\",MOD(game!F409,2))","v":""}]
[null,null,null,null,null,null,null,null,{"$f":"IF(ISBLANK(game!F410),\"\",MOD(game!F410,2))","v":""}]
[null,null,null,null,null,null,null,null,{"$f":"IF(ISBLANK(game!F411),\"\",MOD(game!F411,2))","v":""}]
[null,null,null,null,null,null,null,null,{"$f":"IF(ISBLANK(game!F412),\"\",MOD(game!F412,2))","v":""}]
[null,null,null,null,null,null,null,null,{"$f":"IF(ISBLANK(game!F413),\"\",MOD(game!F413,2))","v":""}]
[null,null,null,null,null,null,null,null,{"$f":"IF(ISBLANK(game!F414),\"\",MOD(game!F414,2))","v":""}]
[null,null,null,null,null,null,null,null,{"$f":"IF(ISBLANK(game!F415),\"\",MOD(game!F415,2))","v":""}]
[null,null,null,null,null,null,null,null,{"$f":"IF(ISBLANK(game!F416),\"\",MOD(game!F416,2))","v":""}]
[null,null,null,null,null,null,null,null,{"$f":"IF(ISBLANK(game!F417),\"\",MOD(game!F417,2))","v":""}]
[null,null,null,null,null,null,null,null,{"$f":"IF(ISBLANK(game!F418),\"\",MOD(game!F418,2))","v":""}]
[null,null,null,null,null,null,null,null,{"$f":"IF(ISBLANK(game!F419),\"\",MOD(game!F419,2))","v":""}]
[null,null,null,null,null,null,null,null,{"$f":"IF(ISBLANK(game!F420),\"\",MOD(game!F420,2))","v":""}]
[null,null,null,null,null,null,null,null,{"$f":"IF(ISBLANK(game!F421),\"\",MOD(game!F421,2))","v":""}]
[null,null,null,null,null,null,null,null,{"$f":"IF(ISBLANK(game!F422),\"\",MOD(game!F422,2))","v":""}]
[null,null,null,null,null,null,null,null,{"$f":"IF(ISBLANK(game!F423),\"\",MOD(game!F423,2))","v":""}]
[null,null,null,null,null,null,null,null,{"$f":"IF(ISBLANK(game!F424),\"\",MOD(game!F424,2))","v":""}]
[null,null,null,null,null,null,null,null,{"$f":"IF(ISBLANK(game!F425),\"\",MOD(game!F425,2))","v":""}]
[null,null,null,null,null,null,null,null,{"$f":"IF(ISBLANK(game!F426),\"\",MOD(game!F426,2))","v":""}]
[null,null,null,null,null,null,null,null,{"$f":"IF(ISBLANK(game!F427),\"\",MOD(game!F427,2))","v":""}]
[null,null,null,null,null,null,null,null,{"$f":"IF(ISBLANK(game!F428),\"\",MOD(game!F428,2))","v":""}]
[null,null,null,null,null,null,null,null,{"$f":"IF(ISBLANK(game!F429),\"\",MOD(game!F429,2))","v":""}]
[null,null,null,null,null,null,null,null,{"$f":"IF(ISBLANK(game!F430),\"\",MOD(game!F430,2))","v":""}]
[null,null,null,null,null,null,null,null,{"$f":"IF(ISBLANK(game!F431),\"\",MOD(game!F431,2))","v":""}]
[null,null,null,null,null,null,null,null,{"$f":"IF(ISBLANK(game!F432),\"\",MOD(game!F432,2))","v":""}]
[null,null,null,null,null,null,null,null,{"$f":"IF(ISBLANK(game!F433),\"\",MOD(game!F433,2))","v":""}]
[null,null,null,null,null,null,null,null,{"$f":"IF(ISBLANK(game!F434),\"\",MOD(game!F434,2))","v":""}]
[null,null,null,null,null,null,null,null,{"$f":"IF(ISBLANK(game!F435),\"\",MOD(game!F435,2))","v":""}]
[null,null,null,null,null,null,null,null,{"$f":"IF(ISBLANK(game!F436),\"\",MOD(game!F436,2))","v":""}]
[null,null,null,null,null,null,null,null,{"$f":"IF(ISBLANK(game!F437),\"\",MOD(game!F437,2))","v":""}]
[null,null,null,null,null,null,null,null,{"$f":"IF(ISBLANK(game!F438),\"\",MOD(game!F438,2))","v":""}]
[null,null,null,null,null,null,null,null,{"$f":"IF(ISBLANK(game!F439),\"\",MOD(game!F439,2))","v":""}]
[null,null,null,null,null,null,null,null,{"$f":"IF(ISBLANK(game!F440),\"\",MOD(game!F440,2))","v":""}]
[null,null,null,null,null,null,null,null,{"$f":"IF(ISBLANK(game!F441),\"\",MOD(game!F441,2))","v":""}]
[null,null,null,null,null,null,null,null,{"$f":"IF(ISBLANK(game!F442),\"\",MOD(game!F442,2))","v":""}]
[null,null,null,null,null,null,null,null,{"$f":"IF(ISBLANK(game!F443),\"\",MOD(game!F443,2))","v":""}]
[null,null,null,null,null,null,null,null,{"$f":"IF(ISBLANK(game!F444),\"\",MOD(game!F444,2))","v":""}]
[null,null,null,null,null,null,null,null,{"$f":"IF(ISBLANK(game!F445),\"\",MOD(game!F445,2))","v":""}]
[null,null,null,null,null,null,null,null,{"$f":"IF(ISBLANK(game!F446),\"\",MOD(game!F446,2))","v":""}]
[null,null,null,null,null,null,null,null,{"$f":"IF(ISBLANK(game!F447),\"\",MOD(game!F447,2))","v":""}]
[null,null,null,null,null,null,null,null,{"$f":"IF(ISBLANK(game!F448),\"\",MOD(game!F448,2))","v":""}]
[null,null,null,null,null,null,null,null,{"$f":"IF(ISBLANK(game!F449),\"\",MOD(game!F449,2))","v":""}]
[null,null,null,null,null,null,null,null,{"$f":"IF(ISBLANK(game!F450),\"\",MOD(game!F450,2))","v":""}]
[null,null,null,null,null,null,null,null,{"$f":"IF(ISBLANK(game!F451),\"\",MOD(game!F451,2))","v":""}]
[null,null,null,null,null,null,null,null,{"$f":"IF(ISBLANK(game!F452),\"\",MOD(game!F452,2))","v":""}]
[null,null,null,null,null,null,null,null,{"$f":"IF(ISBLANK(game!F453),\"\",MOD(game!F453,2))","v":""}]
[null,null,null,null,null,null,null,null,{"$f":"IF(ISBLANK(game!F454),\"\",MOD(game!F454,2))","v":""}]
[null,null,null,null,null,null,null,null,{"$f":"IF(ISBLANK(game!F455),\"\",MOD(game!F455,2))","v":""}]
[null,null,null,null,null,null,null,null,{"$f":"IF(ISBLANK(game!F456),\"\",MOD(game!F456,2))","v":""}]
[null,null,null,null,null,null,null,null,{"$f":"IF(ISBLANK(game!F457),\"\",MOD(game!F457,2))","v":""}]
[null,null,null,null,null,null,null,null,{"$f":"IF(ISBLANK(game!F458),\"\",MOD(game!F458,2))","v":""}]
[null,null,null,null,null,null,null,null,{"$f":"IF(ISBLANK(game!F459),\"\",MOD(game!F459,2))","v":""}]
[null,null,null,null,null,null,null,null,{"$f":"IF(ISBLANK(game!F460),\"\",MOD(game!F460,2))","v":""}]
[null,null,null,null,null,null,null,null,{"$f":"IF(ISBLANK(game!F461),\"\",MOD(game!F461,2))","v":""}]
[null,null,null,null,null,null,null,null,{"$f":"IF(ISBLANK(game!F462),\"\",MOD(game!F462,2))","v":""}]
[null,null,null,null,null,null,null,null,{"$f":"IF(ISBLANK(game!F463),\"\",MOD(game!F463,2))","v":""}]
[null,null,null,null,null,null,null,null,{"$f":"IF(ISBLANK(game!F464),\"\",MOD(game!F464,2))","v":""}]
[null,null,null,null,null,null,null,null,{"$f":"IF(ISBLANK(game!F465),\"\",MOD(game!F465,2))","v":""}]
[null,null,null,null,null,null,null,null,{"$f":"IF(ISBLANK(game!F466),\"\",MOD(game!F466,2))","v":""}]
[null,null,null,null,null,null,null,null,{"$f":"IF(ISBLANK(game!F467),\"\",MOD(game!F467,2))","v":""}]
[null,null,null,null,null,null,null,null,{"$f":"IF(ISBLANK(game!F468),\"\",MOD(game!F468,2))","v":""}]
[null,null,null,null,null,null,null,null,{"$f":"IF(ISBLANK(game!F469),\"\",MOD(game!F469,2))","v":""}]
[null,null,null,null,null,null,null,null,{"$f":"IF(ISBLANK(game!F470),\"\",MOD(game!F470,2))","v":""}]
[null,null,null,null,null,null,null,null,{"$f":"IF(ISBLANK(game!F471),\"\",MOD(game!F471,2))","v":""}]
[null,null,null,null,null,null,null,null,{"$f":"IF(ISBLANK(game!F472),\"\",MOD(game!F472,2))","v":""}]
[null,null,null,null,null,null,null,null,{"$f":"IF(ISBLANK(game!F473),\"\",MOD(game!F473,2))","v":""}]
[null,null,null,null,null,null,null,null,{"$f":"IF(ISBLANK(game!F474),\"\",MOD(game!F474,2))","v":""}]
[null,null,null,null,null,null,null,null,{"$f":"IF(ISBLANK(game!F475),\"\",MOD(game!F475,2))","v":""}]
[null,null,null,null,null,null,null,null,{"$f":"IF(ISBLANK(game!F476),\"\",MOD(game!F476,2))","v":""}]
[null,null,null,null,null,null,null,null,{"$f":"IF(ISBLANK(game!F477),\"\",MOD(game!F477,2))","v":""}]
[null,null,null,null,null,null,null,null,{"$f":"IF(ISBLANK(game!F478),\"\",MOD(game!F478,2))","v":""}]
[null,null,null,null,null,null,null,null,{"$f":"IF(ISBLANK(game!F479),\"\",MOD(game!F479,2))","v":""}]
[null,null,null,null,null,null,null,null,{"$f":"IF(ISBLANK(game!F480),\"\",MOD(game!F480,2))","v":""}]
[null,null,null,null,null,null,null,null,{"$f":"IF(ISBLANK(game!F481),\"\",MOD(game!F481,2))","v":""}]
[null,null,null,null,null,null,null,null,{"$f":"IF(ISBLANK(game!F482),\"\",MOD(game!F482,2))","v":""}]
[null,null,null,null,null,null,null,null,{"$f":"IF(ISBLANK(game!F483),\"\",MOD(game!F483,2))","v":""}]
[null,null,null,null,null,null,null,null,{"$f":"IF(ISBLANK(game!F484),\"\",MOD(game!F484,2))","v":""}]
[null,null,null,null,null,null,null,null,{"$f":"IF(ISBLANK(game!F485),\"\",MOD(game!F485,2))","v":""}]
[null,null,null,null,null,null,null,null,{"$f":"IF(ISBLANK(game!F486),\"\",MOD(game!F486,2))","v":""}]
[null,null,null,null,null,null,null,null,{"$f":"IF(ISBLANK(game!F487),\"\",MOD(game!F487,2))","v":""}]
[null,null,null,null,null,null,null,null,{"$f":"IF(ISBLANK(game!F488),\"\",MOD(game!F488,2))","v":""}]
[null,null,null,null,null,null,null,null,{"$f":"IF(ISBLANK(game!F489),\"\",MOD(game!F489,2))","v":""}]
[null,null,null,null,null,null,null,null,{"$f":"IF(ISBLANK(game!F490),\"\",MOD(game!F490,2))","v":""}]
[null,null,null,null,null,null,null,null,{"$f":"IF(ISBLANK(game!F491),\"\",MOD(game!F491,2))","v":""}]
[null,null,null,null,null,null,null,null,{"$f":"IF(ISBLANK(game!F492),\"\",MOD(game!F492,2))","v":""}]
[null,null,null,null,null,null,null,null,{"$f":"IF(ISBLANK(game!F493),\"\",MOD(game!F493,2))","v":""}]
[null,null,null,null,null,null,null,null,{"$f":"IF(ISBLANK(game!F494),\"\",MOD(game!F494,2))","v":""}]
[null,null,null,null,null,null,null,null,{"$f":"IF(ISBLANK(game!F495),\"\",MOD(game!F495,2))","v":""}]
[null,null,null,null,null,null,null,null,{"$f":"IF(ISBLANK(game!F496),\"\",MOD(game!F496,2))","v":""}]
[null,null,null,null,null,null,null,null,{"$f":"IF(ISBLANK(game!F497),\"\",MOD(game!F497,2))","v":""}]
[null,null,null,null,null,null,null,null,{"$f":"IF(ISBLANK(game!F498),\"\",MOD(game!F498,2))","v":""}]
[null,null,null,null,null,null,null,null,{"$f":"IF(ISBLANK(game!F499),\"\",MOD(game!F499,2))","v":""}]
[null,null,null,null,null,null,null,null,{"$f":"IF(ISBLANK(game!F500),\"\",MOD(game!F500,2))","v":""}]
[null,null,null,null,null,null,null,null,{"$f":"IF(ISBLANK(game!F501),\"\",MOD(game!F501,2))","v":""}]
[null,null,null,null,null,null,null,null,{"$f":"IF(ISBLANK(game!F502),\"\",MOD(game!F502,2))","v":""}]
[null,null,null,null,null,null,null,null,{"$f":"IF(ISBLANK(game!F503),\"\",MOD(game!F503,2))","v":""}]
[null,null,null,null,null,null,null,null,{"$f":"IF(ISBLANK(game!F504),\"\",MOD(game!F504,2))","v":""}]
[null,null,null,null,null,null,null,null,{"$f":"IF(ISBLANK(game!F505),\"\",MOD(game!F505,2))","v":""}]
[null,null,null,null,null,null,null,null,{"$f":"IF(ISBLANK(game!F506),\"\",MOD(game!F506,2))","v":""}]
[null,null,null,null,null,null,null,null,{"$f":"IF(ISBLANK(game!F507),\"\",MOD(game!F507,2))","v":""}]
[null,null,null,null,null,null,null,null,{"$f":"IF(ISBLANK(game!F508),\"\",MOD(game!F508,2))","v":""}]
[null,null,null,null,null,null,null,null,{"$f":"IF(ISBLANK(game!F509),\"\",MOD(game!F509,2))","v":""}]
[null,null,null,null,null,null,null,null,{"$f":"IF(ISBLANK(game!F510),\"\",MOD(game!F510,2))","v":""}]
[null,null,null,null,null,null,null,null,{"$f":"IF(ISBLANK(game!F511),\"\",MOD(game!F511,2))","v":""}]
[null,null,null,null,null,null,null,null,{"$f":"IF(ISBLANK(game!F512),\"\",MOD(game!F512,2))","v":""}]
[null,null,null,null,null,null,null,null,{"$f":"IF(ISBLANK(game!F513),\"\",MOD(game!F513,2))","v":""}]
[null,null,null,null,null,null,null,null,{"$f":"IF(ISBLANK(game!F514),\"\",MOD(game!F514,2))","v":""}]
[null,null,null,null,null,null,null,null,{"$f":"IF(ISBLANK(game!F515),\"\",MOD(game!F515,2))","v":""}]
[null,null,null,null,null,null,null,null,{"$f":"IF(ISBLANK(game!F516),\"\",MOD(game!F516,2))","v":""}]
[null,null,null,null,null,null,null,null,{"$f":"IF(ISBLANK(game!F517),\"\",MOD(game!F517,2))","v":""}]
[null,null,null,null,null,null,null,null,{"$f":"IF(ISBLANK(game!F518),\"\",MOD(game!F518,2))","v":""}]
[null,null,null,null,null,null,null,null,{"$f":"IF(ISBLANK(game!F519),\"\",MOD(game!F519,2))","v":""}]
[null,null,null,null,null,null,null,null,{"$f":"IF(ISBLANK(game!F520),\"\",MOD(game!F520,2))","v":""}]
[null,null,null,null,null,null,null,null,{"$f":"IF(ISBLANK(game!F521),\"\",MOD(game!F521,2))","v":""}]
[null,null,null,null,null,null,null,null,{"$f":"IF(ISBLANK(game!F522),\"\",MOD(game!F522,2))","v":""}]
[null,null,null,null,null,null,null,null,{"$f":"IF(ISBLANK(game!F523),\"\",MOD(game!F523,2))","v":""}]
[null,null,null,null,null,null,null,null,{"$f":"IF(ISBLANK(game!F524),\"\",MOD(game!F524,2))","v":""}]
[null,null,null,null,null,null,null,null,{"$f":"IF(ISBLANK(game!F525),\"\",MOD(game!F525,2))","v":""}]
[null,null,null,null,null,null,null,null,{"$f":"IF(ISBLANK(game!F526),\"\",MOD(game!F526,2))","v":""}]
[null,null,null,null,null,null,null,null,{"$f":"IF(ISBLANK(game!F527),\"\",MOD(game!F527,2))","v":""}]
[null,null,null,null,null,null,null,null,{"$f":"IF(ISBLANK(game!F528),\"\",MOD(game!F528,2))","v":""}]
[null,null,null,null,null,null,null,null,{"$f":"IF(ISBLANK(game!F529),\"\",MOD(game!F529,2))","v":""}]
[null,null,null,null,null,null,null,null,{"$f":"IF(ISBLANK(game!F530),\"\",MOD(game!F530,2))","v":""}]
[null,null,null,null,null,null,null,null,{"$f":"IF(ISBLANK(game!F531),\"\",MOD(game!F531,2))","v":""}]
[null,null,null,null,null,null,null,null,{"$f":"IF(ISBLANK(game!F532),\"\",MOD(game!F532,2))","v":""}]
[null,null,null,null,null,null,null,null,{"$f":"IF(ISBLANK(game!F533),\"\",MOD(game!F533,2))","v":""}]
[null,null,null,null,null,null,null,null,{"$f":"IF(ISBLANK(game!F534),\"\",MOD(game!F534,2))","v":""}]
[null,null,null,null,null,null,null,null,{"$f":"IF(ISBLANK(game!F535),\"\",MOD(game!F535,2))","v":""}]
[null,null,null,null,null,null,null,null,{"$f":"IF(ISBLANK(game!F536),\"\",MOD(game!F536,2))","v":""}]
[null,null,null,null,null,null,null,null,{"$f":"IF(ISBLANK(game!F537),\"\",MOD(game!F537,2))","v":""}]
[null,null,null,null,null,null,null,null,{"$f":"IF(ISBLANK(game!F538),\"\",MOD(game!F538,2))","v":""}]
[null,null,null,null,null,null,null,null,{"$f":"IF(ISBLANK(game!F539),\"\",MOD(game!F539,2))","v":""}]
[null,null,null,null,null,null,null,null,{"$f":"IF(ISBLANK(game!F540),\"\",MOD(game!F540,2))","v":""}]
[null,null,null,null,null,null,null,null,{"$f":"IF(ISBLANK(game!F541),\"\",MOD(game!F541,2))","v":""}]
[null,null,null,null,null,null,null,null,{"$f":"IF(ISBLANK(game!F542),\"\",MOD(game!F542,2))","v":""}]
[null,null,null,null,null,null,null,null,{"$f":"IF(ISBLANK(game!F543),\"\",MOD(game!F543,2))","v":""}]
[null,null,null,null,null,null,null,null,{"$f":"IF(ISBLANK(game!F544),\"\",MOD(game!F544,2))","v":""}]
[null,null,null,null,null,null,null,null,{"$f":"IF(ISBLANK(game!F545),\"\",MOD(game!F545,2))","v":""}]
[null,null,null,null,null,null,null,null,{"$f":"IF(ISBLANK(game!F546),\"\",MOD(game!F546,2))","v":""}]
[null,null,null,null,null,null,null,null,{"$f":"IF(ISBLANK(game!F547),\"\",MOD(game!F547,2))","v":""}]
[null,null,null,null,null,null,null,null,{"$f":"IF(ISBLANK(game!F548),\"\",MOD(game!F548,2))","v":""}]
[null,null,null,null,null,null,null,null,{"$f":"IF(ISBLANK(game!F549),\"\",MOD(game!F549,2))","v":""}]
[null,null,null,null,null,null,null,null,{"$f":"IF(ISBLANK(game!F550),\"\",MOD(game!F550,2))","v":""}]
[null,null,null,null,null,null,null,null,{"$f":"IF(ISBLANK(game!F551),\"\",MOD(game!F551,2))","v":""}]
[null,null,null,null,null,null,null,null,{"$f":"IF(ISBLANK(game!F552),\"\",MOD(game!F552,2))","v":""}]
[null,null,null,null,null,null,null,null,{"$f":"IF(ISBLANK(game!F553),\"\",MOD(game!F553,2))","v":""}]
[null,null,null,null,null,null,null,null,{"$f":"IF(ISBLANK(game!F554),\"\",MOD(game!F554,2))","v":""}]
[null,null,null,null,null,null,null,null,{"$f":"IF(ISBLANK(game!F555),\"\",MOD(game!F555,2))","v":""}]
[null,null,null,null,null,null,null,null,{"$f":"IF(ISBLANK(game!F556),\"\",MOD(game!F556,2))","v":""}]
[null,null,null,null,null,null,null,null,{"$f":"IF(ISBLANK(game!F557),\"\",MOD(game!F557,2))","v":""}]
[null,null,null,null,null,null,null,null,{"$f":"IF(ISBLANK(game!F558),\"\",MOD(game!F558,2))","v":""}]
[null,null,null,null,null,null,null,null,{"$f":"IF(ISBLANK(game!F559),\"\",MOD(game!F559,2))","v":""}]
[null,null,null,null,null,null,null,null,{"$f":"IF(ISBLANK(game!F560),\"\",MOD(game!F560,2))","v":""}]
[null,null,null,null,null,null,null,null,{"$f":"IF(ISBLANK(game!F561),\"\",MOD(game!F561,2))","v":""}]
[null,null,null,null,null,null,null,null,{"$f":"IF(ISBLANK(game!F562),\"\",MOD(game!F562,2))","v":""}]
[null,null,null,null,null,null,null,null,{"$f":"IF(ISBLANK(game!F563),\"\",MOD(game!F563,2))","v":""}]
[null,null,null,null,null,null,null,null,{"$f":"IF(ISBLANK(game!F564),\"\",MOD(game!F564,2))","v":""}]
[null,null,null,null,null,null,null,null,{"$f":"IF(ISBLANK(game!F565),\"\",MOD(game!F565,2))","v":""}]
[null,null,null,null,null,null,null,null,{"$f":"IF(ISBLANK(game!F566),\"\",MOD(game!F566,2))","v":""}]
[null,null,null,null,null,null,null,null,{"$f":"IF(ISBLANK(game!F567),\"\",MOD(game!F567,2))","v":""}]
[null,null,null,null,null,null,null,null,{"$f":"IF(ISBLANK(game!F568),\"\",MOD(game!F568,2))","v":""}]
[null,null,null,null,null,null,null,null,{"$f":"IF(ISBLANK(game!F569),\"\",MOD(game!F569,2))","v":""}]
[null,null,null,null,null,null,null,null,{"$f":"IF(ISBLANK(game!F570),\"\",MOD(game!F570,2))","v":""}]
[null,null,null,null,null,null,null,null,{"$f":"IF(ISBLANK(game!F571),\"\",MOD(game!F571,2))","v":""}]
[null,null,null,null,null,null,null,null,{"$f":"IF(ISBLANK(game!F572),\"\",MOD(game!F572,2))","v":""}]
[null,null,null,null,null,null,null,null,{"$f":"IF(ISBLANK(game!F573),\"\",MOD(game!F573,2))","v":""}]
[null,null,null,null,null,null,null,null,{"$f":"IF(ISBLANK(game!F574),\"\",MOD(game!F574,2))","v":""}]
[null,null,null,null,null,null,null,null,{"$f":"IF(ISBLANK(game!F575),\"\",MOD(game!F575,2))","v":""}]
[null,null,null,null,null,null,null,null,{"$f":"IF(ISBLANK(game!F576),\"\",MOD(game!F576,2))","v":""}]
[null,null,null,null,null,null,null,null,{"$f":"IF(ISBLANK(game!F577),\"\",MOD(game!F577,2))","v":""}]
[null,null,null,null,null,null,null,null,{"$f":"IF(ISBLANK(game!F578),\"\",MOD(game!F578,2))","v":""}]
[null,null,null,null,null,null,null,null,{"$f":"IF(ISBLANK(game!F579),\"\",MOD(game!F579,2))","v":""}]
[null,null,null,null,null,null,null,null,{"$f":"IF(ISBLANK(game!F580),\"\",MOD(game!F580,2))","v":""}]
[null,null,null,null,null,null,null,null,{"$f":"IF(ISBLANK(game!F581),\"\",MOD(game!F581,2))","v":""}]
[null,null,null,null,null,null,null,null,{"$f":"IF(ISBLANK(game!F582),\"\",MOD(game!F582,2))","v":""}]
[null,null,null,null,null,null,null,null,{"$f":"IF(ISBLANK(game!F583),\"\",MOD(game!F583,2))","v":""}]
[null,null,null,null,null,null,null,null,{"$f":"IF(ISBLANK(game!F584),\"\",MOD(game!F584,2))","v":""}]
[null,null,null,null,null,null,null,null,{"$f":"IF(ISBLANK(game!F585),\"\",MOD(game!F585,2))","v":""}]
[null,null,null,null,null,null,null,null,{"$f":"IF(ISBLANK(game!F586),\"\",MOD(game!F586,2))","v":""}]
[null,null,null,null,null,null,null,null,{"$f":"IF(ISBLANK(game!F587),\"\",MOD(game!F587,2))","v":""}]
[null,null,null,null,null,null,null,null,{"$f":"IF(ISBLANK(game!F588),\"\",MOD(game!F588,2))","v":""}]
[null,null,null,null,null,null,null,null,{"$f":"IF(ISBLANK(game!F589),\"\",MOD(game!F589,2))","v":""}]
[null,null,null,null,null,null,null,null,{"$f":"IF(ISBLANK(game!F590),\"\",MOD(game!F590,2))","v":""}]
[null,null,null,null,null,null,null,null,{"$f":"IF(ISBLANK(game!F591),\"\",MOD(game!F591,2))","v":""}]
[null,null,null,null,null,null,null,null,{"$f":"IF(ISBLANK(game!F592),\"\",MOD(game!F592,2))","v":""}]
[null,null,null,null,null,null,null,null,{"$f":"IF(ISBLANK(game!F593),\"\",MOD(game!F593,2))","v":""}]
[null,null,null,null,null,null,null,null,{"$f":"IF(ISBLANK(game!F594),\"\",MOD(game!F594,2))","v":""}]
[null,null,null,null,null,null,null,null,{"$f":"IF(ISBLANK(game!F595),\"\",MOD(game!F595,2))","v":""}]
[null,null,null,null,null,null,null,null,{"$f":"IF(ISBLANK(game!F596),\"\",MOD(game!F596,2))","v":""}]
[null,null,null,null,null,null,null,null,{"$f":"IF(ISBLANK(game!F597),\"\",MOD(game!F597,2))","v":""}]
[null,null,null,null,null,null,null,null,{"$f":"IF(ISBLANK(game!F598),\"\",MOD(game!F598,2))","v":""}]
[null,null,null,null,null,null,null,null,{"$f":"IF(ISBLANK(game!F599),\"\",MOD(game!F599,2))","v":""}]
[null,null,null,null,null,null,null,null,{"$f":"IF(ISBLANK(game!F600),\"\",MOD(game!F600,2))","v":""}]
[null,null,null,null,null,null,null,null,{"$f":"IF(ISBLANK(game!F601),\"\",MOD(game!F601,2))","v":""}]
[null,null,null,null,null,null,null,null,{"$f":"IF(ISBLANK(game!F602),\"\",MOD(game!F602,2))","v":""}]
[null,null,null,null,null,null,null,null,{"$f":"IF(ISBLANK(game!F603),\"\",MOD(game!F603,2))","v":""}]
[null,null,null,null,null,null,null,null,{"$f":"IF(ISBLANK(game!F604),\"\",MOD(game!F604,2))","v":""}]
[null,null,null,null,null,null,null,null,{"$f":"IF(ISBLANK(game!F605),\"\",MOD(game!F605,2))","v":""}]
[null,null,null,null,null,null,null,null,{"$f":"IF(ISBLANK(game!F606),\"\",MOD(game!F606,2))","v":""}]
[null,null,null,null,null,null,null,null,{"$f":"IF(ISBLANK(game!F607),\"\",MOD(game!F607,2))","v":""}]
[null,null,null,null,null,null,null,null,{"$f":"IF(ISBLANK(game!F608),\"\",MOD(game!F608,2))","v":""}]
[null,null,null,null,null,null,null,null,{"$f":"IF(ISBLANK(game!F609),\"\",MOD(game!F609,2))","v":""}]
[null,null,null,null,null,null,null,null,{"$f":"IF(ISBLANK(game!F610),\"\",MOD(game!F610,2))","v":""}]
[null,null,null,null,null,null,null,null,{"$f":"IF(ISBLANK(game!F611),\"\",MOD(game!F611,2))","v":""}]
[null,null,null,null,null,null,null,null,{"$f":"IF(ISBLANK(game!F612),\"\",MOD(game!F612,2))","v":""}]
[null,null,null,null,null,null,null,null,{"$f":"IF(ISBLANK(game!F613),\"\",MOD(game!F613,2))","v":""}]
[null,null,null,null,null,null,null,null,{"$f":"IF(ISBLANK(game!F614),\"\",MOD(game!F614,2))","v":""}]
[null,null,null,null,null,null,null,null,{"$f":"IF(ISBLANK(game!F615),\"\",MOD(game!F615,2))","v":""}]
[null,null,null,null,null,null,null,null,{"$f":"IF(ISBLANK(game!F616),\"\",MOD(game!F616,2))","v":""}]
[null,null,null,null,null,null,null,null,{"$f":"IF(ISBLANK(game!F617),\"\",MOD(game!F617,2))","v":""}]
[null,null,null,null,null,null,null,null,{"$f":"IF(ISBLANK(game!F618),\"\",MOD(game!F618,2))","v":""}]
[null,null,null,null,null,null,null,null,{"$f":"IF(ISBLANK(game!F619),\"\",MOD(game!F619,2))","v":""}]
[null,null,null,null,null,null,null,null,{"$f":"IF(ISBLANK(game!F620),\"\",MOD(game!F620,2))","v":""}]
[null,null,null,null,null,null,null,null,{"$f":"IF(ISBLANK(game!F621),\"\",MOD(game!F621,2))","v":""}]
[null,null,null,null,null,null,null,null,{"$f":"IF(ISBLANK(game!F622),\"\",MOD(game!F622,2))","v":""}]
[null,null,null,null,null,null,null,null,{"$f":"IF(ISBLANK(game!F623),\"\",MOD(game!F623,2))","v":""}]
[null,null,null,null,null,null,null,null,{"$f":"IF(ISBLANK(game!F624),\"\",MOD(game!F624,2))","v":""}]
[null,null,null,null,null,null,null,null,{"$f":"IF(ISBLANK(game!F625),\"\",MOD(game!F625,2))","v":""}]
[null,null,null,null,null,null,null,null,{"$f":"IF(ISBLANK(game!F626),\"\",MOD(game!F626,2))","v":""}]
[null,null,null,null,null,null,null,null,{"$f":"IF(ISBLANK(game!F627),\"\",MOD(game!F627,2))","v":""}]
[null,null,null,null,null,null,null,null,{"$f":"IF(ISBLANK(game!F628),\"\",MOD(game!F628,2))","v":""}]
[null,null,null,null,null,null,null,null,{"$f":"IF(ISBLANK(game!F629),\"\",MOD(game!F629,2))","v":""}]
[null,null,null,null,null,null,null,null,{"$f":"IF(ISBLANK(game!F630),\"\",MOD(game!F630,2))","v":""}]
[null,null,null,null,null,null,null,null,{"$f":"IF(ISBLANK(game!F631),\"\",MOD(game!F631,2))","v":""}]
[null,null,null,null,null,null,null,null,{"$f":"IF(ISBLANK(game!F632),\"\",MOD(game!F632,2))","v":""}]
[null,null,null,null,null,null,null,null,{"$f":"IF(ISBLANK(game!F633),\"\",MOD(game!F633,2))","v":""}]
[null,null,null,null,null,null,null,null,{"$f":"IF(ISBLANK(game!F634),\"\",MOD(game!F634,2))","v":""}]
[null,null,null,null,null,null,null,null,{"$f":"IF(ISBLANK(game!F635),\"\",MOD(game!F635,2))","v":""}]
[null,null,null,null,null,null,null,null,{"$f":"IF(ISBLANK(game!F636),\"\",MOD(game!F636,2))","v":""}]
[null,null,null,null,null,null,null,null,{"$f":"IF(ISBLANK(game!F637),\"\",MOD(game!F637,2))","v":""}]
[null,null,null,null,null,null,null,null,{"$f":"IF(ISBLANK(game!F638),\"\",MOD(game!F638,2))","v":""}]
[null,null,null,null,null,null,null,null,{"$f":"IF(ISBLANK(game!F639),\"\",MOD(game!F639,2))","v":""}]
[null,null,null,null,null,null,null,null,{"$f":"IF(ISBLANK(game!F640),\"\",MOD(game!F640,2))","v":""}]
[null,null,null,null,null,null,null,null,{"$f":"IF(ISBLANK(game!F641),\"\",MOD(game!F641,2))","v":""}]
[null,null,null,null,null,null,null,null,{"$f":"IF(ISBLANK(game!F642),\"\",MOD(game!F642,2))","v":""}]
[null,null,null,null,null,null,null,null,{"$f":"IF(ISBLANK(game!F643),\"\",MOD(game!F643,2))","v":""}]
[null,null,null,null,null,null,null,null,{"$f":"IF(ISBLANK(game!F644),\"\",MOD(game!F644,2))","v":""}]
[null,null,null,null,null,null,null,null,{"$f":"IF(ISBLANK(game!F645),\"\",MOD(game!F645,2))","v":""}]
[null,null,null,null,null,null,null,null,{"$f":"IF(ISBLANK(game!F646),\"\",MOD(game!F646,2))","v":""}]
[null,null,null,null,null,null,null,null,{"$f":"IF(ISBLANK(game!F647),\"\",MOD(game!F647,2))","v":""}]
[null,null,null,null,null,null,null,null,{"$f":"IF(ISBLANK(game!F648),\"\",MOD(game!F648,2))","v":""}]
[null,null,null,null,null,null,null,null,{"$f":"IF(ISBLANK(game!F649),\"\",MOD(game!F649,2))","v":""}]
[null,null,null,null,null,null,null,null,{"$f":"IF(ISBLANK(game!F650),\"\",MOD(game!F650,2))","v":""}]
[null,null,null,null,null,null,null,null,{"$f":"IF(ISBLANK(game!F651),\"\",MOD(game!F651,2))","v":""}]
[null,null,null,null,null,null,null,null,{"$f":"IF(ISBLANK(game!F652),\"\",MOD(game!F652,2))","v":""}]
[null,null,null,null,null,null,null,null,{"$f":"IF(ISBLANK(game!F653),\"\",MOD(game!F653,2))","v":""}]
[null,null,null,null,null,null,null,null,{"$f":"IF(ISBLANK(game!F654),\"\",MOD(game!F654,2))","v":""}]
[null,null,null,null,null,null,null,null,{"$f":"IF(ISBLANK(game!F655),\"\",MOD(game!F655,2))","v":""}]
[null,null,null,null,null,null,null,null,{"$f":"IF(ISBLANK(game!F656),\"\",MOD(game!F656,2))","v":""}]
[null,null,null,null,null,null,null,null,{"$f":"IF(ISBLANK(game!F657),\"\",MOD(game!F657,2))","v":""}]
[null,null,null,null,null,null,null,null,{"$f":"IF(ISBLANK(game!F658),\"\",MOD(game!F658,2))","v":""}]
[null,null,null,null,null,null,null,null,{"$f":"IF(ISBLANK(game!F659),\"\",MOD(game!F659,2))","v":""}]
[null,null,null,null,null,null,null,null,{"$f":"IF(ISBLANK(game!F660),\"\",MOD(game!F660,2))","v":""}]
[null,null,null,null,null,null,null,null,{"$f":"IF(ISBLANK(game!F661),\"\",MOD(game!F661,2))","v":""}]
[null,null,null,null,null,null,null,null,{"$f":"IF(ISBLANK(game!F662),\"\",MOD(game!F662,2))","v":""}]
[null,null,null,null,null,null,null,null,{"$f":"IF(ISBLANK(game!F663),\"\",MOD(game!F663,2))","v":""}]
[null,null,null,null,null,null,null,null,{"$f":"IF(ISBLANK(game!F664),\"\",MOD(game!F664,2))","v":""}]
[null,null,null,null,null,null,null,null,{"$f":"IF(ISBLANK(game!F665),\"\",MOD(game!F665,2))","v":""}]
[null,null,null,null,null,null,null,null,{"$f":"IF(ISBLANK(game!F666),\"\",MOD(game!F666,2))","v":""}]
[null,null,null,null,null,null,null,null,{"$f":"IF(ISBLANK(game!F667),\"\",MOD(game!F667,2))","v":""}]
[null,null,null,null,null,null,null,null,{"$f":"IF(ISBLANK(game!F668),\"\",MOD(game!F668,2))","v":""}]
[null,null,null,null,null,null,null,null,{"$f":"IF(ISBLANK(game!F669),\"\",MOD(game!F669,2))","v":""}]
[null,null,null,null,null,null,null,null,{"$f":"IF(ISBLANK(game!F670),\"\",MOD(game!F670,2))","v":""}]
[null,null,null,null,null,null,null,null,{"$f":"IF(ISBLANK(game!F671),\"\",MOD(game!F671,2))","v":""}]
[null,null,null,null,null,null,null,null,{"$f":"IF(ISBLANK(game!F672),\"\",MOD(game!F672,2))","v":""}]
[null,null,null,null,null,null,null,null,{"$f":"IF(ISBLANK(game!F673),\"\",MOD(game!F673,2))","v":""}]
[null,null,null,null,null,null,null,null,{"$f":"IF(ISBLANK(game!F674),\"\",MOD(game!F674,2))","v":""}]
[null,null,null,null,null,null,null,null,{"$f":"IF(ISBLANK(game!F675),\"\",MOD(game!F675,2))","v":""}]
[null,null,null,null,null,null,null,null,{"$f":"IF(ISBLANK(game!F676),\"\",MOD(game!F676,2))","v":""}]
[null,null,null,null,null,null,null,null,{"$f":"IF(ISBLANK(game!F677),\"\",MOD(game!F677,2))","v":""}]
[null,null,null,null,null,null,null,null,{"$f":"IF(ISBLANK(game!F678),\"\",MOD(game!F678,2))","v":""}]
[null,null,null,null,null,null,null,null,{"$f":"IF(ISBLANK(game!F679),\"\",MOD(game!F679,2))","v":""}]
[null,null,null,null,null,null,null,null,{"$f":"IF(ISBLANK(game!F680),\"\",MOD(game!F680,2))","v":""}]
[null,null,null,null,null,null,null,null,{"$f":"IF(ISBLANK(game!F681),\"\",MOD(game!F681,2))","v":""}]
[null,null,null,null,null,null,null,null,{"$f":"IF(ISBLANK(game!F682),\"\",MOD(game!F682,2))","v":""}]
[null,null,null,null,null,null,null,null,{"$f":"IF(ISBLANK(game!F683),\"\",MOD(game!F683,2))","v":""}]
[null,null,null,null,null,null,null,null,{"$f":"IF(ISBLANK(game!F684),\"\",MOD(game!F684,2))","v":""}]
[null,null,null,null,null,null,null,null,{"$f":"IF(ISBLANK(game!F685),\"\",MOD(game!F685,2))","v":""}]
[null,null,null,null,null,null,null,null,{"$f":"IF(ISBLANK(game!F686),\"\",MOD(game!F686,2))","v":""}]
[null,null,null,null,null,null,null,null,{"$f":"IF(ISBLANK(game!F687),\"\",MOD(game!F687,2))","v":""}]
[null,null,null,null,null,null,null,null,{"$f":"IF(ISBLANK(game!F688),\"\",MOD(game!F688,2))","v":""}]
[null,null,null,null,null,null,null,null,{"$f":"IF(ISBLANK(game!F689),\"\",MOD(game!F689,2))","v":""}]
[null,null,null,null,null,null,null,null,{"$f":"IF(ISBLANK(game!F690),\"\",MOD(game!F690,2))","v":""}]
[null,null,null,null,null,null,null,null,{"$f":"IF(ISBLANK(game!F691),\"\",MOD(game!F691,2))","v":""}]
[null,null,null,null,null,null,null,null,{"$f":"IF(ISBLANK(game!F692),\"\",MOD(game!F692,2))","v":""}]
[null,null,null,null,null,null,null,null,{"$f":"IF(ISBLANK(game!F693),\"\",MOD(game!F693,2))","v":""}]
[null,null,null,null,null,null,null,null,{"$f":"IF(ISBLANK(game!F694),\"\",MOD(game!F694,2))","v":""}]
[null,null,null,null,null,null,null,null,{"$f":"IF(ISBLANK(game!F695),\"\",MOD(game!F695,2))","v":""}]
[null,null,null,null,null,null,null,null,{"$f":"IF(ISBLANK(game!F696),\"\",MOD(game!F696,2))","v":""}]
[null,null,null,null,null,null,null,null,{"$f":"IF(ISBLANK(game!F697),\"\",MOD(game!F697,2))","v":""}]
[null,null,null,null,null,null,null,null,{"$f":"IF(ISBLANK(game!F698),\"\",MOD(game!F698,2))","v":""}]
[null,null,null,null,null,null,null,null,{"$f":"IF(ISBLANK(game!F699),\"\",MOD(game!F699,2))","v":""}]
[null,null,null,null,null,null,null,null,{"$f":"IF(ISBLANK(game!F700),\"\",MOD(game!F700,2))","v":""}]
[null,null,null,null,null,null,null,null,{"$f":"IF(ISBLANK(game!F701),\"\",MOD(game!F701,2))","v":""}]
[null,null,null,null,null,null,null,null,{"$f":"IF(ISBLANK(game!F702),\"\",MOD(game!F702,2))","v":""}]
[null,null,null,null,null,null,null,null,{"$f":"IF(ISBLANK(game!F703),\"\",MOD(game!F703,2))","v":""}]
[null,null,null,null,null,null,null,null,{"$f":"IF(ISBLANK(game!F704),\"\",MOD(game!F704,2))","v":""}]
[null,null,null,null,null,null,null,null,{"$f":"IF(ISBLANK(game!F705),\"\",MOD(game!F705,2))","v":""}]
[null,null,null,null,null,null,null,null,{"$f":"IF(ISBLANK(game!F706),\"\",MOD(game!F706,2))","v":""}]
[null,null,null,null,null,null,null,null,{"$f":"IF(ISBLANK(game!F707),\"\",MOD(game!F707,2))","v":""}]
[null,null,null,null,null,null,null,null,{"$f":"IF(ISBLANK(game!F708),\"\",MOD(game!F708,2))","v":""}]
[null,null,null,null,null,null,null,null,{"$f":"IF(ISBLANK(game!F709),\"\",MOD(game!F709,2))","v":""}]
[null,null,null,null,null,null,null,null,{"$f":"IF(ISBLANK(game!F710),\"\",MOD(game!F710,2))","v":""}]
[null,null,null,null,null,null,null,null,{"$f":"IF(ISBLANK(game!F711),\"\",MOD(game!F711,2))","v":""}]
[null,null,null,null,null,null,null,null,{"$f":"IF(ISBLANK(game!F712),\"\",MOD(game!F712,2))","v":""}]
[null,null,null,null,null,null,null,null,{"$f":"IF(ISBLANK(game!F713),\"\",MOD(game!F713,2))","v":""}]
[null,null,null,null,null,null,null,null,{"$f":"IF(ISBLANK(game!F714),\"\",MOD(game!F714,2))","v":""}]
[null,null,null,null,null,null,null,null,{"$f":"IF(ISBLANK(game!F715),\"\",MOD(game!F715,2))","v":""}]
[null,null,null,null,null,null,null,null,{"$f":"IF(ISBLANK(game!F716),\"\",MOD(game!F716,2))","v":""}]
[null,null,null,null,null,null,null,null,{"$f":"IF(ISBLANK(game!F717),\"\",MOD(game!F717,2))","v":""}]
[null,null,null,null,null,null,null,null,{"$f":"IF(ISBLANK(game!F718),\"\",MOD(game!F718,2))","v":""}]
[null,null,null,null,null,null,null,null,{"$f":"IF(ISBLANK(game!F719),\"\",MOD(game!F719,2))","v":""}]
[null,null,null,null,null,null,null,null,{"$f":"IF(ISBLANK(game!F720),\"\",MOD(game!F720,2))","v":""}]
[null,null,null,null,null,null,null,null,{"$f":"IF(ISBLANK(game!F721),\"\",MOD(game!F721,2))","v":""}]
[null,null,null,null,null,null,null,null,{"$f":"IF(ISBLANK(game!F722),\"\",MOD(game!F722,2))","v":""}]
[null,null,null,null,null,null,null,null,{"$f":"IF(ISBLANK(game!F723),\"\",MOD(game!F723,2))","v":""}]
[null,null,null,null,null,null,null,null,{"$f":"IF(ISBLANK(game!F724),\"\",MOD(game!F724,2))","v":""}]
[null,null,null,null,null,null,null,null,{"$f":"IF(ISBLANK(game!F725),\"\",MOD(game!F725,2))","v":""}]
[null,null,null,null,null,null,null,null,{"$f":"IF(ISBLANK(game!F726),\"\",MOD(game!F726,2))","v":""}]
[null,null,null,null,null,null,null,null,{"$f":"IF(ISBLANK(game!F727),\"\",MOD(game!F727,2))","v":""}]
[null,null,null,null,null,null,null,null,{"$f":"IF(ISBLANK(game!F728),\"\",MOD(game!F728,2))","v":""}]
[null,null,null,null,null,null,null,null,{"$f":"IF(ISBLANK(game!F729),\"\",MOD(game!F729,2))","v":""}]
[null,null,null,null,null,null,null,null,{"$f":"IF(ISBLANK(game!F730),\"\",MOD(game!F730,2))","v":""}]
[null,null,null,null,null,null,null,null,{"$f":"IF(ISBLANK(game!F731),\"\",MOD(game!F731,2))","v":""}]
[null,null,null,null,null,null,null,null,{"$f":"IF(ISBLANK(game!F732),\"\",MOD(game!F732,2))","v":""}]
[null,null,null,null,null,null,null,null,{"$f":"IF(ISBLANK(game!F733),\"\",MOD(game!F733,2))","v":""}]
[null,null,null,null,null,null,null,null,{"$f":"IF(ISBLANK(game!F734),\"\",MOD(game!F734,2))","v":""}]
[null,null,null,null,null,null,null,null,{"$f":"IF(ISBLANK(game!F735),\"\",MOD(game!F735,2))","v":""}]
[null,null,null,null,null,null,null,null,{"$f":"IF(ISBLANK(game!F736),\"\",MOD(game!F736,2))","v":""}]
[null,null,null,null,null,null,null,null,{"$f":"IF(ISBLANK(game!F737),\"\",MOD(game!F737,2))","v":""}]
[null,null,null,null,null,null,null,null,{"$f":"IF(ISBLANK(game!F738),\"\",MOD(game!F738,2))","v":""}]
[null,null,null,null,null,null,null,null,{"$f":"IF(ISBLANK(game!F739),\"\",MOD(game!F739,2))","v":""}]
[null,null,null,null,null,null,null,null,{"$f":"IF(ISBLANK(game!F740),\"\",MOD(game!F740,2))","v":""}]
[null,null,null,null,null,null,null,null,{"$f":"IF(ISBLANK(game!F741),\"\",MOD(game!F741,2))","v":""}]
[null,null,null,null,null,null,null,null,{"$f":"IF(ISBLANK(game!F742),\"\",MOD(game!F742,2))","v":""}]
[null,null,null,null,null,null,null,null,{"$f":"IF(ISBLANK(game!F743),\"\",MOD(game!F743,2))","v":""}]
[null,null,null,null,null,null,null,null,{"$f":"IF(ISBLANK(game!F744),\"\",MOD(game!F744,2))","v":""}]
[null,null,null,null,null,null,null,null,{"$f":"IF(ISBLANK(game!F745),\"\",MOD(game!F745,2))","v":""}]
[null,null,null,null,null,null,null,null,{"$f":"IF(ISBLANK(game!F746),\"\",MOD(game!F746,2))","v":""}]
[null,null,null,null,null,null,null,null,{"$f":"IF(ISBLANK(game!F747),\"\",MOD(game!F747,2))","v":""}]
[null,null,null,null,null,null,null,null,{"$f":"IF(ISBLANK(game!F748),\"\",MOD(game!F748,2))","v":""}]
[null,null,null,null,null,null,null,null,{"$f":"IF(ISBLANK(game!F749),\"\",MOD(game!F749,2))","v":""}]
[null,null,null,null,null,null,null,null,{"$f":"IF(ISBLANK(game!F750),\"\",MOD(game!F750,2))","v":""}]
[null,null,null,null,null,null,null,null,{"$f":"IF(ISBLANK(game!F751),\"\",MOD(game!F751,2))","v":""}]
[null,null,null,null,null,null,null,null,{"$f":"IF(ISBLANK(game!F752),\"\",MOD(game!F752,2))","v":""}]
[null,null,null,null,null,null,null,null,{"$f":"IF(ISBLANK(game!F753),\"\",MOD(game!F753,2))","v":""}]
[null,null,null,null,null,null,null,null,{"$f":"IF(ISBLANK(game!F754),\"\",MOD(game!F754,2))","v":""}]
[null,null,null,null,null,null,null,null,{"$f":"IF(ISBLANK(game!F755),\"\",MOD(game!F755,2))","v":""}]
[null,null,null,null,null,null,null,null,{"$f":"IF(ISBLANK(game!F756),\"\",MOD(game!F756,2))","v":""}]
[null,null,null,null,null,null,null,null,{"$f":"IF(ISBLANK(game!F757),\"\",MOD(game!F757,2))","v":""}]
[null,null,null,null,null,null,null,null,{"$f":"IF(ISBLANK(game!F758),\"\",MOD(game!F758,2))","v":""}]
[null,null,null,null,null,null,null,null,{"$f":"IF(ISBLANK(game!F759),\"\",MOD(game!F759,2))","v":""}]
[null,null,null,null,null,null,null,null,{"$f":"IF(ISBLANK(game!F760),\"\",MOD(game!F760,2))","v":""}]
[null,null,null,null,null,null,null,null,{"$f":"IF(ISBLANK(game!F761),\"\",MOD(game!F761,2))","v":""}]
[null,null,null,null,null,null,null,null,{"$f":"IF(ISBLANK(game!F762),\"\",MOD(game!F762,2))","v":""}]
[null,null,null,null,null,null,null,null,{"$f":"IF(ISBLANK(game!F763),\"\",MOD(game!F763,2))","v":""}]
[null,null,null,null,null,null,null,null,{"$f":"IF(ISBLANK(game!F764),\"\",MOD(game!F764,2))","v":""}]
[null,null,null,null,null,null,null,null,{"$f":"IF(ISBLANK(game!F765),\"\",MOD(game!F765,2))","v":""}]
[null,null,null,null,null,null,null,null,{"$f":"IF(ISBLANK(game!F766),\"\",MOD(game!F766,2))","v":""}]
[null,null,null,null,null,null,null,null,{"$f":"IF(ISBLANK(game!F767),\"\",MOD(game!F767,2))","v":""}]
[null,null,null,null,null,null,null,null,{"$f":"IF(ISBLANK(game!F768),\"\",MOD(game!F768,2))","v":""}]
[null,null,null,null,null,null,null,null,{"$f":"IF(ISBLANK(game!F769),\"\",MOD(game!F769,2))","v":""}]
[null,null,null,null,null,null,null,null,{"$f":"IF(ISBLANK(game!F770),\"\",MOD(game!F770,2))","v":""}]
[null,null,null,null,null,null,null,null,{"$f":"IF(ISBLANK(game!F771),\"\",MOD(game!F771,2))","v":""}]
[null,null,null,null,null,null,null,null,{"$f":"IF(ISBLANK(game!F772),\"\",MOD(game!F772,2))","v":""}]
[null,null,null,null,null,null,null,null,{"$f":"IF(ISBLANK(game!F773),\"\",MOD(game!F773,2))","v":""}]
[null,null,null,null,null,null,null,null,{"$f":"IF(ISBLANK(game!F774),\"\",MOD(game!F774,2))","v":""}]
[null,null,null,null,null,null,null,null,{"$f":"IF(ISBLANK(game!F775),\"\",MOD(game!F775,2))","v":""}]
[null,null,null,null,null,null,null,null,{"$f":"IF(ISBLANK(game!F776),\"\",MOD(game!F776,2))","v":""}]
[null,null,null,null,null,null,null,null,{"$f":"IF(ISBLANK(game!F777),\"\",MOD(game!F777,2))","v":""}]
[null,null,null,null,null,null,null,null,{"$f":"IF(ISBLANK(game!F778),\"\",MOD(game!F778,2))","v":""}]
[null,null,null,null,null,null,null,null,{"$f":"IF(ISBLANK(game!F779),\"\",MOD(game!F779,2))","v":""}]
[null,null,null,null,null,null,null,null,{"$f":"IF(ISBLANK(game!F780),\"\",MOD(game!F780,2))","v":""}]
[null,null,null,null,null,null,null,null,{"$f":"IF(ISBLANK(game!F781),\"\",MOD(game!F781,2))","v":""}]
[null,null,null,null,null,null,null,null,{"$f":"IF(ISBLANK(game!F782),\"\",MOD(game!F782,2))","v":""}]
[null,null,null,null,null,null,null,null,{"$f":"IF(ISBLANK(game!F783),\"\",MOD(game!F783,2))","v":""}]
[null,null,null,null,null,null,null,null,{"$f":"IF(ISBLANK(game!F784),\"\",MOD(game!F784,2))","v":""}]
[null,null,null,null,null,null,null,null,{"$f":"IF(ISBLANK(game!F785),\"\",MOD(game!F785,2))","v":""}]
[null,null,null,null,null,null,null,null,{"$f":"IF(ISBLANK(game!F786),\"\",MOD(game!F786,2))","v":""}]
[null,null,null,null,null,null,null,null,{"$f":"IF(ISBLANK(game!F787),\"\",MOD(game!F787,2))","v":""}]
[null,null,null,null,null,null,null,null,{"$f":"IF(ISBLANK(game!F788),\"\",MOD(game!F788,2))","v":""}]
[null,null,null,null,null,null,null,null,{"$f":"IF(ISBLANK(game!F789),\"\",MOD(game!F789,2))","v":""}]
[null,null,null,null,null,null,null,null,{"$f":"IF(ISBLANK(game!F790),\"\",MOD(game!F790,2))","v":""}]
[null,null,null,null,null,null,null,null,{"$f":"IF(ISBLANK(game!F791),\"\",MOD(game!F791,2))","v":""}]
[null,null,null,null,null,null,null,null,{"$f":"IF(ISBLANK(game!F792),\"\",MOD(game!F792,2))","v":""}]
[null,null,null,null,null,null,null,null,{"$f":"IF(ISBLANK(game!F793),\"\",MOD(game!F793,2))","v":""}]
[null,null,null,null,null,null,null,null,{"$f":"IF(ISBLANK(game!F794),\"\",MOD(game!F794,2))","v":""}]
[null,null,null,null,null,null,null,null,{"$f":"IF(ISBLANK(game!F795),\"\",MOD(game!F795,2))","v":""}]
[null,null,null,null,null,null,null,null,{"$f":"IF(ISBLANK(game!F796),\"\",MOD(game!F796,2))","v":""}]
[null,null,null,null,null,null,null,null,{"$f":"IF(ISBLANK(game!F797),\"\",MOD(game!F797,2))","v":""}]
[null,null,null,null,null,null,null,null,{"$f":"IF(ISBLANK(game!F798),\"\",MOD(game!F798,2))","v":""}]
[null,null,null,null,null,null,null,null,{"$f":"IF(ISBLANK(game!F799),\"\",MOD(game!F799,2))","v":""}]
[null,null,null,null,null,null,null,null,{"$f":"IF(ISBLANK(game!F800),\"\",MOD(game!F800,2))","v":""}]
[null,null,null,null,null,null,null,null,{"$f":"IF(ISBLANK(game!F801),\"\",MOD(game!F801,2))","v":""}]
[null,null,null,null,null,null,null,null,{"$f":"IF(ISBLANK(game!F802),\"\",MOD(game!F802,2))","v":""}]
[null,null,null,null,null,null,null,null,{"$f":"IF(ISBLANK(game!F803),\"\",MOD(game!F803,2))","v":""}]
[null,null,null,null,null,null,null,null,{"$f":"IF(ISBLANK(game!F804),\"\",MOD(game!F804,2))","v":""}]
[null,null,null,null,null,null,null,null,{"$f":"IF(ISBLANK(game!F805),\"\",MOD(game!F805,2))","v":""}]
[null,null,null,null,null,null,null,null,{"$f":"IF(ISBLANK(game!F806),\"\",MOD(game!F806,2))","v":""}]
[null,null,null,null,null,null,null,null,{"$f":"IF(ISBLANK(game!F807),\"\",MOD(game!F807,2))","v":""}]
[null,null,null,null,null,null,null,null,{"$f":"IF(ISBLANK(game!F808),\"\",MOD(game!F808,2))","v":""}]
[null,null,null,null,null,null,null,null,{"$f":"IF(ISBLANK(game!F809),\"\",MOD(game!F809,2))","v":""}]
[null,null,null,null,null,null,null,null,{"$f":"IF(ISBLANK(game!F810),\"\",MOD(game!F810,2))","v":""}]
[null,null,null,null,null,null,null,null,{"$f":"IF(ISBLANK(game!F811),\"\",MOD(game!F811,2))","v":""}]
[null,null,null,null,null,null,null,null,{"$f":"IF(ISBLANK(game!F812),\"\",MOD(game!F812,2))","v":""}]
[null,null,null,null,null,null,null,null,{"$f":"IF(ISBLANK(game!F813),\"\",MOD(game!F813,2))","v":""}]
[null,null,null,null,null,null,null,null,{"$f":"IF(ISBLANK(game!F814),\"\",MOD(game!F814,2))","v":""}]
[null,null,null,null,null,null,null,null,{"$f":"IF(ISBLANK(game!F815),\"\",MOD(game!F815,2))","v":""}]
[null,null,null,null,null,null,null,null,{"$f":"IF(ISBLANK(game!F816),\"\",MOD(game!F816,2))","v":""}]
[null,null,null,null,null,null,null,null,{"$f":"IF(ISBLANK(game!F817),\"\",MOD(game!F817,2))","v":""}]
[null,null,null,null,null,null,null,null,{"$f":"IF(ISBLANK(game!F818),\"\",MOD(game!F818,2))","v":""}]
[null,null,null,null,null,null,null,null,{"$f":"IF(ISBLANK(game!F819),\"\",MOD(game!F819,2))","v":""}]
[null,null,null,null,null,null,null,null,{"$f":"IF(ISBLANK(game!F820),\"\",MOD(game!F820,2))","v":""}]
[null,null,null,null,null,null,null,null,{"$f":"IF(ISBLANK(game!F821),\"\",MOD(game!F821,2))","v":""}]
[null,null,null,null,null,null,null,null,{"$f":"IF(ISBLANK(game!F822),\"\",MOD(game!F822,2))","v":""}]
[null,null,null,null,null,null,null,null,{"$f":"IF(ISBLANK(game!F823),\"\",MOD(game!F823,2))","v":""}]
[null,null,null,null,null,null,null,null,{"$f":"IF(ISBLANK(game!F824),\"\",MOD(game!F824,2))","v":""}]
[null,null,null,null,null,null,null,null,{"$f":"IF(ISBLANK(game!F825),\"\",MOD(game!F825,2))","v":""}]
[null,null,null,null,null,null,null,null,{"$f":"IF(ISBLANK(game!F826),\"\",MOD(game!F826,2))","v":""}]
[null,null,null,null,null,null,null,null,{"$f":"IF(ISBLANK(game!F827),\"\",MOD(game!F827,2))","v":""}]
[null,null,null,null,null,null,null,null,{"$f":"IF(ISBLANK(game!F828),\"\",MOD(game!F828,2))","v":""}]
[null,null,null,null,null,null,null,null,{"$f":"IF(ISBLANK(game!F829),\"\",MOD(game!F829,2))","v":""}]
[null,null,null,null,null,null,null,null,{"$f":"IF(ISBLANK(game!F830),\"\",MOD(game!F830,2))","v":""}]
[null,null,null,null,null,null,null,null,{"$f":"IF(ISBLANK(game!F831),\"\",MOD(game!F831,2))","v":""}]
[null,null,null,null,null,null,null,null,{"$f":"IF(ISBLANK(game!F832),\"\",MOD(game!F832,2))","v":""}]
[null,null,null,null,null,null,null,null,{"$f":"IF(ISBLANK(game!F833),\"\",MOD(game!F833,2))","v":""}]
[null,null,null,null,null,null,null,null,{"$f":"IF(ISBLANK(game!F834),\"\",MOD(game!F834,2))","v":""}]
[null,null,null,null,null,null,null,null,{"$f":"IF(ISBLANK(game!F835),\"\",MOD(game!F835,2))","v":""}]
[null,null,null,null,null,null,null,null,{"$f":"IF(ISBLANK(game!F836),\"\",MOD(game!F836,2))","v":""}]
[null,null,null,null,null,null,null,null,{"$f":"IF(ISBLANK(game!F837),\"\",MOD(game!F837,2))","v":""}]
[null,null,null,null,null,null,null,null,{"$f":"IF(ISBLANK(game!F838),\"\",MOD(game!F838,2))","v":""}]
[null,null,null,null,null,null,null,null,{"$f":"IF(ISBLANK(game!F839),\"\",MOD(game!F839,2))","v":""}]
[null,null,null,null,null,null,null,null,{"$f":"IF(ISBLANK(game!F840),\"\",MOD(game!F840,2))","v":""}]
[null,null,null,null,null,null,null,null,{"$f":"IF(ISBLANK(game!F841),\"\",MOD(game!F841,2))","v":""}]
[null,null,null,null,null,null,null,null,{"$f":"IF(ISBLANK(game!F842),\"\",MOD(game!F842,2))","v":""}]
[null,null,null,null,null,null,null,null,{"$f":"IF(ISBLANK(game!F843),\"\",MOD(game!F843,2))","v":""}]
[null,null,null,null,null,null,null,null,{"$f":"IF(ISBLANK(game!F844),\"\",MOD(game!F844,2))","v":""}]
[null,null,null,null,null,null,null,null,{"$f":"IF(ISBLANK(game!F845),\"\",MOD(game!F845,2))","v":""}]
[null,null,null,null,null,null,null,null,{"$f":"IF(ISBLANK(game!F846),\"\",MOD(game!F846,2))","v":""}]
[null,null,null,null,null,null,null,null,{"$f":"IF(ISBLANK(game!F847),\"\",MOD(game!F847,2))","v":""}]
[null,null,null,null,null,null,null,null,{"$f":"IF(ISBLANK(game!F848),\"\",MOD(game!F848,2))","v":""}]
[null,null,null,null,null,null,null,null,{"$f":"IF(ISBLANK(game!F849),\"\",MOD(game!F849,2))","v":""}]
[null,null,null,null,null,null,null,null,{"$f":"IF(ISBLANK(game!F850),\"\",MOD(game!F850,2))","v":""}]
[null,null,null,null,null,null,null,null,{"$f":"IF(ISBLANK(game!F851),\"\",MOD(game!F851,2))","v":""}]
[null,null,null,null,null,null,null,null,{"$f":"IF(ISBLANK(game!F852),\"\",MOD(game!F852,2))","v":""}]
[null,null,null,null,null,null,null,null,{"$f":"IF(ISBLANK(game!F853),\"\",MOD(game!F853,2))","v":""}]
[null,null,null,null,null,null,null,null,{"$f":"IF(ISBLANK(game!F854),\"\",MOD(game!F854,2))","v":""}]
[null,null,null,null,null,null,null,null,{"$f":"IF(ISBLANK(game!F855),\"\",MOD(game!F855,2))","v":""}]
[null,null,null,null,null,null,null,null,{"$f":"IF(ISBLANK(game!F856),\"\",MOD(game!F856,2))","v":""}]
[null,null,null,null,null,null,null,null,{"$f":"IF(ISBLANK(game!F857),\"\",MOD(game!F857,2))","v":""}]
[null,null,null,null,null,null,null,null,{"$f":"IF(ISBLANK(game!F858),\"\",MOD(game!F858,2))","v":""}]
[null,null,null,null,null,null,null,null,{"$f":"IF(ISBLANK(game!F859),\"\",MOD(game!F859,2))","v":""}]
[null,null,null,null,null,null,null,null,{"$f":"IF(ISBLANK(game!F860),\"\",MOD(game!F860,2))","v":""}]
[null,null,null,null,null,null,null,null,{"$f":"IF(ISBLANK(game!F861),\"\",MOD(game!F861,2))","v":""}]
[null,null,null,null,null,null,null,null,{"$f":"IF(ISBLANK(game!F862),\"\",MOD(game!F862,2))","v":""}]
[null,null,null,null,null,null,null,null,{"$f":"IF(ISBLANK(game!F863),\"\",MOD(game!F863,2))","v":""}]
[null,null,null,null,null,null,null,null,{"$f":"IF(ISBLANK(game!F864),\"\",MOD(game!F864,2))","v":""}]
[null,null,null,null,null,null,null,null,{"$f":"IF(ISBLANK(game!F865),\"\",MOD(game!F865,2))","v":""}]
[null,null,null,null,null,null,null,null,{"$f":"IF(ISBLANK(game!F866),\"\",MOD(game!F866,2))","v":""}]
[null,null,null,null,null,null,null,null,{"$f":"IF(ISBLANK(game!F867),\"\",MOD(game!F867,2))","v":""}]
[null,null,null,null,null,null,null,null,{"$f":"IF(ISBLANK(game!F868),\"\",MOD(game!F868,2))","v":""}]
[null,null,null,null,null,null,null,null,{"$f":"IF(ISBLANK(game!F869),\"\",MOD(game!F869,2))","v":""}]
[null,null,null,null,null,null,null,null,{"$f":"IF(ISBLANK(game!F870),\"\",MOD(game!F870,2))","v":""}]
[null,null,null,null,null,null,null,null,{"$f":"IF(ISBLANK(game!F871),\"\",MOD(game!F871,2))","v":""}]
[null,null,null,null,null,null,null,null,{"$f":"IF(ISBLANK(game!F872),\"\",MOD(game!F872,2))","v":""}]
[null,null,null,null,null,null,null,null,{"$f":"IF(ISBLANK(game!F873),\"\",MOD(game!F873,2))","v":""}]
[null,null,null,null,null,null,null,null,{"$f":"IF(ISBLANK(game!F874),\"\",MOD(game!F874,2))","v":""}]
[null,null,null,null,null,null,null,null,{"$f":"IF(ISBLANK(game!F875),\"\",MOD(game!F875,2))","v":""}]
[null,null,null,null,null,null,null,null,{"$f":"IF(ISBLANK(game!F876),\"\",MOD(game!F876,2))","v":""}]
[null,null,null,null,null,null,null,null,{"$f":"IF(ISBLANK(game!F877),\"\",MOD(game!F877,2))","v":""}]
[null,null,null,null,null,null,null,null,{"$f":"IF(ISBLANK(game!F878),\"\",MOD(game!F878,2))","v":""}]
[null,null,null,null,null,null,null,null,{"$f":"IF(ISBLANK(game!F879),\"\",MOD(game!F879,2))","v":""}]
[null,null,null,null,null,null,null,null,{"$f":"IF(ISBLANK(game!F880),\"\",MOD(game!F880,2))","v":""}]
[null,null,null,null,null,null,null,null,{"$f":"IF(ISBLANK(game!F881),\"\",MOD(game!F881,2))","v":""}]
[null,null,null,null,null,null,null,null,{"$f":"IF(ISBLANK(game!F882),\"\",MOD(game!F882,2))","v":""}]
[null,null,null,null,null,null,null,null,{"$f":"IF(ISBLANK(game!F883),\"\",MOD(game!F883,2))","v":""}]
[null,null,null,null,null,null,null,null,{"$f":"IF(ISBLANK(game!F884),\"\",MOD(game!F884,2))","v":""}]
[null,null,null,null,null,null,null,null,{"$f":"IF(ISBLANK(game!F885),\"\",MOD(game!F885,2))","v":""}]
[null,null,null,null,null,null,null,null,{"$f":"IF(ISBLANK(game!F886),\"\",MOD(game!F886,2))","v":""}]
[null,null,null,null,null,null,null,null,{"$f":"IF(ISBLANK(game!F887),\"\",MOD(game!F887,2))","v":""}]
[null,null,null,null,null,null,null,null,{"$f":"IF(ISBLANK(game!F888),\"\",MOD(game!F888,2))","v":""}]
[null,null,null,null,null,null,null,null,{"$f":"IF(ISBLANK(game!F889),\"\",MOD(game!F889,2))","v":""}]
[null,null,null,null,null,null,null,null,{"$f":"IF(ISBLANK(game!F890),\"\",MOD(game!F890,2))","v":""}]
[null,null,null,null,null,null,null,null,{"$f":"IF(ISBLANK(game!F891),\"\",MOD(game!F891,2))","v":""}]
[null,null,null,null,null,null,null,null,{"$f":"IF(ISBLANK(game!F892),\"\",MOD(game!F892,2))","v":""}]
[null,null,null,null,null,null,null,null,{"$f":"IF(ISBLANK(game!F893),\"\",MOD(game!F893,2))","v":""}]
[null,null,null,null,null,null,null,null,{"$f":"IF(ISBLANK(game!F894),\"\",MOD(game!F894,2))","v":""}]
[null,null,null,null,null,null,null,null,{"$f":"IF(ISBLANK(game!F895),\"\",MOD(game!F895,2))","v":""}]
[null,null,null,null,null,null,null,null,{"$f":"IF(ISBLANK(game!F896),\"\",MOD(game!F896,2))","v":""}]
[null,null,null,null,null,null,null,null,{"$f":"IF(ISBLANK(game!F897),\"\",MOD(game!F897,2))","v":""}]
[null,null,null,null,null,null,null,null,{"$f":"IF(ISBLANK(game!F898),\"\",MOD(game!F898,2))","v":""}]
[null,null,null,null,null,null,null,null,{"$f":"IF(ISBLANK(game!F899),\"\",MOD(game!F899,2))","v":""}]
[null,null,null,null,null,null,null,null,{"$f":"IF(ISBLANK(game!F900),\"\",MOD(game!F900,2))","v":""}]
[null,null,null,null,null,null,null,null,{"$f":"IF(ISBLANK(game!F901),\"\",MOD(game!F901,2))","v":""}]
[null,null,null,null,null,null,null,null,{"$f":"IF(ISBLANK(game!F902),\"\",MOD(game!F902,2))","v":""}]
[null,null,null,null,null,null,null,null,{"$f":"IF(ISBLANK(game!F903),\"\",MOD(game!F903,2))","v":""}]
[null,null,null,null,null,null,null,null,{"$f":"IF(ISBLANK(game!F904),\"\",MOD(game!F904,2))","v":""}]
[null,null,null,null,null,null,null,null,{"$f":"IF(ISBLANK(game!F905),\"\",MOD(game!F905,2))","v":""}]
[null,null,null,null,null,null,null,null,{"$f":"IF(ISBLANK(game!F906),\"\",MOD(game!F906,2))","v":""}]
[null,null,null,null,null,null,null,null,{"$f":"IF(ISBLANK(game!F907),\"\",MOD(game!F907,2))","v":""}]
[null,null,null,null,null,null,null,null,{"$f":"IF(ISBLANK(game!F908),\"\",MOD(game!F908,2))","v":""}]
[null,null,null,null,null,null,null,null,{"$f":"IF(ISBLANK(game!F909),\"\",MOD(game!F909,2))","v":""}]
[null,null,null,null,null,null,null,null,{"$f":"IF(ISBLANK(game!F910),\"\",MOD(game!F910,2))","v":""}]
[null,null,null,null,null,null,null,null,{"$f":"IF(ISBLANK(game!F911),\"\",MOD(game!F911,2))","v":""}]
[null,null,null,null,null,null,null,null,{"$f":"IF(ISBLANK(game!F912),\"\",MOD(game!F912,2))","v":""}]
[null,null,null,null,null,null,null,null,{"$f":"IF(ISBLANK(game!F913),\"\",MOD(game!F913,2))","v":""}]
[null,null,null,null,null,null,null,null,{"$f":"IF(ISBLANK(game!F914),\"\",MOD(game!F914,2))","v":""}]
[null,null,null,null,null,null,null,null,{"$f":"IF(ISBLANK(game!F915),\"\",MOD(game!F915,2))","v":""}]
[null,null,null,null,null,null,null,null,{"$f":"IF(ISBLANK(game!F916),\"\",MOD(game!F916,2))","v":""}]
[null,null,null,null,null,null,null,null,{"$f":"IF(ISBLANK(game!F917),\"\",MOD(game!F917,2))","v":""}]
[null,null,null,null,null,null,null,null,{"$f":"IF(ISBLANK(game!F918),\"\",MOD(game!F918,2))","v":""}]
[null,null,null,null,null,null,null,null,{"$f":"IF(ISBLANK(game!F919),\"\",MOD(game!F919,2))","v":""}]
[null,null,null,null,null,null,null,null,{"$f":"IF(ISBLANK(game!F920),\"\",MOD(game!F920,2))","v":""}]
[null,null,null,null,null,null,null,null,{"$f":"IF(ISBLANK(game!F921),\"\",MOD(game!F921,2))","v":""}]
[null,null,null,null,null,null,null,null,{"$f":"IF(ISBLANK(game!F922),\"\",MOD(game!F922,2))","v":""}]
[null,null,null,null,null,null,null,null,{"$f":"IF(ISBLANK(game!F923),\"\",MOD(game!F923,2))","v":""}]
[null,null,null,null,null,null,null,null,{"$f":"IF(ISBLANK(game!F924),\"\",MOD(game!F924,2))","v":""}]
[null,null,null,null,null,null,null,null,{"$f":"IF(ISBLANK(game!F925),\"\",MOD(game!F925,2))","v":""}]
[null,null,null,null,null,null,null,null,{"$f":"IF(ISBLANK(game!F926),\"\",MOD(game!F926,2))","v":""}]
[null,null,null,null,null,null,null,null,{"$f":"IF(ISBLANK(game!F927),\"\",MOD(game!F927,2))","v":""}]
[null,null,null,null,null,null,null,null,{"$f":"IF(ISBLANK(game!F928),\"\",MOD(game!F928,2))","v":""}]
[null,null,null,null,null,null,null,null,{"$f":"IF(ISBLANK(game!F929),\"\",MOD(game!F929,2))","v":""}]
[null,null,null,null,null,null,null,null,{"$f":"IF(ISBLANK(game!F930),\"\",MOD(game!F930,2))","v":""}]
[null,null,null,null,null,null,null,null,{"$f":"IF(ISBLANK(game!F931),\"\",MOD(game!F931,2))","v":""}]
[null,null,null,null,null,null,null,null,{"$f":"IF(ISBLANK(game!F932),\"\",MOD(game!F932,2))","v":""}]
[null,null,null,null,null,null,null,null,{"$f":"IF(ISBLANK(game!F933),\"\",MOD(game!F933,2))","v":""}]
[null,null,null,null,null,null,null,null,{"$f":"IF(ISBLANK(game!F934),\"\",MOD(game!F934,2))","v":""}]
[null,null,null,null,null,null,null,null,{"$f":"IF(ISBLANK(game!F935),\"\",MOD(game!F935,2))","v":""}]
[null,null,null,null,null,null,null,null,{"$f":"IF(ISBLANK(game!F936),\"\",MOD(game!F936,2))","v":""}]
[null,null,null,null,null,null,null,null,{"$f":"IF(ISBLANK(game!F937),\"\",MOD(game!F937,2))","v":""}]
[null,null,null,null,null,null,null,null,{"$f":"IF(ISBLANK(game!F938),\"\",MOD(game!F938,2))","v":""}]
[null,null,null,null,null,null,null,null,{"$f":"IF(ISBLANK(game!F939),\"\",MOD(game!F939,2))","v":""}]
[null,null,null,null,null,null,null,null,{"$f":"IF(ISBLANK(game!F940),\"\",MOD(game!F940,2))","v":""}]
[null,null,null,null,null,null,null,null,{"$f":"IF(ISBLANK(game!F941),\"\",MOD(game!F941,2))","v":""}]
[null,null,null,null,null,null,null,null,{"$f":"IF(ISBLANK(game!F942),\"\",MOD(game!F942,2))","v":""}]
[null,null,null,null,null,null,null,null,{"$f":"IF(ISBLANK(game!F943),\"\",MOD(game!F943,2))","v":""}]
[null,null,null,null,null,null,null,null,{"$f":"IF(ISBLANK(game!F944),\"\",MOD(game!F944,2))","v":""}]
[null,null,null,null,null,null,null,null,{"$f":"IF(ISBLANK(game!F945),\"\",MOD(game!F945,2))","v":""}]
[null,null,null,null,null,null,null,null,{"$f":"IF(ISBLANK(game!F946),\"\",MOD(game!F946,2))","v":""}]
[null,null,null,null,null,null,null,null,{"$f":"IF(ISBLANK(game!F947),\"\",MOD(game!F947,2))","v":""}]
[null,null,null,null,null,null,null,null,{"$f":"IF(ISBLANK(game!F948),\"\",MOD(game!F948,2))","v":""}]
[null,null,null,null,null,null,null,null,{"$f":"IF(ISBLANK(game!F949),\"\",MOD(game!F949,2))","v":""}]
[null,null,null,null,null,null,null,null,{"$f":"IF(ISBLANK(game!F950),\"\",MOD(game!F950,2))","v":""}]
[null,null,null,null,null,null,null,null,{"$f":"IF(ISBLANK(game!F951),\"\",MOD(game!F951,2))","v":""}]
[null,null,null,null,null,null,null,null,{"$f":"IF(ISBLANK(game!F952),\"\",MOD(game!F952,2))","v":""}]
[null,null,null,null,null,null,null,null,{"$f":"IF(ISBLANK(game!F953),\"\",MOD(game!F953,2))","v":""}]
[null,null,null,null,null,null,null,null,{"$f":"IF(ISBLANK(game!F954),\"\",MOD(game!F954,2))","v":""}]
[null,null,null,null,null,null,null,null,{"$f":"IF(ISBLANK(game!F955),\"\",MOD(game!F955,2))","v":""}]
[null,null,null,null,null,null,null,null,{"$f":"IF(ISBLANK(game!F956),\"\",MOD(game!F956,2))","v":""}]
[null,null,null,null,null,null,null,null,{"$f":"IF(ISBLANK(game!F957),\"\",MOD(game!F957,2))","v":""}]
[null,null,null,null,null,null,null,null,{"$f":"IF(ISBLANK(game!F958),\"\",MOD(game!F958,2))","v":""}]
[null,null,null,null,null,null,null,null,{"$f":"IF(ISBLANK(game!F959),\"\",MOD(game!F959,2))","v":""}]
[null,null,null,null,null,null,null,null,{"$f":"IF(ISBLANK(game!F960),\"\",MOD(game!F960,2))","v":""}]
[null,null,null,null,null,null,null,null,{"$f":"IF(ISBLANK(game!F961),\"\",MOD(game!F961,2))","v":""}]
[null,null,null,null,null,null,null,null,{"$f":"IF(ISBLANK(game!F962),\"\",MOD(game!F962,2))","v":""}]
[null,null,null,null,null,null,null,null,{"$f":"IF(ISBLANK(game!F963),\"\",MOD(game!F963,2))","v":""}]
[null,null,null,null,null,null,null,null,{"$f":"IF(ISBLANK(game!F964),\"\",MOD(game!F964,2))","v":""}]
[null,null,null,null,null,null,null,null,{"$f":"IF(ISBLANK(game!F965),\"\",MOD(game!F965,2))","v":""}]
[null,null,null,null,null,null,null,null,{"$f":"IF(ISBLANK(game!F966),\"\",MOD(game!F966,2))","v":""}]
[null,null,null,null,null,null,null,null,{"$f":"IF(ISBLANK(game!F967),\"\",MOD(game!F967,2))","v":""}]
[null,null,null,null,null,null,null,null,{"$f":"IF(ISBLANK(game!F968),\"\",MOD(game!F968,2))","v":""}]
[null,null,null,null,null,null,null,null,{"$f":"IF(ISBLANK(game!F969),\"\",MOD(game!F969,2))","v":""}]
[null,null,null,null,null,null,null,null,{"$f":"IF(ISBLANK(game!F970),\"\",MOD(game!F970,2))","v":""}]
[null,null,null,null,null,null,null,null,{"$f":"IF(ISBLANK(game!F971),\"\",MOD(game!F971,2))","v":""}]
[null,null,null,null,null,null,null,null,{"$f":"IF(ISBLANK(game!F972),\"\",MOD(game!F972,2))","v":""}]
[null,null,null,null,null,null,null,null,{"$f":"IF(ISBLANK(game!F973),\"\",MOD(game!F973,2))","v":""}]
[null,null,null,null,null,null,null,null,{"$f":"IF(ISBLANK(game!F974),\"\",MOD(game!F974,2))","v":""}]
[null,null,null,null,null,null,null,null,{"$f":"IF(ISBLANK(game!F975),\"\",MOD(game!F975,2))","v":""}]
[null,null,null,null,null,null,null,null,{"$f":"IF(ISBLANK(game!F976),\"\",MOD(game!F976,2))","v":""}]
[null,null,null,null,null,null,null,null,{"$f":"IF(ISBLANK(game!F977),\"\",MOD(game!F977,2))","v":""}]
[null,null,null,null,null,null,null,null,{"$f":"IF(ISBLANK(game!F978),\"\",MOD(game!F978,2))","v":""}]
[null,null,null,null,null,null,null,null,{"$f":"IF(ISBLANK(game!F979),\"\",MOD(game!F979,2))","v":""}]
[null,null,null,null,null,null,null,null,{"$f":"IF(ISBLANK(game!F980),\"\",MOD(game!F980,2))","v":""}]
[null,null,null,null,null,null,null,null,{"$f":"IF(ISBLANK(game!F981),\"\",MOD(game!F981,2))","v":""}]
[null,null,null,null,null,null,null,null,{"$f":"IF(ISBLANK(game!F982),\"\",MOD(game!F982,2))","v":""}]
[null,null,null,null,null,null,null,null,{"$f":"IF(ISBLANK(game!F983),\"\",MOD(game!F983,2))","v":""}]
[null,null,null,null,null,null,null,null,{"$f":"IF(ISBLANK(game!F984),\"\",MOD(game!F984,2))","v":""}]
[null,null,null,null,null,null,null,null,{"$f":"IF(ISBLANK(game!F985),\"\",MOD(game!F985,2))","v":""}]
[null,null,null,null,null,null,null,null,{"$f":"IF(ISBLANK(game!F986),\"\",MOD(game!F986,2))","v":""}]
[null,null,null,null,null,null,null,null,{"$f":"IF(ISBLANK(game!F987),\"\",MOD(game!F987,2))","v":""}]
[null,null,null,null,null,null,null,null,{"$f":"IF(ISBLANK(game!F988),\"\",MOD(game!F988,2))","v":""}]
[null,null,null,null,null,null,null,null,{"$f":"IF(ISBLANK(game!F989),\"\",MOD(game!F989,2))","v":""}]
[null,null,null,null,null,null,null,null,{"$f":"IF(ISBLANK(game!F990),\"\",MOD(game!F990,2))","v":""}]
[null,null,null,null,null,null,null,null,{"$f":"IF(ISBLANK(game!F991),\"\",MOD(game!F991,2))","v":""}]
[null,null,null,null,null,null,null,null,{"$f":"IF(ISBLANK(game!F992),\"\",MOD(game!F992,2))","v":""}]
[null,null,null,null,null,null,null,null,{"$f":"IF(ISBLANK(game!F993),\"\",MOD(game!F993,2))","v":""}]
[null,null,null,null,null,null,null,null,{"$f":"IF(ISBLANK(game!F994),\"\",MOD(game!F994,2))","v":""}]
[null,null,null,null,null,null,null,null,{"$f":"IF(ISBLANK(game!F995),\"\",MOD(game!F995,2))","v":""}]
[null,null,null,null,null,null,null,null,{"$f":"IF(ISBLANK(game!F996),\"\",MOD(game!F996,2))","v":""}]
[null,null,null,null,null,null,null,null,{"$f":"IF(ISBLANK(game!F997),\"\",MOD(game!F997,2))","v":""}]
[null,null,null,null,null,null,null,null,{"$f":"IF(ISBLANK(game!F998),\"\",MOD(game!F998,2))","v":""}]
[null,null,null,null,null,null,null,null,{"$f":"IF(ISBLANK(game!F999),\"\",MOD(game!F999,2))","v":""}]
[null,null,null,null,null,null,null,null,{"$f":"IF(ISBLANK(game!F1000),\"\",MOD(game!F1000,2))","v":""}]
[null,null,null,null,null,null,null,null,{"$f":"IF(ISBLANK(game!F1001),\"\",MOD(game!F1001,2))","v":""}]
[null,null,null,null,null,null,null,null,{"$f":"IF(ISBLANK(game!F1002),\"\",MOD(game!F1002,2))","v":""}]
[null,null,null,null,null,null,null,null,{"$f":"IF(ISBLANK(game!F1003),\"\",MOD(game!F1003,2))","v":""}]
[null,null,null,null,null,null,null,null,{"$f":"IF(ISBLANK(game!F1004),\"\",MOD(game!F1004,2))","v":""}]
[null,null,null,null,null,null,null,null,{"$f":"IF(ISBLANK(game!F1005),\"\",MOD(game!F1005,2))","v":""}]
[null,null,null,null,null,null,null,null,{"$f":"IF(ISBLANK(game!F1006),\"\",MOD(game!F1006,2))","v":""}]
[null,null,null,null,null,null,null,null,{"$f":"IF(ISBLANK(game!F1007),\"\",MOD(game!F1007,2))","v":""}]
[null,null,null,null,null,null,null,null,{"$f":"IF(ISBLANK(game!F1008),\"\",MOD(game!F1008,2))","v":""}]
[null,null,null,null,null,null,null,null,{"$f":"IF(ISBLANK(game!F1009),\"\",MOD(game!F1009,2))","v":""}]
[null,null,null,null,null,null,null,null,{"$f":"IF(ISBLANK(game!F1010),\"\",MOD(game!F1010,2))","v":""}]
[null,null,null,null,null,null,null,null,{"$f":"IF(ISBLANK(game!F1011),\"\",MOD(game!F1011,2))","v":""}]
[null,null,null,null,null,null,null,null,{"$f":"IF(ISBLANK(game!F1012),\"\",MOD(game!F1012,2))","v":""}]
[null,null,null,null,null,null,null,null,{"$f":"IF(ISBLANK(game!F1013),\"\",MOD(game!F1013,2))","v":""}]
[null,null,null,null,null,null,null,null,{"$f":"IF(ISBLANK(game!F1014),\"\",MOD(game!F1014,2))","v":""}]
[null,null,null,null,null,null,null,null,{"$f":"IF(ISBLANK(game!F1015),\"\",MOD(game!F1015,2))","v":""}]
[null,null,null,null,null,null,null,null,{"$f":"IF(ISBLANK(game!F1016),\"\",MOD(game!F1016,2))","v":""}]
[null,null,null,null,null,null,null,null,{"$f":"IF(ISBLANK(game!F1017),\"\",MOD(game!F1017,2))","v":""}]
[null,null,null,null,null,null,null,null,{"$f":"IF(ISBLANK(game!F1018),\"\",MOD(game!F1018,2))","v":""}]
[null,null,null,null,null,null,null,null,{"$f":"IF(ISBLANK(game!F1019),\"\",MOD(game!F1019,2))","v":""}]
[null,null,null,null,null,null,null,null,{"$f":"IF(ISBLANK(game!F1020),\"\",MOD(game!F1020,2))","v":""}]
[null,null,null,null,null,null,null,null,{"$f":"IF(ISBLANK(game!F1021),\"\",MOD(game!F1021,2))","v":""}]
[null,null,null,null,null,null,null,null,{"$f":"IF(ISBLANK(game!F1022),\"\",MOD(game!F1022,2))","v":""}]
[null,null,null,null,null,null,null,null,{"$f":"IF(ISBLANK(game!F1023),\"\",MOD(game!F1023,2))","v":""}]
[null,null,null,null,null,null,null,null,{"$f":"IF(ISBLANK(game!F1024),\"\",MOD(game!F1024,2))","v":""}]
[null,null,null,null,null,null,null,null,{"$f":"IF(ISBLANK(game!F1025),\"\",MOD(game!F1025,2))","v":""}]
[null,null,null,null,null,null,null,null,{"$f":"IF(ISBLANK(game!F1026),\"\",MOD(game!F1026,2))","v":""}]
[null,null,null,null,null,null,null,null,{"$f":"IF(ISBLANK(game!F1027),\"\",MOD(game!F1027,2))","v":""}]
[null,null,null,null,null,null,null,null,{"$f":"IF(ISBLANK(game!F1028),\"\",MOD(game!F1028,2))","v":""}]
[null,null,null,null,null,null,null,null,{"$f":"IF(ISBLANK(game!F1029),\"\",MOD(game!F1029,2))","v":""}]
[null,null,null,null,null,null,null,null,{"$f":"IF(ISBLANK(game!F1030),\"\",MOD(game!F1030,2))","v":""}]
[null,null,null,null,null,null,null,null,{"$f":"IF(ISBLANK(game!F1031),\"\",MOD(game!F1031,2))","v":""}]
[null,null,null,null,null,null,null,null,{"$f":"IF(ISBLANK(game!F1032),\"\",MOD(game!F1032,2))","v":""}]
[null,null,null,null,null,null,null,null,{"$f":"IF(ISBLANK(game!F1033),\"\",MOD(game!F1033,2))","v":""}]
[null,null,null,null,null,null,null,null,{"$f":"IF(ISBLANK(game!F1034),\"\",MOD(game!F1034,2))","v":""}]
[null,null,null,null,null,null,null,null,{"$f":"IF(ISBLANK(game!F1035),\"\",MOD(game!F1035,2))","v":""}]
[null,null,null,null,null,null,null,null,{"$f":"IF(ISBLANK(game!F1036),\"\",MOD(game!F1036,2))","v":""}]
[null,null,null,null,null,null,null,null,{"$f":"IF(ISBLANK(game!F1037),\"\",MOD(game!F1037,2))","v":""}]
[null,null,null,null,null,null,null,null,{"$f":"IF(ISBLANK(game!F1038),\"\",MOD(game!F1038,2))","v":""}]
[null,null,null,null,null,null,null,null,{"$f":"IF(ISBLANK(game!F1039),\"\",MOD(game!F1039,2))","v":""}]
[null,null,null,null,null,null,null,null,{"$f":"IF(ISBLANK(game!F1040),\"\",MOD(game!F1040,2))","v":""}]
[null,null,null,null,null,null,null,null,{"$f":"IF(ISBLANK(game!F1041),\"\",MOD(game!F1041,2))","v":""}]
[null,null,null,null,null,null,null,null,{"$f":"IF(ISBLANK(game!F1042),\"\",MOD(game!F1042,2))","v":""}]
[null,null,null,null,null,null,null,null,{"$f":"IF(ISBLANK(game!F1043),\"\",MOD(game!F1043,2))","v":""}]
[null,null,null,null,null,null,null,null,{"$f":"IF(ISBLANK(game!F1044),\"\",MOD(game!F1044,2))","v":""}]
[null,null,null,null,null,null,null,null,{"$f":"IF(ISBLANK(game!F1045),\"\",MOD(game!F1045,2))","v":""}]
[null,null,null,null,null,null,null,null,{"$f":"IF(ISBLANK(game!F1046),\"\",MOD(game!F1046,2))","v":""}]
[null,null,null,null,null,null,null,null,{"$f":"IF(ISBLANK(game!F1047),\"\",MOD(game!F1047,2))","v":""}]
[null,null,null,null,null,null,null,null,{"$f":"IF(ISBLANK(game!F1048),\"\",MOD(game!F1048,2))","v":""}]
[null,null,null,null,null,null,null,null,{"$f":"IF(ISBLANK(game!F1049),\"\",MOD(game!F1049,2))","v":""}]
[null,null,null,null,null,null,null,null,{"$f":"IF(ISBLANK(game!F1050),\"\",MOD(game!F1050,2))","v":""}]
[null,null,null,null,null,null,null,null,{"$f":"IF(ISBLANK(game!F1051),\"\",MOD(game!F1051,2))","v":""}]
[null,null,null,null,null,null,null,null,{"$f":"IF(ISBLANK(game!F1052),\"\",MOD(game!F1052,2))","v":""}]
[null,null,null,null,null,null,null,null,{"$f":"IF(ISBLANK(game!F1053),\"\",MOD(game!F1053,2))","v":""}]
[null,null,null,null,null,null,null,null,{"$f":"IF(ISBLANK(game!F1054),\"\",MOD(game!F1054,2))","v":""}]
[null,null,null,null,null,null,null,null,{"$f":"IF(ISBLANK(game!F1055),\"\",MOD(game!F1055,2))","v":""}]
[null,null,null,null,null,null,null,null,{"$f":"IF(ISBLANK(game!F1056),\"\",MOD(game!F1056,2))","v":""}]
[null,null,null,null,null,null,null,null,{"$f":"IF(ISBLANK(game!F1057),\"\",MOD(game!F1057,2))","v":""}]
[null,null,null,null,null,null,null,null,{"$f":"IF(ISBLANK(game!F1058),\"\",MOD(game!F1058,2))","v":""}]
[null,null,null,null,null,null,null,null,{"$f":"IF(ISBLANK(game!F1059),\"\",MOD(game!F1059,2))","v":""}]
[null,null,null,null,null,null,null,null,{"$f":"IF(ISBLANK(game!F1060),\"\",MOD(game!F1060,2))","v":""}]
[null,null,null,null,null,null,null,null,{"$f":"IF(ISBLANK(game!F1061),\"\",MOD(game!F1061,2))","v":""}]
[null,null,null,null,null,null,null,null,{"$f":"IF(ISBLANK(game!F1062),\"\",MOD(game!F1062,2))","v":""}]
[null,null,null,null,null,null,null,null,{"$f":"IF(ISBLANK(game!F1063),\"\",MOD(game!F1063,2))","v":""}]
[null,null,null,null,null,null,null,null,{"$f":"IF(ISBLANK(game!F1064),\"\",MOD(game!F1064,2))","v":""}]
[null,null,null,null,null,null,null,null,{"$f":"IF(ISBLANK(game!F1065),\"\",MOD(game!F1065,2))","v":""}]
[null,null,null,null,null,null,null,null,{"$f":"IF(ISBLANK(game!F1066),\"\",MOD(game!F1066,2))","v":""}]
[null,null,null,null,null,null,null,null,{"$f":"IF(ISBLANK(game!F1067),\"\",MOD(game!F1067,2))","v":""}]
[null,null,null,null,null,null,null,null,{"$f":"IF(ISBLANK(game!F1068),\"\",MOD(game!F1068,2))","v":""}]
[null,null,null,null,null,null,null,null,{"$f":"IF(ISBLANK(game!F1069),\"\",MOD(game!F1069,2))","v":""}]
[null,null,null,null,null,null,null,null,{"$f":"IF(ISBLANK(game!F1070),\"\",MOD(game!F1070,2))","v":""}]
[null,null,null,null,null,null,null,null,{"$f":"IF(ISBLANK(game!F1071),\"\",MOD(game!F1071,2))","v":""}]
[null,null,null,null,null,null,null,null,{"$f":"IF(ISBLANK(game!F1072),\"\",MOD(game!F1072,2))","v":""}]
[null,null,null,null,null,null,null,null,{"$f":"IF(ISBLANK(game!F1073),\"\",MOD(game!F1073,2))","v":""}]
[null,null,null,null,null,null,null,null,{"$f":"IF(ISBLANK(game!F1074),\"\",MOD(game!F1074,2))","v":""}]
[null,null,null,null,null,null,null,null,{"$f":"IF(ISBLANK(game!F1075),\"\",MOD(game!F1075,2))","v":""}]
[null,null,null,null,null,null,null,null,{"$f":"IF(ISBLANK(game!F1076),\"\",MOD(game!F1076,2))","v":""}]
[null,null,null,null,null,null,null,null,{"$f":"IF(ISBLANK(game!F1077),\"\",MOD(game!F1077,2))","v":""}]
[null,null,null,null,null,null,null,null,{"$f":"IF(ISBLANK(game!F1078),\"\",MOD(game!F1078,2))","v":""}]
[null,null,null,null,null,null,null,null,{"$f":"IF(ISBLANK(game!F1079),\"\",MOD(game!F1079,2))","v":""}]
[null,null,null,null,null,null,null,null,{"$f":"IF(ISBLANK(game!F1080),\"\",MOD(game!F1080,2))","v":""}]
[null,null,null,null,null,null,null,null,{"$f":"IF(ISBLANK(game!F1081),\"\",MOD(game!F1081,2))","v":""}]
[null,null,null,null,null,null,null,null,{"$f":"IF(ISBLANK(game!F1082),\"\",MOD(game!F1082,2))","v":""}]
[null,null,null,null,null,null,null,null,{"$f":"IF(ISBLANK(game!F1083),\"\",MOD(game!F1083,2))","v":""}]
[null,null,null,null,null,null,null,null,{"$f":"IF(ISBLANK(game!F1084),\"\",MOD(game!F1084,2))","v":""}]
[null,null,null,null,null,null,null,null,{"$f":"IF(ISBLANK(game!F1085),\"\",MOD(game!F1085,2))","v":""}]
[null,null,null,null,null,null,null,null,{"$f":"IF(ISBLANK(game!F1086),\"\",MOD(game!F1086,2))","v":""}]
[null,null,null,null,null,null,null,null,{"$f":"IF(ISBLANK(game!F1087),\"\",MOD(game!F1087,2))","v":""}]
[null,null,null,null,null,null,null,null,{"$f":"IF(ISBLANK(game!F1088),\"\",MOD(game!F1088,2))","v":""}]
[null,null,null,null,null,null,null,null,{"$f":"IF(ISBLANK(game!F1089),\"\",MOD(game!F1089,2))","v":""}]
[null,null,null,null,null,null,null,null,{"$f":"IF(ISBLANK(game!F1090),\"\",MOD(game!F1090,2))","v":""}]
[null,null,null,null,null,null,null,null,{"$f":"IF(ISBLANK(game!F1091),\"\",MOD(game!F1091,2))","v":""}]
[null,null,null,null,null,null,null,null,{"$f":"IF(ISBLANK(game!F1092),\"\",MOD(game!F1092,2))","v":""}]
[null,null,null,null,null,null,null,null,{"$f":"IF(ISBLANK(game!F1093),\"\",MOD(game!F1093,2))","v":""}]
[null,null,null,null,null,null,null,null,{"$f":"IF(ISBLANK(game!F1094),\"\",MOD(game!F1094,2))","v":""}]
[null,null,null,null,null,null,null,null,{"$f":"IF(ISBLANK(game!F1095),\"\",MOD(game!F1095,2))","v":""}]
[null,null,null,null,null,null,null,null,{"$f":"IF(ISBLANK(game!F1096),\"\",MOD(game!F1096,2))","v":""}]
[null,null,null,null,null,null,null,null,{"$f":"IF(ISBLANK(game!F1097),\"\",MOD(game!F1097,2))","v":""}]
[null,null,null,null,null,null,null,null,{"$f":"IF(ISBLANK(game!F1098),\"\",MOD(game!F1098,2))","v":""}]
[null,null,null,null,null,null,null,null,{"$f":"IF(ISBLANK(game!F1099),\"\",MOD(game!F1099,2))","v":""}]
[null,null,null,null,null,null,null,null,{"$f":"IF(ISBLANK(game!F1100),\"\",MOD(game!F1100,2))","v":""}]
[null,null,null,null,null,null,null,null,{"$f":"IF(ISBLANK(game!F1101),\"\",MOD(game!F1101,2))","v":""}]
[null,null,null,null,null,null,null,null,{"$f":"IF(ISBLANK(game!F1102),\"\",MOD(game!F1102,2))","v":""}]
[null,null,null,null,null,null,null,null,{"$f":"IF(ISBLANK(game!F1103),\"\",MOD(game!F1103,2))","v":""}]
[null,null,null,null,null,null,null,null,{"$f":"IF(ISBLANK(game!F1104),\"\",MOD(game!F1104,2))","v":""}]
[null,null,null,null,null,null,null,null,{"$f":"IF(ISBLANK(game!F1105),\"\",MOD(game!F1105,2))","v":""}]
[null,null,null,null,null,null,null,null,{"$f":"IF(ISBLANK(game!F1106),\"\",MOD(game!F1106,2))","v":""}]
[null,null,null,null,null,null,null,null,{"$f":"IF(ISBLANK(game!F1107),\"\",MOD(game!F1107,2))","v":""}]
[null,null,null,null,null,null,null,null,{"$f":"IF(ISBLANK(game!F1108),\"\",MOD(game!F1108,2))","v":""}]
[null,null,null,null,null,null,null,null,{"$f":"IF(ISBLANK(game!F1109),\"\",MOD(game!F1109,2))","v":""}]
[null,null,null,null,null,null,null,null,{"$f":"IF(ISBLANK(game!F1110),\"\",MOD(game!F1110,2))","v":""}]
[null,null,null,null,null,null,null,null,{"$f":"IF(ISBLANK(game!F1111),\"\",MOD(game!F1111,2))","v":""}]
[null,null,null,null,null,null,null,null,{"$f":"IF(ISBLANK(game!F1112),\"\",MOD(game!F1112,2))","v":""}]
[null,null,null,null,null,null,null,null,{"$f":"IF(ISBLANK(game!F1113),\"\",MOD(game!F1113,2))","v":""}]
[null,null,null,null,null,null,null,null,{"$f":"IF(ISBLANK(game!F1114),\"\",MOD(game!F1114,2))","v":""}]
[null,null,null,null,null,null,null,null,{"$f":"IF(ISBLANK(game!F1115),\"\",MOD(game!F1115,2))","v":""}]
[null,null,null,null,null,null,null,null,{"$f":"IF(ISBLANK(game!F1116),\"\",MOD(game!F1116,2))","v":""}]
[null,null,null,null,null,null,null,null,{"$f":"IF(ISBLANK(game!F1117),\"\",MOD(game!F1117,2))","v":""}]
[null,null,null,null,null,null,null,null,{"$f":"IF(ISBLANK(game!F1118),\"\",MOD(game!F1118,2))","v":""}]
[null,null,null,null,null,null,null,null,{"$f":"IF(ISBLANK(game!F1119),\"\",MOD(game!F1119,2))","v":""}]
[null,null,null,null,null,null,null,null,{"$f":"IF(ISBLANK(game!F1120),\"\",MOD(game!F1120,2))","v":""}]
[null,null,null,null,null,null,null,null,{"$f":"IF(ISBLANK(game!F1121),\"\",MOD(game!F1121,2))","v":""}]
[null,null,null,null,null,null,null,null,{"$f":"IF(ISBLANK(game!F1122),\"\",MOD(game!F1122,2))","v":""}]
[null,null,null,null,null,null,null,null,{"$f":"IF(ISBLANK(game!F1123),\"\",MOD(game!F1123,2))","v":""}]
[null,null,null,null,null,null,null,null,{"$f":"IF(ISBLANK(game!F1124),\"\",MOD(game!F1124,2))","v":""}]
[null,null,null,null,null,null,null,null,{"$f":"IF(ISBLANK(game!F1125),\"\",MOD(game!F1125,2))","v":""}]
[null,null,null,null,null,null,null,null,{"$f":"IF(ISBLANK(game!F1126),\"\",MOD(game!F1126,2))","v":""}]
[null,null,null,null,null,null,null,null,{"$f":"IF(ISBLANK(game!F1127),\"\",MOD(game!F1127,2))","v":""}]
[null,null,null,null,null,null,null,null,{"$f":"IF(ISBLANK(game!F1128),\"\",MOD(game!F1128,2))","v":""}]
[null,null,null,null,null,null,null,null,{"$f":"IF(ISBLANK(game!F1129),\"\",MOD(game!F1129,2))","v":""}]
[null,null,null,null,null,null,null,null,{"$f":"IF(ISBLANK(game!F1130),\"\",MOD(game!F1130,2))","v":""}]
[null,null,null,null,null,null,null,null,{"$f":"IF(ISBLANK(game!F1131),\"\",MOD(game!F1131,2))","v":""}]
[null,null,null,null,null,null,null,null,{"$f":"IF(ISBLANK(game!F1132),\"\",MOD(game!F1132,2))","v":""}]
[null,null,null,null,null,null,null,null,{"$f":"IF(ISBLANK(game!F1133),\"\",MOD(game!F1133,2))","v":""}]
[null,null,null,null,null,null,null,null,{"$f":"IF(ISBLANK(game!F1134),\"\",MOD(game!F1134,2))","v":""}]
[null,null,null,null,null,null,null,null,{"$f":"IF(ISBLANK(game!F1135),\"\",MOD(game!F1135,2))","v":""}]
[null,null,null,null,null,null,null,null,{"$f":"IF(ISBLANK(game!F1136),\"\",MOD(game!F1136,2))","v":""}]
[null,null,null,null,null,null,null,null,{"$f":"IF(ISBLANK(game!F1137),\"\",MOD(game!F1137,2))","v":""}]
[null,null,null,null,null,null,null,null,{"$f":"IF(ISBLANK(game!F1138),\"\",MOD(game!F1138,2))","v":""}]
[null,null,null,null,null,null,null,null,{"$f":"IF(ISBLANK(game!F1139),\"\",MOD(game!F1139,2))","v":""}]
[null,null,null,null,null,null,null,null,{"$f":"IF(ISBLANK(game!F1140),\"\",MOD(game!F1140,2))","v":""}]
[null,null,null,null,null,null,null,null,{"$f":"IF(ISBLANK(game!F1141),\"\",MOD(game!F1141,2))","v":""}]
[null,null,null,null,null,null,null,null,{"$f":"IF(ISBLANK(game!F1142),\"\",MOD(game!F1142,2))","v":""}]
[null,null,null,null,null,null,null,null,{"$f":"IF(ISBLANK(game!F1143),\"\",MOD(game!F1143,2))","v":""}]
[null,null,null,null,null,null,null,null,{"$f":"IF(ISBLANK(game!F1144),\"\",MOD(game!F1144,2))","v":""}]
[null,null,null,null,null,null,null,null,{"$f":"IF(ISBLANK(game!F1145),\"\",MOD(game!F1145,2))","v":""}]
[null,null,null,null,null,null,null,null,{"$f":"IF(ISBLANK(game!F1146),\"\",MOD(game!F1146,2))","v":""}]
[null,null,null,null,null,null,null,null,{"$f":"IF(ISBLANK(game!F1147),\"\",MOD(game!F1147,2))","v":""}]
[null,null,null,null,null,null,null,null,{"$f":"IF(ISBLANK(game!F1148),\"\",MOD(game!F1148,2))","v":""}]
[null,null,null,null,null,null,null,null,{"$f":"IF(ISBLANK(game!F1149),\"\",MOD(game!F1149,2))","v":""}]
[null,null,null,null,null,null,null,null,{"$f":"IF(ISBLANK(game!F1150),\"\",MOD(game!F1150,2))","v":""}]
[null,null,null,null,null,null,null,null,{"$f":"IF(ISBLANK(game!F1151),\"\",MOD(game!F1151,2))","v":""}]
[null,null,null,null,null,null,null,null,{"$f":"IF(ISBLANK(game!F1152),\"\",MOD(game!F1152,2))","v":""}]
[null,null,null,null,null,null,null,null,{"$f":"IF(ISBLANK(game!F1153),\"\",MOD(game!F1153,2))","v":""}]
[null,null,null,null,null,null,null,null,{"$f":"IF(ISBLANK(game!F1154),\"\",MOD(game!F1154,2))","v":""}]
[null,null,null,null,null,null,null,null,{"$f":"IF(ISBLANK(game!F1155),\"\",MOD(game!F1155,2))","v":""}]
[null,null,null,null,null,null,null,null,{"$f":"IF(ISBLANK(game!F1156),\"\",MOD(game!F1156,2))","v":""}]
[null,null,null,null,null,null,null,null,{"$f":"IF(ISBLANK(game!F1157),\"\",MOD(game!F1157,2))","v":""}]
[null,null,null,null,null,null,null,null,{"$f":"IF(ISBLANK(game!F1158),\"\",MOD(game!F1158,2))","v":""}]
[null,null,null,null,null,null,null,null,{"$f":"IF(ISBLANK(game!F1159),\"\",MOD(game!F1159,2))","v":""}]
[null,null,null,null,null,null,null,null,{"$f":"IF(ISBLANK(game!F1160),\"\",MOD(game!F1160,2))","v":""}]
[null,null,null,null,null,null,null,null,{"$f":"IF(ISBLANK(game!F1161),\"\",MOD(game!F1161,2))","v":""}]
[null,null,null,null,null,null,null,null,{"$f":"IF(ISBLANK(game!F1162),\"\",MOD(game!F1162,2))","v":""}]
[null,null,null,null,null,null,null,null,{"$f":"IF(ISBLANK(game!F1163),\"\",MOD(game!F1163,2))","v":""}]
[null,null,null,null,null,null,null,null,{"$f":"IF(ISBLANK(game!F1164),\"\",MOD(game!F1164,2))","v":""}]
[null,null,null,null,null,null,null,null,{"$f":"IF(ISBLANK(game!F1165),\"\",MOD(game!F1165,2))","v":""}]
[null,null,null,null,null,null,null,null,{"$f":"IF(ISBLANK(game!F1166),\"\",MOD(game!F1166,2))","v":""}]
[null,null,null,null,null,null,null,null,{"$f":"IF(ISBLANK(game!F1167),\"\",MOD(game!F1167,2))","v":""}]
[null,null,null,null,null,null,null,null,{"$f":"IF(ISBLANK(game!F1168),\"\",MOD(game!F1168,2))","v":""}]
[null,null,null,null,null,null,null,null,{"$f":"IF(ISBLANK(game!F1169),\"\",MOD(game!F1169,2))","v":""}]
[null,null,null,null,null,null,null,null,{"$f":"IF(ISBLANK(game!F1170),\"\",MOD(game!F1170,2))","v":""}]
[null,null,null,null,null,null,null,null,{"$f":"IF(ISBLANK(game!F1171),\"\",MOD(game!F1171,2))","v":""}]
[null,null,null,null,null,null,null,null,{"$f":"IF(ISBLANK(game!F1172),\"\",MOD(game!F1172,2))","v":""}]
[null,null,null,null,null,null,null,null,{"$f":"IF(ISBLANK(game!F1173),\"\",MOD(game!F1173,2))","v":""}]
[null,null,null,null,null,null,null,null,{"$f":"IF(ISBLANK(game!F1174),\"\",MOD(game!F1174,2))","v":""}]
[null,null,null,null,null,null,null,null,{"$f":"IF(ISBLANK(game!F1175),\"\",MOD(game!F1175,2))","v":""}]
[null,null,null,null,null,null,null,null,{"$f":"IF(ISBLANK(game!F1176),\"\",MOD(game!F1176,2))","v":""}]
[null,null,null,null,null,null,null,null,{"$f":"IF(ISBLANK(game!F1177),\"\",MOD(game!F1177,2))","v":""}]
[null,null,null,null,null,null,null,null,{"$f":"IF(ISBLANK(game!F1178),\"\",MOD(game!F1178,2))","v":""}]
[null,null,null,null,null,null,null,null,{"$f":"IF(ISBLANK(game!F1179),\"\",MOD(game!F1179,2))","v":""}]
[null,null,null,null,null,null,null,null,{"$f":"IF(ISBLANK(game!F1180),\"\",MOD(game!F1180,2))","v":""}]
[null,null,null,null,null,null,null,null,{"$f":"IF(ISBLANK(game!F1181),\"\",MOD(game!F1181,2))","v":""}]
[null,null,null,null,null,null,null,null,{"$f":"IF(ISBLANK(game!F1182),\"\",MOD(game!F1182,2))","v":""}]
[null,null,null,null,null,null,null,null,{"$f":"IF(ISBLANK(game!F1183),\"\",MOD(game!F1183,2))","v":""}]
[null,null,null,null,null,null,null,null,{"$f":"IF(ISBLANK(game!F1184),\"\",MOD(game!F1184,2))","v":""}]
[null,null,null,null,null,null,null,null,{"$f":"IF(ISBLANK(game!F1185),\"\",MOD(game!F1185,2))","v":""}]
[null,null,null,null,null,null,null,null,{"$f":"IF(ISBLANK(game!F1186),\"\",MOD(game!F1186,2))","v":""}]
[null,null,null,null,null,null,null,null,{"$f":"IF(ISBLANK(game!F1187),\"\",MOD(game!F1187,2))","v":""}]
[null,null,null,null,null,null,null,null,{"$f":"IF(ISBLANK(game!F1188),\"\",MOD(game!F1188,2))","v":""}]
[null,null,null,null,null,null,null,null,{"$f":"IF(ISBLANK(game!F1189),\"\",MOD(game!F1189,2))","v":""}]
[null,null,null,null,null,null,null,null,{"$f":"IF(ISBLANK(game!F1190),\"\",MOD(game!F1190,2))","v":""}]
[null,null,null,null,null,null,null,null,{"$f":"IF(ISBLANK(game!F1191),\"\",MOD(game!F1191,2))","v":""}]
[null,null,null,null,null,null,null,null,{"$f":"IF(ISBLANK(game!F1192),\"\",MOD(game!F1192,2))","v":""}]
[null,null,null,null,null,null,null,null,{"$f":"IF(ISBLANK(game!F1193),\"\",MOD(game!F1193,2))","v":""}]
[null,null,null,null,null,null,null,null,{"$f":"IF(ISBLANK(game!F1194),\"\",MOD(game!F1194,2))","v":""}]
[null,null,null,null,null,null,null,null,{"$f":"IF(ISBLANK(game!F1195),\"\",MOD(game!F1195,2))","v":""}]
[null,null,null,null,null,null,null,null,{"$f":"IF(ISBLANK(game!F1196),\"\",MOD(game!F1196,2))","v":""}]
[null,null,null,null,null,null,null,null,{"$f":"IF(ISBLANK(game!F1197),\"\",MOD(game!F1197,2))","v":""}]
[null,null,null,null,null,null,null,null,{"$f":"IF(ISBLANK(game!F1198),\"\",MOD(game!F1198,2))","v":""}]
[null,null,null,null,null,null,null,null,{"$f":"IF(ISBLANK(game!F1199),\"\",MOD(game!F1199,2))","v":""}]
[null,null,null,null,null,null,null,null,{"$f":"IF(ISBLANK(game!F1200),\"\",MOD(game!F1200,2))","v":""}]
[null,null,null,null,null,null,null,null,{"$f":"IF(ISBLANK(game!F1201),\"\",MOD(game!F1201,2))","v":""}]
[null,null,null,null,null,null,null,null,{"$f":"IF(ISBLANK(game!F1202),\"\",MOD(game!F1202,2))","v":""}]
[null,null,null,null,null,null,null,null,{"$f":"IF(ISBLANK(game!F1203),\"\",MOD(game!F1203,2))","v":""}]
[null,null,null,null,null,null,null,null,{"$f":"IF(ISBLANK(game!F1204),\"\",MOD(game!F1204,2))","v":""}]
[null,null,null,null,null,null,null,null,{"$f":"IF(ISBLANK(game!F1205),\"\",MOD(game!F1205,2))","v":""}]
[null,null,null,null,null,null,null,null,{"$f":"IF(ISBLANK(game!F1206),\"\",MOD(game!F1206,2))","v":""}]
[null,null,null,null,null,null,null,null,{"$f":"IF(ISBLANK(game!F1207),\"\",MOD(game!F1207,2))","v":""}]
[null,null,null,null,null,null,null,null,{"$f":"IF(ISBLANK(game!F1208),\"\",MOD(game!F1208,2))","v":""}]
[null,null,null,null,null,null,null,null,{"$f":"IF(ISBLANK(game!F1209),\"\",MOD(game!F1209,2))","v":""}]
[null,null,null,null,null,null,null,null,{"$f":"IF(ISBLANK(game!F1210),\"\",MOD(game!F1210,2))","v":""}]
[null,null,null,null,null,null,null,null,{"$f":"IF(ISBLANK(game!F1211),\"\",MOD(game!F1211,2))","v":""}]
[null,null,null,null,null,null,null,null,{"$f":"IF(ISBLANK(game!F1212),\"\",MOD(game!F1212,2))","v":""}]
[null,null,null,null,null,null,null,null,{"$f":"IF(ISBLANK(game!F1213),\"\",MOD(game!F1213,2))","v":""}]
[null,null,null,null,null,null,null,null,{"$f":"IF(ISBLANK(game!F1214),\"\",MOD(game!F1214,2))","v":""}]
[null,null,null,null,null,null,null,null,{"$f":"IF(ISBLANK(game!F1215),\"\",MOD(game!F1215,2))","v":""}]
[null,null,null,null,null,null,null,null,{"$f":"IF(ISBLANK(game!F1216),\"\",MOD(game!F1216,2))","v":""}]
[null,null,null,null,null,null,null,null,{"$f":"IF(ISBLANK(game!F1217),\"\",MOD(game!F1217,2))","v":""}]
[null,null,null,null,null,null,null,null,{"$f":"IF(ISBLANK(game!F1218),\"\",MOD(game!F1218,2))","v":""}]
[null,null,null,null,null,null,null,null,{"$f":"IF(ISBLANK(game!F1219),\"\",MOD(game!F1219,2))","v":""}]
[null,null,null,null,null,null,null,null,{"$f":"IF(ISBLANK(game!F1220),\"\",MOD(game!F1220,2))","v":""}]
[null,null,null,null,null,null,null,null,{"$f":"IF(ISBLANK(game!F1221),\"\",MOD(game!F1221,2))","v":""}]
[null,null,null,null,null,null,null,null,{"$f":"IF(ISBLANK(game!F1222),\"\",MOD(game!F1222,2))","v":""}]
[null,null,null,null,null,null,null,null,{"$f":"IF(ISBLANK(game!F1223),\"\",MOD(game!F1223,2))","v":""}]
[null,null,null,null,null,null,null,null,{"$f":"IF(ISBLANK(game!F1224),\"\",MOD(game!F1224,2))","v":""}]
[null,null,null,null,null,null,null,null,{"$f":"IF(ISBLANK(game!F1225),\"\",MOD(game!F1225,2))","v":""}]
[null,null,null,null,null,null,null,null,{"$f":"IF(ISBLANK(game!F1226),\"\",MOD(game!F1226,2))","v":""}]
[null,null,null,null,null,null,null,null,{"$f":"IF(ISBLANK(game!F1227),\"\",MOD(game!F1227,2))","v":""}]
[null,null,null,null,null,null,null,null,{"$f":"IF(ISBLANK(game!F1228),\"\",MOD(game!F1228,2))","v":""}]
[null,null,null,null,null,null,null,null,{"$f":"IF(ISBLANK(game!F1229),\"\",MOD(game!F1229,2))","v":""}]
[null,null,null,null,null,null,null,null,{"$f":"IF(ISBLANK(game!F1230),\"\",MOD(game!F1230,2))","v":""}]
[null,null,null,null,null,null,null,null,{"$f":"IF(ISBLANK(game!F1231),\"\",MOD(game!F1231,2))","v":""}]
[null,null,null,null,null,null,null,null,{"$f":"IF(ISBLANK(game!F1232),\"\",MOD(game!F1232,2))","v":""}]
[null,null,null,null,null,null,null,null,{"$f":"IF(ISBLANK(game!F1233),\"\",MOD(game!F1233,2))","v":""}]
[null,null,null,null,null,null,null,null,{"$f":"IF(ISBLANK(game!F1234),\"\",MOD(game!F1234,2))","v":""}]
[null,null,null,null,null,null,null,null,{"$f":"IF(ISBLANK(game!F1235),\"\",MOD(game!F1235,2))","v":""}]
[null,null,null,null,null,null,null,null,{"$f":"IF(ISBLANK(game!F1236),\"\",MOD(game!F1236,2))","v":""}]
[null,null,null,null,null,null,null,null,{"$f":"IF(ISBLANK(game!F1237),\"\",MOD(game!F1237,2))","v":""}]
[null,null,null,null,null,null,null,null,{"$f":"IF(ISBLANK(game!F1238),\"\",MOD(game!F1238,2))","v":""}]
[null,null,null,null,null,null,null,null,{"$f":"IF(ISBLANK(game!F1239),\"\",MOD(game!F1239,2))","v":""}]
[null,null,null,null,null,null,null,null,{"$f":"IF(ISBLANK(game!F1240),\"\",MOD(game!F1240,2))","v":""}]
[null,null,null,null,null,null,null,null,{"$f":"IF(ISBLANK(game!F1241),\"\",MOD(game!F1241,2))","v":""}]
[null,null,null,null,null,null,null,null,{"$f":"IF(ISBLANK(game!F1242),\"\",MOD(game!F1242,2))","v":""}]
[null,null,null,null,null,null,null,null,{"$f":"IF(ISBLANK(game!F1243),\"\",MOD(game!F1243,2))","v":""}]
[null,null,null,null,null,null,null,null,{"$f":"IF(ISBLANK(game!F1244),\"\",MOD(game!F1244,2))","v":""}]
[null,null,null,null,null,null,null,null,{"$f":"IF(ISBLANK(game!F1245),\"\",MOD(game!F1245,2))","v":""}]
[null,null,null,null,null,null,null,null,{"$f":"IF(ISBLANK(game!F1246),\"\",MOD(game!F1246,2))","v":""}]
[null,null,null,null,null,null,null,null,{"$f":"IF(ISBLANK(game!F1247),\"\",MOD(game!F1247,2))","v":""}]
[null,null,null,null,null,null,null,null,{"$f":"IF(ISBLANK(game!F1248),\"\",MOD(game!F1248,2))","v":""}]
[null,null,null,null,null,null,null,null,{"$f":"IF(ISBLANK(game!F1249),\"\",MOD(game!F1249,2))","v":""}]
[null,null,null,null,null,null,null,null,{"$f":"IF(ISBLANK(game!F1250),\"\",MOD(game!F1250,2))","v":""}]
[null,null,null,null,null,null,null,null,{"$f":"IF(ISBLANK(game!F1251),\"\",MOD(game!F1251,2))","v":""}]
[null,null,null,null,null,null,null,null,{"$f":"IF(ISBLANK(game!F1252),\"\",MOD(game!F1252,2))","v":""}]
[null,null,null,null,null,null,null,null,{"$f":"IF(ISBLANK(game!F1253),\"\",MOD(game!F1253,2))","v":""}]
[null,null,null,null,null,null,null,null,{"$f":"IF(ISBLANK(game!F1254),\"\",MOD(game!F1254,2))","v":""}]
[null,null,null,null,null,null,null,null,{"$f":"IF(ISBLANK(game!F1255),\"\",MOD(game!F1255,2))","v":""}]
[null,null,null,null,null,null,null,null,{"$f":"IF(ISBLANK(game!F1256),\"\",MOD(game!F1256,2))","v":""}]
[null,null,null,null,null,null,null,null,{"$f":"IF(ISBLANK(game!F1257),\"\",MOD(game!F1257,2))","v":""}]
[null,null,null,null,null,null,null,null,{"$f":"IF(ISBLANK(game!F1258),\"\",MOD(game!F1258,2))","v":""}]
[null,null,null,null,null,null,null,null,{"$f":"IF(ISBLANK(game!F1259),\"\",MOD(game!F1259,2))","v":""}]
[null,null,null,null,null,null,null,null,{"$f":"IF(ISBLANK(game!F1260),\"\",MOD(game!F1260,2))","v":""}]
[null,null,null,null,null,null,null,null,{"$f":"IF(ISBLANK(game!F1261),\"\",MOD(game!F1261,2))","v":""}]
[null,null,null,null,null,null,null,null,{"$f":"IF(ISBLANK(game!F1262),\"\",MOD(game!F1262,2))","v":""}]
[null,null,null,null,null,null,null,null,{"$f":"IF(ISBLANK(game!F1263),\"\",MOD(game!F1263,2))","v":""}]
[null,null,null,null,null,null,null,null,{"$f":"IF(ISBLANK(game!F1264),\"\",MOD(game!F1264,2))","v":""}]
[null,null,null,null,null,null,null,null,{"$f":"IF(ISBLANK(game!F1265),\"\",MOD(game!F1265,2))","v":""}]
[null,null,null,null,null,null,null,null,{"$f":"IF(ISBLANK(game!F1266),\"\",MOD(game!F1266,2))","v":""}]
[null,null,null,null,null,null,null,null,{"$f":"IF(ISBLANK(game!F1267),\"\",MOD(game!F1267,2))","v":""}]
[null,null,null,null,null,null,null,null,{"$f":"IF(ISBLANK(game!F1268),\"\",MOD(game!F1268,2))","v":""}]
[null,null,null,null,null,null,null,null,{"$f":"IF(ISBLANK(game!F1269),\"\",MOD(game!F1269,2))","v":""}]
[null,null,null,null,null,null,null,null,{"$f":"IF(ISBLANK(game!F1270),\"\",MOD(game!F1270,2))","v":""}]
[null,null,null,null,null,null,null,null,{"$f":"IF(ISBLANK(game!F1271),\"\",MOD(game!F1271,2))","v":""}]
[null,null,null,null,null,null,null,null,{"$f":"IF(ISBLANK(game!F1272),\"\",MOD(game!F1272,2))","v":""}]
[null,null,null,null,null,null,null,null,{"$f":"IF(ISBLANK(game!F1273),\"\",MOD(game!F1273,2))","v":""}]
[null,null,null,null,null,null,null,null,{"$f":"IF(ISBLANK(game!F1274),\"\",MOD(game!F1274,2))","v":""}]
[null,null,null,null,null,null,null,null,{"$f":"IF(ISBLANK(game!F1275),\"\",MOD(game!F1275,2))","v":""}]
[null,null,null,null,null,null,null,null,{"$f":"IF(ISBLANK(game!F1276),\"\",MOD(game!F1276,2))","v":""}]
[null,null,null,null,null,null,null,null,{"$f":"IF(ISBLANK(game!F1277),\"\",MOD(game!F1277,2))","v":""}]
[null,null,null,null,null,null,null,null,{"$f":"IF(ISBLANK(game!F1278),\"\",MOD(game!F1278,2))","v":""}]
[null,null,null,null,null,null,null,null,{"$f":"IF(ISBLANK(game!F1279),\"\",MOD(game!F1279,2))","v":""}]
[null,null,null,null,null,null,null,null,{"$f":"IF(ISBLANK(game!F1280),\"\",MOD(game!F1280,2))","v":""}]
[null,null,null,null,null,null,null,null,{"$f":"IF(ISBLANK(game!F1281),\"\",MOD(game!F1281,2))","v":""}]
[null,null,null,null,null,null,null,null,{"$f":"IF(ISBLANK(game!F1282),\"\",MOD(game!F1282,2))","v":""}]
[null,null,null,null,null,null,null,null,{"$f":"IF(ISBLANK(game!F1283),\"\",MOD(game!F1283,2))","v":""}]
[null,null,null,null,null,null,null,null,{"$f":"IF(ISBLANK(game!F1284),\"\",MOD(game!F1284,2))","v":""}]
[null,null,null,null,null,null,null,null,{"$f":"IF(ISBLANK(game!F1285),\"\",MOD(game!F1285,2))","v":""}]
[null,null,null,null,null,null,null,null,{"$f":"IF(ISBLANK(game!F1286),\"\",MOD(game!F1286,2))","v":""}]
[null,null,null,null,null,null,null,null,{"$f":"IF(ISBLANK(game!F1287),\"\",MOD(game!F1287,2))","v":""}]
[null,null,null,null,null,null,null,null,{"$f":"IF(ISBLANK(game!F1288),\"\",MOD(game!F1288,2))","v":""}]
[null,null,null,null,null,null,null,null,{"$f":"IF(ISBLANK(game!F1289),\"\",MOD(game!F1289,2))","v":""}]
[null,null,null,null,null,null,null,null,{"$f":"IF(ISBLANK(game!F1290),\"\",MOD(game!F1290,2))","v":""}]
[null,null,null,null,null,null,null,null,{"$f":"IF(ISBLANK(game!F1291),\"\",MOD(game!F1291,2))","v":""}]
[null,null,null,null,null,null,null,null,{"$f":"IF(ISBLANK(game!F1292),\"\",MOD(game!F1292,2))","v":""}]
[null,null,null,null,null,null,null,null,{"$f":"IF(ISBLANK(game!F1293),\"\",MOD(game!F1293,2))","v":""}]
[null,null,null,null,null,null,null,null,{"$f":"IF(ISBLANK(game!F1294),\"\",MOD(game!F1294,2))","v":""}]
[null,null,null,null,null,null,null,null,{"$f":"IF(ISBLANK(game!F1295),\"\",MOD(game!F1295,2))","v":""}]
[null,null,null,null,null,null,null,null,{"$f":"IF(ISBLANK(game!F1296),\"\",MOD(game!F1296,2))","v":""}]
[null,null,null,null,null,null,null,null,{"$f":"IF(ISBLANK(game!F1297),\"\",MOD(game!F1297,2))","v":""}]
[null,null,null,null,null,null,null,null,{"$f":"IF(ISBLANK(game!F1298),\"\",MOD(game!F1298,2))","v":""}]
[null,null,null,null,null,null,null,null,{"$f":"IF(ISBLANK(game!F1299),\"\",MOD(game!F1299,2))","v":""}]
[null,null,null,null,null,null,null,null,{"$f":"IF(ISBLANK(game!F1300),\"\",MOD(game!F1300,2))","v":""}]
[null,null,null,null,null,null,null,null,{"$f":"IF(ISBLANK(game!F1301),\"\",MOD(game!F1301,2))","v":""}]
[null,null,null,null,null,null,null,null,{"$f":"IF(ISBLANK(game!F1302),\"\",MOD(game!F1302,2))","v":""}]
[null,null,null,null,null,null,null,null,{"$f":"IF(ISBLANK(game!F1303),\"\",MOD(game!F1303,2))","v":""}]
[null,null,null,null,null,null,null,null,{"$f":"IF(ISBLANK(game!F1304),\"\",MOD(game!F1304,2))","v":""}]
[null,null,null,null,null,null,null,null,{"$f":"IF(ISBLANK(game!F1305),\"\",MOD(game!F1305,2))","v":""}]
[null,null,null,null,null,null,null,null,{"$f":"IF(ISBLANK(game!F1306),\"\",MOD(game!F1306,2))","v":""}]
[null,null,null,null,null,null,null,null,{"$f":"IF(ISBLANK(game!F1307),\"\",MOD(game!F1307,2))","v":""}]
[null,null,null,null,null,null,null,null,{"$f":"IF(ISBLANK(game!F1308),\"\",MOD(game!F1308,2))","v":""}]
[null,null,null,null,null,null,null,null,{"$f":"IF(ISBLANK(game!F1309),\"\",MOD(game!F1309,2))","v":""}]
[null,null,null,null,null,null,null,null,{"$f":"IF(ISBLANK(game!F1310),\"\",MOD(game!F1310,2))","v":""}]
[null,null,null,null,null,null,null,null,{"$f":"IF(ISBLANK(game!F1311),\"\",MOD(game!F1311,2))","v":""}]
[null,null,null,null,null,null,null,null,{"$f":"IF(ISBLANK(game!F1312),\"\",MOD(game!F1312,2))","v":""}]
[null,null,null,null,null,null,null,null,{"$f":"IF(ISBLANK(game!F1313),\"\",MOD(game!F1313,2))","v":""}]
[null,null,null,null,null,null,null,null,{"$f":"IF(ISBLANK(game!F1314),\"\",MOD(game!F1314,2))","v":""}]
[null,null,null,null,null,null,null,null,{"$f":"IF(ISBLANK(game!F1315),\"\",MOD(game!F1315,2))","v":""}]
[null,null,null,null,null,null,null,null,{"$f":"IF(ISBLANK(game!F1316),\"\",MOD(game!F1316,2))","v":""}]
[null,null,null,null,null,null,null,null,{"$f":"IF(ISBLANK(game!F1317),\"\",MOD(game!F1317,2))","v":""}]
[null,null,null,null,null,null,null,null,{"$f":"IF(ISBLANK(game!F1318),\"\",MOD(game!F1318,2))","v":""}]
[null,null,null,null,null,null,null,null,{"$f":"IF(ISBLANK(game!F1319),\"\",MOD(game!F1319,2))","v":""}]
[null,null,null,null,null,null,null,null,{"$f":"IF(ISBLANK(game!F1320),\"\",MOD(game!F1320,2))","v":""}]
[null,null,null,null,null,null,null,null,{"$f":"IF(ISBLANK(game!F1321),\"\",MOD(game!F1321,2))","v":""}]
[null,null,null,null,null,null,null,null,{"$f":"IF(ISBLANK(game!F1322),\"\",MOD(game!F1322,2))","v":""}]
[null,null,null,null,null,null,null,null,{"$f":"IF(ISBLANK(game!F1323),\"\",MOD(game!F1323,2))","v":""}]
[null,null,null,null,null,null,null,null,{"$f":"IF(ISBLANK(game!F1324),\"\",MOD(game!F1324,2))","v":""}]
[null,null,null,null,null,null,null,null,{"$f":"IF(ISBLANK(game!F1325),\"\",MOD(game!F1325,2))","v":""}]
[null,null,null,null,null,null,null,null,{"$f":"IF(ISBLANK(game!F1326),\"\",MOD(game!F1326,2))","v":""}]
[null,null,null,null,null,null,null,null,{"$f":"IF(ISBLANK(game!F1327),\"\",MOD(game!F1327,2))","v":""}]
[null,null,null,null,null,null,null,null,{"$f":"IF(ISBLANK(game!F1328),\"\",MOD(game!F1328,2))","v":""}]
[null,null,null,null,null,null,null,null,{"$f":"IF(ISBLANK(game!F1329),\"\",MOD(game!F1329,2))","v":""}]
[null,null,null,null,null,null,null,null,{"$f":"IF(ISBLANK(game!F1330),\"\",MOD(game!F1330,2))","v":""}]
[null,null,null,null,null,null,null,null,{"$f":"IF(ISBLANK(game!F1331),\"\",MOD(game!F1331,2))","v":""}]
[null,null,null,null,null,null,null,null,{"$f":"IF(ISBLANK(game!F1332),\"\",MOD(game!F1332,2))","v":""}]
[null,null,null,null,null,null,null,null,{"$f":"IF(ISBLANK(game!F1333),\"\",MOD(game!F1333,2))","v":""}]
[null,null,null,null,null,null,null,null,{"$f":"IF(ISBLANK(game!F1334),\"\",MOD(game!F1334,2))","v":""}]
[null,null,null,null,null,null,null,null,{"$f":"IF(ISBLANK(game!F1335),\"\",MOD(game!F1335,2))","v":""}]
[null,null,null,null,null,null,null,null,{"$f":"IF(ISBLANK(game!F1336),\"\",MOD(game!F1336,2))","v":""}]
[null,null,null,null,null,null,null,null,{"$f":"IF(ISBLANK(game!F1337),\"\",MOD(game!F1337,2))","v":""}]
[null,null,null,null,null,null,null,null,{"$f":"IF(ISBLANK(game!F1338),\"\",MOD(game!F1338,2))","v":""}]
[null,null,null,null,null,null,null,null,{"$f":"IF(ISBLANK(game!F1339),\"\",MOD(game!F1339,2))","v":""}]
[null,null,null,null,null,null,null,null,{"$f":"IF(ISBLANK(game!F1340),\"\",MOD(game!F1340,2))","v":""}]
[null,null,null,null,null,null,null,null,{"$f":"IF(ISBLANK(game!F1341),\"\",MOD(game!F1341,2))","v":""}]
[null,null,null,null,null,null,null,null,{"$f":"IF(ISBLANK(game!F1342),\"\",MOD(game!F1342,2))","v":""}]
[null,null,null,null,null,null,null,null,{"$f":"IF(ISBLANK(game!F1343),\"\",MOD(game!F1343,2))","v":""}]
[null,null,null,null,null,null,null,null,{"$f":"IF(ISBLANK(game!F1344),\"\",MOD(game!F1344,2))","v":""}]
[null,null,null,null,null,null,null,null,{"$f":"IF(ISBLANK(game!F1345),\"\",MOD(game!F1345,2))","v":""}]
[null,null,null,null,null,null,null,null,{"$f":"IF(ISBLANK(game!F1346),\"\",MOD(game!F1346,2))","v":""}]
[null,null,null,null,null,null,null,null,{"$f":"IF(ISBLANK(game!F1347),\"\",MOD(game!F1347,2))","v":""}]
[null,null,null,null,null,null,null,null,{"$f":"IF(ISBLANK(game!F1348),\"\",MOD(game!F1348,2))","v":""}]
[null,null,null,null,null,null,null,null,{"$f":"IF(ISBLANK(game!F1349),\"\",MOD(game!F1349,2))","v":""}]
[null,null,null,null,null,null,null,null,{"$f":"IF(ISBLANK(game!F1350),\"\",MOD(game!F1350,2))","v":""}]
[null,null,null,null,null,null,null,null,{"$f":"IF(ISBLANK(game!F1351),\"\",MOD(game!F1351,2))","v":""}]
[null,null,null,null,null,null,null,null,{"$f":"IF(ISBLANK(game!F1352),\"\",MOD(game!F1352,2))","v":""}]
[null,null,null,null,null,null,null,null,{"$f":"IF(ISBLANK(game!F1353),\"\",MOD(game!F1353,2))","v":""}]
[null,null,null,null,null,null,null,null,{"$f":"IF(ISBLANK(game!F1354),\"\",MOD(game!F1354,2))","v":""}]
[null,null,null,null,null,null,null,null,{"$f":"IF(ISBLANK(game!F1355),\"\",MOD(game!F1355,2))","v":""}]
[null,null,null,null,null,null,null,null,{"$f":"IF(ISBLANK(game!F1356),\"\",MOD(game!F1356,2))","v":""}]
[null,null,null,null,null,null,null,null,{"$f":"IF(ISBLANK(game!F1357),\"\",MOD(game!F1357,2))","v":""}]
[null,null,null,null,null,null,null,null,{"$f":"IF(ISBLANK(game!F1358),\"\",MOD(game!F1358,2))","v":""}]
[null,null,null,null,null,null,null,null,{"$f":"IF(ISBLANK(game!F1359),\"\",MOD(game!F1359,2))","v":""}]
[null,null,null,null,null,null,null,null,{"$f":"IF(ISBLANK(game!F1360),\"\",MOD(game!F1360,2))","v":""}]
[null,null,null,null,null,null,null,null,{"$f":"IF(ISBLANK(game!F1361),\"\",MOD(game!F1361,2))","v":""}]
[null,null,null,null,null,null,null,null,{"$f":"IF(ISBLANK(game!F1362),\"\",MOD(game!F1362,2))","v":""}]
[null,null,null,null,null,null,null,null,{"$f":"IF(ISBLANK(game!F1363),\"\",MOD(game!F1363,2))","v":""}]
[null,null,null,null,null,null,null,null,{"$f":"IF(ISBLANK(game!F1364),\"\",MOD(game!F1364,2))","v":""}]
[null,null,null,null,null,null,null,null,{"$f":"IF(ISBLANK(game!F1365),\"\",MOD(game!F1365,2))","v":""}]
[null,null,null,null,null,null,null,null,{"$f":"IF(ISBLANK(game!F1366),\"\",MOD(game!F1366,2))","v":""}]
[null,null,null,null,null,null,null,null,{"$f":"IF(ISBLANK(game!F1367),\"\",MOD(game!F1367,2))","v":""}]
[null,null,null,null,null,null,null,null,{"$f":"IF(ISBLANK(game!F1368),\"\",MOD(game!F1368,2))","v":""}]
[null,null,null,null,null,null,null,null,{"$f":"IF(ISBLANK(game!F1369),\"\",MOD(game!F1369,2))","v":""}]
[null,null,null,null,null,null,null,null,{"$f":"IF(ISBLANK(game!F1370),\"\",MOD(game!F1370,2))","v":""}]
[null,null,null,null,null,null,null,null,{"$f":"IF(ISBLANK(game!F1371),\"\",MOD(game!F1371,2))","v":""}]
[null,null,null,null,null,null,null,null,{"$f":"IF(ISBLANK(game!F1372),\"\",MOD(game!F1372,2))","v":""}]
[null,null,null,null,null,null,null,null,{"$f":"IF(ISBLANK(game!F1373),\"\",MOD(game!F1373,2))","v":""}]
[null,null,null,null,null,null,null,null,{"$f":"IF(ISBLANK(game!F1374),\"\",MOD(game!F1374,2))","v":""}]
[null,null,null,null,null,null,null,null,{"$f":"IF(ISBLANK(game!F1375),\"\",MOD(game!F1375,2))","v":""}]
[null,null,null,null,null,null,null,null,{"$f":"IF(ISBLANK(game!F1376),\"\",MOD(game!F1376,2))","v":""}]
[null,null,null,null,null,null,null,null,{"$f":"IF(ISBLANK(game!F1377),\"\",MOD(game!F1377,2))","v":""}]
[null,null,null,null,null,null,null,null,{"$f":"IF(ISBLANK(game!F1378),\"\",MOD(game!F1378,2))","v":""}]
[null,null,null,null,null,null,null,null,{"$f":"IF(ISBLANK(game!F1379),\"\",MOD(game!F1379,2))","v":""}]
[null,null,null,null,null,null,null,null,{"$f":"IF(ISBLANK(game!F1380),\"\",MOD(game!F1380,2))","v":""}]
[null,null,null,null,null,null,null,null,{"$f":"IF(ISBLANK(game!F1381),\"\",MOD(game!F1381,2))","v":""}]
[null,null,null,null,null,null,null,null,{"$f":"IF(ISBLANK(game!F1382),\"\",MOD(game!F1382,2))","v":""}]
[null,null,null,null,null,null,null,null,{"$f":"IF(ISBLANK(game!F1383),\"\",MOD(game!F1383,2))","v":""}]
[null,null,null,null,null,null,null,null,{"$f":"IF(ISBLANK(game!F1384),\"\",MOD(game!F1384,2))","v":""}]
[null,null,null,null,null,null,null,null,{"$f":"IF(ISBLANK(game!F1385),\"\",MOD(game!F1385,2))","v":""}]
[null,null,null,null,null,null,null,null,{"$f":"IF(ISBLANK(game!F1386),\"\",MOD(game!F1386,2))","v":""}]
[null,null,null,null,null,null,null,null,{"$f":"IF(ISBLANK(game!F1387),\"\",MOD(game!F1387,2))","v":""}]
[null,null,null,null,null,null,null,null,{"$f":"IF(ISBLANK(game!F1388),\"\",MOD(game!F1388,2))","v":""}]
[null,null,null,null,null,null,null,null,{"$f":"IF(ISBLANK(game!F1389),\"\",MOD(game!F1389,2))","v":""}]
[null,null,null,null,null,null,null,null,{"$f":"IF(ISBLANK(game!F1390),\"\",MOD(game!F1390,2))","v":""}]
[null,null,null,null,null,null,null,null,{"$f":"IF(ISBLANK(game!F1391),\"\",MOD(game!F1391,2))","v":""}]
[null,null,null,null,null,null,null,null,{"$f":"IF(ISBLANK(game!F1392),\"\",MOD(game!F1392,2))","v":""}]
[null,null,null,null,null,null,null,null,{"$f":"IF(ISBLANK(game!F1393),\"\",MOD(game!F1393,2))","v":""}]
[null,null,null,null,null,null,null,null,{"$f":"IF(ISBLANK(game!F1394),\"\",MOD(game!F1394,2))","v":""}]
[null,null,null,null,null,null,null,null,{"$f":"IF(ISBLANK(game!F1395),\"\",MOD(game!F1395,2))","v":""}]
[null,null,null,null,null,null,null,null,{"$f":"IF(ISBLANK(game!F1396),\"\",MOD(game!F1396,2))","v":""}]
[null,null,null,null,null,null,null,null,{"$f":"IF(ISBLANK(game!F1397),\"\",MOD(game!F1397,2))","v":""}]
[null,null,null,null,null,null,null,null,{"$f":"IF(ISBLANK(game!F1398),\"\",MOD(game!F1398,2))","v":""}]
[null,null,null,null,null,null,null,null,{"$f":"IF(ISBLANK(game!F1399),\"\",MOD(game!F1399,2))","v":""}]
[null,null,null,null,null,null,null,null,{"$f":"IF(ISBLANK(game!F1400),\"\",MOD(game!F1400,2))","v":""}]
[null,null,null,null,null,null,null,null,{"$f":"IF(ISBLANK(game!F1401),\"\",MOD(game!F1401,2))","v":""}]
[null,null,null,null,null,null,null,null,{"$f":"IF(ISBLANK(game!F1402),\"\",MOD(game!F1402,2))","v":""}]
[null,null,null,null,null,null,null,null,{"$f":"IF(ISBLANK(game!F1403),\"\",MOD(game!F1403,2))","v":""}]
[null,null,null,null,null,null,null,null,{"$f":"IF(ISBLANK(game!F1404),\"\",MOD(game!F1404,2))","v":""}]
[null,null,null,null,null,null,null,null,{"$f":"IF(ISBLANK(game!F1405),\"\",MOD(game!F1405,2))","v":""}]
[null,null,null,null,null,null,null,null,{"$f":"IF(ISBLANK(game!F1406),\"\",MOD(game!F1406,2))","v":""}]
[null,null,null,null,null,null,null,null,{"$f":"IF(ISBLANK(game!F1407),\"\",MOD(game!F1407,2))","v":""}]
[null,null,null,null,null,null,null,null,{"$f":"IF(ISBLANK(game!F1408),\"\",MOD(game!F1408,2))","v":""}]
[null,null,null,null,null,null,null,null,{"$f":"IF(ISBLANK(game!F1409),\"\",MOD(game!F1409,2))","v":""}]
[null,null,null,null,null,null,null,null,{"$f":"IF(ISBLANK(game!F1410),\"\",MOD(game!F1410,2))","v":""}]
[null,null,null,null,null,null,null,null,{"$f":"IF(ISBLANK(game!F1411),\"\",MOD(game!F1411,2))","v":""}]
[null,null,null,null,null,null,null,null,{"$f":"IF(ISBLANK(game!F1412),\"\",MOD(game!F1412,2))","v":""}]
[null,null,null,null,null,null,null,null,{"$f":"IF(ISBLANK(game!F1413),\"\",MOD(game!F1413,2))","v":""}]
[null,null,null,null,null,null,null,null,{"$f":"IF(ISBLANK(game!F1414),\"\",MOD(game!F1414,2))","v":""}]
[null,null,null,null,null,null,null,null,{"$f":"IF(ISBLANK(game!F1415),\"\",MOD(game!F1415,2))","v":""}]
[null,null,null,null,null,null,null,null,{"$f":"IF(ISBLANK(game!F1416),\"\",MOD(game!F1416,2))","v":""}]
[null,null,null,null,null,null,null,null,{"$f":"IF(ISBLANK(game!F1417),\"\",MOD(game!F1417,2))","v":""}]
[null,null,null,null,null,null,null,null,{"$f":"IF(ISBLANK(game!F1418),\"\",MOD(game!F1418,2))","v":""}]
[null,null,null,null,null,null,null,null,{"$f":"IF(ISBLANK(game!F1419),\"\",MOD(game!F1419,2))","v":""}]
[null,null,null,null,null,null,null,null,{"$f":"IF(ISBLANK(game!F1420),\"\",MOD(game!F1420,2))","v":""}]
[null,null,null,null,null,null,null,null,{"$f":"IF(ISBLANK(game!F1421),\"\",MOD(game!F1421,2))","v":""}]
[null,null,null,null,null,null,null,null,{"$f":"IF(ISBLANK(game!F1422),\"\",MOD(game!F1422,2))","v":""}]
[null,null,null,null,null,null,null,null,{"$f":"IF(ISBLANK(game!F1423),\"\",MOD(game!F1423,2))","v":""}]
[null,null,null,null,null,null,null,null,{"$f":"IF(ISBLANK(game!F1424),\"\",MOD(game!F1424,2))","v":""}]
[null,null,null,null,null,null,null,null,{"$f":"IF(ISBLANK(game!F1425),\"\",MOD(game!F1425,2))","v":""}]
[null,null,null,null,null,null,null,null,{"$f":"IF(ISBLANK(game!F1426),\"\",MOD(game!F1426,2))","v":""}]
[null,null,null,null,null,null,null,null,{"$f":"IF(ISBLANK(game!F1427),\"\",MOD(game!F1427,2))","v":""}]
[null,null,null,null,null,null,null,null,{"$f":"IF(ISBLANK(game!F1428),\"\",MOD(game!F1428,2))","v":""}]
[null,null,null,null,null,null,null,null,{"$f":"IF(ISBLANK(game!F1429),\"\",MOD(game!F1429,2))","v":""}]
[null,null,null,null,null,null,null,null,{"$f":"IF(ISBLANK(game!F1430),\"\",MOD(game!F1430,2))","v":""}]
[null,null,null,null,null,null,null,null,{"$f":"IF(ISBLANK(game!F1431),\"\",MOD(game!F1431,2))","v":""}]
[null,null,null,null,null,null,null,null,{"$f":"IF(ISBLANK(game!F1432),\"\",MOD(game!F1432,2))","v":""}]
[null,null,null,null,null,null,null,null,{"$f":"IF(ISBLANK(game!F1433),\"\",MOD(game!F1433,2))","v":""}]
[null,null,null,null,null,null,null,null,{"$f":"IF(ISBLANK(game!F1434),\"\",MOD(game!F1434,2))","v":""}]
[null,null,null,null,null,null,null,null,{"$f":"IF(ISBLANK(game!F1435),\"\",MOD(game!F1435,2))","v":""}]
[null,null,null,null,null,null,null,null,{"$f":"IF(ISBLANK(game!F1436),\"\",MOD(game!F1436,2))","v":""}]
[null,null,null,null,null,null,null,null,{"$f":"IF(ISBLANK(game!F1437),\"\",MOD(game!F1437,2))","v":""}]
[null,null,null,null,null,null,null,null,{"$f":"IF(ISBLANK(game!F1438),\"\",MOD(game!F1438,2))","v":""}]
[null,null,null,null,null,null,null,null,{"$f":"IF(ISBLANK(game!F1439),\"\",MOD(game!F1439,2))","v":""}]
[null,null,null,null,null,null,null,null,{"$f":"IF(ISBLANK(game!F1440),\"\",MOD(game!F1440,2))","v":""}]
[null,null,null,null,null,null,null,null,{"$f":"IF(ISBLANK(game!F1441),\"\",MOD(game!F1441,2))","v":""}]
[null,null,null,null,null,null,null,null,{"$f":"IF(ISBLANK(game!F1442),\"\",MOD(game!F1442,2))","v":""}]
[null,null,null,null,null,null,null,null,{"$f":"IF(ISBLANK(game!F1443),\"\",MOD(game!F1443,2))","v":""}]
[null,null,null,null,null,null,null,null,{"$f":"IF(ISBLANK(game!F1444),\"\",MOD(game!F1444,2))","v":""}]
[null,null,null,null,null,null,null,null,{"$f":"IF(ISBLANK(game!F1445),\"\",MOD(game!F1445,2))","v":""}]
[null,null,null,null,null,null,null,null,{"$f":"IF(ISBLANK(game!F1446),\"\",MOD(game!F1446,2))","v":""}]
[null,null,null,null,null,null,null,null,{"$f":"IF(ISBLANK(game!F1447),\"\",MOD(game!F1447,2))","v":""}]
[null,null,null,null,null,null,null,null,{"$f":"IF(ISBLANK(game!F1448),\"\",MOD(game!F1448,2))","v":""}]
[null,null,null,null,null,null,null,null,{"$f":"IF(ISBLANK(game!F1449),\"\",MOD(game!F1449,2))","v":""}]
[null,null,null,null,null,null,null,null,{"$f":"IF(ISBLANK(game!F1450),\"\",MOD(game!F1450,2))","v":""}]
[null,null,null,null,null,null,null,null,{"$f":"IF(ISBLANK(game!F1451),\"\",MOD(game!F1451,2))","v":""}]
[null,null,null,null,null,null,null,null,{"$f":"IF(ISBLANK(game!F1452),\"\",MOD(game!F1452,2))","v":""}]
[null,null,null,null,null,null,null,null,{"$f":"IF(ISBLANK(game!F1453),\"\",MOD(game!F1453,2))","v":""}]
[null,null,null,null,null,null,null,null,{"$f":"IF(ISBLANK(game!F1454),\"\",MOD(game!F1454,2))","v":""}]
[null,null,null,null,null,null,null,null,{"$f":"IF(ISBLANK(game!F1455),\"\",MOD(game!F1455,2))","v":""}]
[null,null,null,null,null,null,null,null,{"$f":"IF(ISBLANK(game!F1456),\"\",MOD(game!F1456,2))","v":""}]
[null,null,null,null,null,null,null,null,{"$f":"IF(ISBLANK(game!F1457),\"\",MOD(game!F1457,2))","v":""}]
[null,null,null,null,null,null,null,null,{"$f":"IF(ISBLANK(game!F1458),\"\",MOD(game!F1458,2))","v":""}]
[null,null,null,null,null,null,null,null,{"$f":"IF(ISBLANK(game!F1459),\"\",MOD(game!F1459,2))","v":""}]
[null,null,null,null,null,null,null,null,{"$f":"IF(ISBLANK(game!F1460),\"\",MOD(game!F1460,2))","v":""}]
[null,null,null,null,null,null,null,null,{"$f":"IF(ISBLANK(game!F1461),\"\",MOD(game!F1461,2))","v":""}]
[null,null,null,null,null,null,null,null,{"$f":"IF(ISBLANK(game!F1462),\"\",MOD(game!F1462,2))","v":""}]
[null,null,null,null,null,null,null,null,{"$f":"IF(ISBLANK(game!F1463),\"\",MOD(game!F1463,2))","v":""}]
[null,null,null,null,null,null,null,null,{"$f":"IF(ISBLANK(game!F1464),\"\",MOD(game!F1464,2))","v":""}]
[null,null,null,null,null,null,null,null,{"$f":"IF(ISBLANK(game!F1465),\"\",MOD(game!F1465,2))","v":""}]
[null,null,null,null,null,null,null,null,{"$f":"IF(ISBLANK(game!F1466),\"\",MOD(game!F1466,2))","v":""}]
[null,null,null,null,null,null,null,null,{"$f":"IF(ISBLANK(game!F1467),\"\",MOD(game!F1467,2))","v":""}]
[null,null,null,null,null,null,null,null,{"$f":"IF(ISBLANK(game!F1468),\"\",MOD(game!F1468,2))","v":""}]
[null,null,null,null,null,null,null,null,{"$f":"IF(ISBLANK(game!F1469),\"\",MOD(game!F1469,2))","v":""}]
[null,null,null,null,null,null,null,null,{"$f":"IF(ISBLANK(game!F1470),\"\",MOD(game!F1470,2))","v":""}]
[null,null,null,null,null,null,null,null,{"$f":"IF(ISBLANK(game!F1471),\"\",MOD(game!F1471,2))","v":""}]
[null,null,null,null,null,null,null,null,{"$f":"IF(ISBLANK(game!F1472),\"\",MOD(game!F1472,2))","v":""}]
[null,null,null,null,null,null,null,null,{"$f":"IF(ISBLANK(game!F1473),\"\",MOD(game!F1473,2))","v":""}]
[null,null,null,null,null,null,null,null,{"$f":"IF(ISBLANK(game!F1474),\"\",MOD(game!F1474,2))","v":""}]
[null,null,null,null,null,null,null,null,{"$f":"IF(ISBLANK(game!F1475),\"\",MOD(game!F1475,2))","v":""}]
[null,null,null,null,null,null,null,null,{"$f":"IF(ISBLANK(game!F1476),\"\",MOD(game!F1476,2))","v":""}]
[null,null,null,null,null,null,null,null,{"$f":"IF(ISBLANK(game!F1477),\"\",MOD(game!F1477,2))","v":""}]
[null,null,null,null,null,null,null,null,{"$f":"IF(ISBLANK(game!F1478),\"\",MOD(game!F1478,2))","v":""}]
[null,null,null,null,null,null,null,null,{"$f":"IF(ISBLANK(game!F1479),\"\",MOD(game!F1479,2))","v":""}]
[null,null,null,null,null,null,null,null,{"$f":"IF(ISBLANK(game!F1480),\"\",MOD(game!F1480,2))","v":""}]
[null,null,null,null,null,null,null,null,{"$f":"IF(ISBLANK(game!F1481),\"\",MOD(game!F1481,2))","v":""}]
[null,null,null,null,null,null,null,null,{"$f":"IF(ISBLANK(game!F1482),\"\",MOD(game!F1482,2))","v":""}]
[null,null,null,null,null,null,null,null,{"$f":"IF(ISBLANK(game!F1483),\"\",MOD(game!F1483,2))","v":""}]
[null,null,null,null,null,null,null,null,{"$f":"IF(ISBLANK(game!F1484),\"\",MOD(game!F1484,2))","v":""}]
[null,null,null,null,null,null,null,null,{"$f":"IF(ISBLANK(game!F1485),\"\",MOD(game!F1485,2))","v":""}]
[null,null,null,null,null,null,null,null,{"$f":"IF(ISBLANK(game!F1486),\"\",MOD(game!F1486,2))","v":""}]
[null,null,null,null,null,null,null,null,{"$f":"IF(ISBLANK(game!F1487),\"\",MOD(game!F1487,2))","v":""}]
[null,null,null,null,null,null,null,null,{"$f":"IF(ISBLANK(game!F1488),\"\",MOD(game!F1488,2))","v":""}]
[null,null,null,null,null,null,null,null,{"$f":"IF(ISBLANK(game!F1489),\"\",MOD(game!F1489,2))","v":""}]
[null,null,null,null,null,null,null,null,{"$f":"IF(ISBLANK(game!F1490),\"\",MOD(game!F1490,2))","v":""}]
[null,null,null,null,null,null,null,null,{"$f":"IF(ISBLANK(game!F1491),\"\",MOD(game!F1491,2))","v":""}]
[null,null,null,null,null,null,null,null,{"$f":"IF(ISBLANK(game!F1492),\"\",MOD(game!F1492,2))","v":""}]
[null,null,null,null,null,null,null,null,{"$f":"IF(ISBLANK(game!F1493),\"\",MOD(game!F1493,2))","v":""}]
[null,null,null,null,null,null,null,null,{"$f":"IF(ISBLANK(game!F1494),\"\",MOD(game!F1494,2))","v":""}]
[null,null,null,null,null,null,null,null,{"$f":"IF(ISBLANK(game!F1495),\"\",MOD(game!F1495,2))","v":""}]
[null,null,null,null,null,null,null,null,{"$f":"IF(ISBLANK(game!F1496),\"\",MOD(game!F1496,2))","v":""}]
[null,null,null,null,null,null,null,null,{"$f":"IF(ISBLANK(game!F1497),\"\",MOD(game!F1497,2))","v":""}]
[null,null,null,null,null,null,null,null,{"$f":"IF(ISBLANK(game!F1498),\"\",MOD(game!F1498,2))","v":""}]
[null,null,null,null,null,null,null,null,{"$f":"IF(ISBLANK(game!F1499),\"\",MOD(game!F1499,2))","v":""}]
[null,null,null,null,null,null,null,null,{"$f":"IF(ISBLANK(game!F1500),\"\",MOD(game!F1500,2))","v":""}]
[null,null,null,null,null,null,null,null,{"$f":"IF(ISBLANK(game!F1501),\"\",MOD(game!F1501,2))","v":""}]
[null,null,null,null,null,null,null,null,{"$f":"IF(ISBLANK(game!F1502),\"\",MOD(game!F1502,2))","v":""}]
[null,null,null,null,null,null,null,null,{"$f":"IF(ISBLANK(game!F1503),\"\",MOD(game!F1503,2))","v":""}]
[null,null,null,null,null,null,null,null,{"$f":"IF(ISBLANK(game!F1504),\"\",MOD(game!F1504,2))","v":""}]
[null,null,null,null,null,null,null,null,{"$f":"IF(ISBLANK(game!F1505),\"\",MOD(game!F1505,2))","v":""}]
[null,null,null,null,null,null,null,null,{"$f":"IF(ISBLANK(game!F1506),\"\",MOD(game!F1506,2))","v":""}]
[null,null,null,null,null,null,null,null,{"$f":"IF(ISBLANK(game!F1507),\"\",MOD(game!F1507,2))","v":""}]
[null,null,null,null,null,null,null,null,{"$f":"IF(ISBLANK(game!F1508),\"\",MOD(game!F1508,2))","v":""}]
[null,null,null,null,null,null,null,null,{"$f":"IF(ISBLANK(game!F1509),\"\",MOD(game!F1509,2))","v":""}]
[null,null,null,null,null,null,null,null,{"$f":"IF(ISBLANK(game!F1510),\"\",MOD(game!F1510,2))","v":""}]
[null,null,null,null,null,null,null,null,{"$f":"IF(ISBLANK(game!F1511),\"\",MOD(game!F1511,2))","v":""}]
[null,null,null,null,null,null,null,null,{"$f":"IF(ISBLANK(game!F1512),\"\",MOD(game!F1512,2))","v":""}]
[null,null,null,null,null,null,null,null,{"$f":"IF(ISBLANK(game!F1513),\"\",MOD(game!F1513,2))","v":""}]
[null,null,null,null,null,null,null,null,{"$f":"IF(ISBLANK(game!F1514),\"\",MOD(game!F1514,2))","v":""}]
[null,null,null,null,null,null,null,null,{"$f":"IF(ISBLANK(game!F1515),\"\",MOD(game!F1515,2))","v":""}]
[null,null,null,null,null,null,null,null,{"$f":"IF(ISBLANK(game!F1516),\"\",MOD(game!F1516,2))","v":""}]
[null,null,null,null,null,null,null,null,{"$f":"IF(ISBLANK(game!F1517),\"\",MOD(game!F1517,2))","v":""}]
[null,null,null,null,null,null,null,null,{"$f":"IF(ISBLANK(game!F1518),\"\",MOD(game!F1518,2))","v":""}]
[null,null,null,null,null,null,null,null,{"$f":"IF(ISBLANK(game!F1519),\"\",MOD(game!F1519,2))","v":""}]
[null,null,null,null,null,null,null,null,{"$f":"IF(ISBLANK(game!F1520),\"\",MOD(game!F1520,2))","v":""}]
[null,null,null,null,null,null,null,null,{"$f":"IF(ISBLANK(game!F1521),\"\",MOD(game!F1521,2))","v":""}]
[null,null,null,null,null,null,null,null,{"$f":"IF(ISBLANK(game!F1522),\"\",MOD(game!F1522,2))","v":""}]
[null,null,null,null,null,null,null,null,{"$f":"IF(ISBLANK(game!F1523),\"\",MOD(game!F1523,2))","v":""}]
[null,null,null,null,null,null,null,null,{"$f":"IF(ISBLANK(game!F1524),\"\",MOD(game!F1524,2))","v":""}]
[null,null,null,null,null,null,null,null,{"$f":"IF(ISBLANK(game!F1525),\"\",MOD(game!F1525,2))","v":""}]
[null,null,null,null,null,null,null,null,{"$f":"IF(ISBLANK(game!F1526),\"\",MOD(game!F1526,2))","v":""}]
[null,null,null,null,null,null,null,null,{"$f":"IF(ISBLANK(game!F1527),\"\",MOD(game!F1527,2))","v":""}]
[null,null,null,null,null,null,null,null,{"$f":"IF(ISBLANK(game!F1528),\"\",MOD(game!F1528,2))","v":""}]
[null,null,null,null,null,null,null,null,{"$f":"IF(ISBLANK(game!F1529),\"\",MOD(game!F1529,2))","v":""}]
[null,null,null,null,null,null,null,null,{"$f":"IF(ISBLANK(game!F1530),\"\",MOD(game!F1530,2))","v":""}]
[null,null,null,null,null,null,null,null,{"$f":"IF(ISBLANK(game!F1531),\"\",MOD(game!F1531,2))","v":""}]
[null,null,null,null,null,null,null,null,{"$f":"IF(ISBLANK(game!F1532),\"\",MOD(game!F1532,2))","v":""}]
[null,null,null,null,null,null,null,null,{"$f":"IF(ISBLANK(game!F1533),\"\",MOD(game!F1533,2))","v":""}]
[null,null,null,null,null,null,null,null,{"$f":"IF(ISBLANK(game!F1534),\"\",MOD(game!F1534,2))","v":""}]
[null,null,null,null,null,null,null,null,{"$f":"IF(ISBLANK(game!F1535),\"\",MOD(game!F1535,2))","v":""}]
[null,null,null,null,null,null,null,null,{"$f":"IF(ISBLANK(game!F1536),\"\",MOD(game!F1536,2))","v":""}]
[null,null,null,null,null,null,null,null,{"$f":"IF(ISBLANK(game!F1537),\"\",MOD(game!F1537,2))","v":""}]
[null,null,null,null,null,null,null,null,{"$f":"IF(ISBLANK(game!F1538),\"\",MOD(game!F1538,2))","v":""}]
[null,null,null,null,null,null,null,null,{"$f":"IF(ISBLANK(game!F1539),\"\",MOD(game!F1539,2))","v":""}]
[null,null,null,null,null,null,null,null,{"$f":"IF(ISBLANK(game!F1540),\"\",MOD(game!F1540,2))","v":""}]
[null,null,null,null,null,null,null,null,{"$f":"IF(ISBLANK(game!F1541),\"\",MOD(game!F1541,2))","v":""}]
[null,null,null,null,null,null,null,null,{"$f":"IF(ISBLANK(game!F1542),\"\",MOD(game!F1542,2))","v":""}]
[null,null,null,null,null,null,null,null,{"$f":"IF(ISBLANK(game!F1543),\"\",MOD(game!F1543,2))","v":""}]
[null,null,null,null,null,null,null,null,{"$f":"IF(ISBLANK(game!F1544),\"\",MOD(game!F1544,2))","v":""}]
[null,null,null,null,null,null,null,null,{"$f":"IF(ISBLANK(game!F1545),\"\",MOD(game!F1545,2))","v":""}]
[null,null,null,null,null,null,null,null,{"$f":"IF(ISBLANK(game!F1546),\"\",MOD(game!F1546,2))","v":""}]
[null,null,null,null,null,null,null,null,{"$f":"IF(ISBLANK(game!F1547),\"\",MOD(game!F1547,2))","v":""}]
[null,null,null,null,null,null,null,null,{"$f":"IF(ISBLANK(game!F1548),\"\",MOD(game!F1548,2))","v":""}]
[null,null,null,null,null,null,null,null,{"$f":"IF(ISBLANK(game!F1549),\"\",MOD(game!F1549,2))","v":""}]
[null,null,null,null,null,null,null,null,{"$f":"IF(ISBLANK(game!F1550),\"\",MOD(game!F1550,2))","v":""}]
[null,null,null,null,null,null,null,null,{"$f":"IF(ISBLANK(game!F1551),\"\",MOD(game!F1551,2))","v":""}]
[null,null,null,null,null,null,null,null,{"$f":"IF(ISBLANK(game!F1552),\"\",MOD(game!F1552,2))","v":""}]
[null,null,null,null,null,null,null,null,{"$f":"IF(ISBLANK(game!F1553),\"\",MOD(game!F1553,2))","v":""}]
[null,null,null,null,null,null,null,null,{"$f":"IF(ISBLANK(game!F1554),\"\",MOD(game!F1554,2))","v":""}]
[null,null,null,null,null,null,null,null,{"$f":"IF(ISBLANK(game!F1555),\"\",MOD(game!F1555,2))","v":""}]
[null,null,null,null,null,null,null,null,{"$f":"IF(ISBLANK(game!F1556),\"\",MOD(game!F1556,2))","v":""}]
[null,null,null,null,null,null,null,null,{"$f":"IF(ISBLANK(game!F1557),\"\",MOD(game!F1557,2))","v":""}]
[null,null,null,null,null,null,null,null,{"$f":"IF(ISBLANK(game!F1558),\"\",MOD(game!F1558,2))","v":""}]
[null,null,null,null,null,null,null,null,{"$f":"IF(ISBLANK(game!F1559),\"\",MOD(game!F1559,2))","v":""}]
[null,null,null,null,null,null,null,null,{"$f":"IF(ISBLANK(game!F1560),\"\",MOD(game!F1560,2))","v":""}]
[null,null,null,null,null,null,null,null,{"$f":"IF(ISBLANK(game!F1561),\"\",MOD(game!F1561,2))","v":""}]
[null,null,null,null,null,null,null,null,{"$f":"IF(ISBLANK(game!F1562),\"\",MOD(game!F1562,2))","v":""}]
[null,null,null,null,null,null,null,null,{"$f":"IF(ISBLANK(game!F1563),\"\",MOD(game!F1563,2))","v":""}]
[null,null,null,null,null,null,null,null,{"$f":"IF(ISBLANK(game!F1564),\"\",MOD(game!F1564,2))","v":""}]
[null,null,null,null,null,null,null,null,{"$f":"IF(ISBLANK(game!F1565),\"\",MOD(game!F1565,2))","v":""}]
[null,null,null,null,null,null,null,null,{"$f":"IF(ISBLANK(game!F1566),\"\",MOD(game!F1566,2))","v":""}]
[null,null,null,null,null,null,null,null,{"$f":"IF(ISBLANK(game!F1567),\"\",MOD(game!F1567,2))","v":""}]
[null,null,null,null,null,null,null,null,{"$f":"IF(ISBLANK(game!F1568),\"\",MOD(game!F1568,2))","v":""}]
[null,null,null,null,null,null,null,null,{"$f":"IF(ISBLANK(game!F1569),\"\",MOD(game!F1569,2))","v":""}]
[null,null,null,null,null,null,null,null,{"$f":"IF(ISBLANK(game!F1570),\"\",MOD(game!F1570,2))","v":""}]
[null,null,null,null,null,null,null,null,{"$f":"IF(ISBLANK(game!F1571),\"\",MOD(game!F1571,2))","v":""}]
[null,null,null,null,null,null,null,null,{"$f":"IF(ISBLANK(game!F1572),\"\",MOD(game!F1572,2))","v":""}]
[null,null,null,null,null,null,null,null,{"$f":"IF(ISBLANK(game!F1573),\"\",MOD(game!F1573,2))","v":""}]
[null,null,null,null,null,null,null,null,{"$f":"IF(ISBLANK(game!F1574),\"\",MOD(game!F1574,2))","v":""}]
[null,null,null,null,null,null,null,null,{"$f":"IF(ISBLANK(game!F1575),\"\",MOD(game!F1575,2))","v":""}]
[null,null,null,null,null,null,null,null,{"$f":"IF(ISBLANK(game!F1576),\"\",MOD(game!F1576,2))","v":""}]
[null,null,null,null,null,null,null,null,{"$f":"IF(ISBLANK(game!F1577),\"\",MOD(game!F1577,2))","v":""}]
[null,null,null,null,null,null,null,null,{"$f":"IF(ISBLANK(game!F1578),\"\",MOD(game!F1578,2))","v":""}]
[null,null,null,null,null,null,null,null,{"$f":"IF(ISBLANK(game!F1579),\"\",MOD(game!F1579,2))","v":""}]
[null,null,null,null,null,null,null,null,{"$f":"IF(ISBLANK(game!F1580),\"\",MOD(game!F1580,2))","v":""}]
[null,null,null,null,null,null,null,null,{"$f":"IF(ISBLANK(game!F1581),\"\",MOD(game!F1581,2))","v":""}]
[null,null,null,null,null,null,null,null,{"$f":"IF(ISBLANK(game!F1582),\"\",MOD(game!F1582,2))","v":""}]
[null,null,null,null,null,null,null,null,{"$f":"IF(ISBLANK(game!F1583),\"\",MOD(game!F1583,2))","v":""}]
[null,null,null,null,null,null,null,null,{"$f":"IF(ISBLANK(game!F1584),\"\",MOD(game!F1584,2))","v":""}]
[null,null,null,null,null,null,null,null,{"$f":"IF(ISBLANK(game!F1585),\"\",MOD(game!F1585,2))","v":""}]
[null,null,null,null,null,null,null,null,{"$f":"IF(ISBLANK(game!F1586),\"\",MOD(game!F1586,2))","v":""}]
[null,null,null,null,null,null,null,null,{"$f":"IF(ISBLANK(game!F1587),\"\",MOD(game!F1587,2))","v":""}]
[null,null,null,null,null,null,null,null,{"$f":"IF(ISBLANK(game!F1588),\"\",MOD(game!F1588,2))","v":""}]
[null,null,null,null,null,null,null,null,{"$f":"IF(ISBLANK(game!F1589),\"\",MOD(game!F1589,2))","v":""}]
[null,null,null,null,null,null,null,null,{"$f":"IF(ISBLANK(game!F1590),\"\",MOD(game!F1590,2))","v":""}]
[null,null,null,null,null,null,null,null,{"$f":"IF(ISBLANK(game!F1591),\"\",MOD(game!F1591,2))","v":""}]
[null,null,null,null,null,null,null,null,{"$f":"IF(ISBLANK(game!F1592),\"\",MOD(game!F1592,2))","v":""}]
[null,null,null,null,null,null,null,null,{"$f":"IF(ISBLANK(game!F1593),\"\",MOD(game!F1593,2))","v":""}]
[null,null,null,null,null,null,null,null,{"$f":"IF(ISBLANK(game!F1594),\"\",MOD(game!F1594,2))","v":""}]
[null,null,null,null,null,null,null,null,{"$f":"IF(ISBLANK(game!F1595),\"\",MOD(game!F1595,2))","v":""}]
[null,null,null,null,null,null,null,null,{"$f":"IF(ISBLANK(game!F1596),\"\",MOD(game!F1596,2))","v":""}]
[null,null,null,null,null,null,null,null,{"$f":"IF(ISBLANK(game!F1597),\"\",MOD(game!F1597,2))","v":""}]
[null,null,null,null,null,null,null,null,{"$f":"IF(ISBLANK(game!F1598),\"\",MOD(game!F1598,2))","v":""}]
[null,null,null,null,null,null,null,null,{"$f":"IF(ISBLANK(game!F1599),\"\",MOD(game!F1599,2))","v":""}]
[null,null,null,null,null,null,null,null,{"$f":"IF(ISBLANK(game!F1600),\"\",MOD(game!F1600,2))","v":""}]
[null,null,null,null,null,null,null,null,{"$f":"IF(ISBLANK(game!F1601),\"\",MOD(game!F1601,2))","v":""}]
[null,null,null,null,null,null,null,null,{"$f":"IF(ISBLANK(game!F1602),\"\",MOD(game!F1602,2))","v":""}]
[null,null,null,null,null,null,null,null,{"$f":"IF(ISBLANK(game!F1603),\"\",MOD(game!F1603,2))","v":""}]
[null,null,null,null,null,null,null,null,{"$f":"IF(ISBLANK(game!F1604),\"\",MOD(game!F1604,2))","v":""}]
[null,null,null,null,null,null,null,null,{"$f":"IF(ISBLANK(game!F1605),\"\",MOD(game!F1605,2))","v":""}]
[null,null,null,null,null,null,null,null,{"$f":"IF(ISBLANK(game!F1606),\"\",MOD(game!F1606,2))","v":""}]
[null,null,null,null,null,null,null,null,{"$f":"IF(ISBLANK(game!F1607),\"\",MOD(game!F1607,2))","v":""}]
[null,null,null,null,null,null,null,null,{"$f":"IF(ISBLANK(game!F1608),\"\",MOD(game!F1608,2))","v":""}]
[null,null,null,null,null,null,null,null,{"$f":"IF(ISBLANK(game!F1609),\"\",MOD(game!F1609,2))","v":""}]
[null,null,null,null,null,null,null,null,{"$f":"IF(ISBLANK(game!F1610),\"\",MOD(game!F1610,2))","v":""}]
[null,null,null,null,null,null,null,null,{"$f":"IF(ISBLANK(game!F1611),\"\",MOD(game!F1611,2))","v":""}]
[null,null,null,null,null,null,null,null,{"$f":"IF(ISBLANK(game!F1612),\"\",MOD(game!F1612,2))","v":""}]
[null,null,null,null,null,null,null,null,{"$f":"IF(ISBLANK(game!F1613),\"\",MOD(game!F1613,2))","v":""}]
[null,null,null,null,null,null,null,null,{"$f":"IF(ISBLANK(game!F1614),\"\",MOD(game!F1614,2))","v":""}]
[null,null,null,null,null,null,null,null,{"$f":"IF(ISBLANK(game!F1615),\"\",MOD(game!F1615,2))","v":""}]
[null,null,null,null,null,null,null,null,{"$f":"IF(ISBLANK(game!F1616),\"\",MOD(game!F1616,2))","v":""}]
[null,null,null,null,null,null,null,null,{"$f":"IF(ISBLANK(game!F1617),\"\",MOD(game!F1617,2))","v":""}]
[null,null,null,null,null,null,null,null,{"$f":"IF(ISBLANK(game!F1618),\"\",MOD(game!F1618,2))","v":""}]
[null,null,null,null,null,null,null,null,{"$f":"IF(ISBLANK(game!F1619),\"\",MOD(game!F1619,2))","v":""}]
[null,null,null,null,null,null,null,null,{"$f":"IF(ISBLANK(game!F1620),\"\",MOD(game!F1620,2))","v":""}]
[null,null,null,null,null,null,null,null,{"$f":"IF(ISBLANK(game!F1621),\"\",MOD(game!F1621,2))","v":""}]
[null,null,null,null,null,null,null,null,{"$f":"IF(ISBLANK(game!F1622),\"\",MOD(game!F1622,2))","v":""}]
[null,null,null,null,null,null,null,null,{"$f":"IF(ISBLANK(game!F1623),\"\",MOD(game!F1623,2))","v":""}]
[null,null,null,null,null,null,null,null,{"$f":"IF(ISBLANK(game!F1624),\"\",MOD(game!F1624,2))","v":""}]
[null,null,null,null,null,null,null,null,{"$f":"IF(ISBLANK(game!F1625),\"\",MOD(game!F1625,2))","v":""}]
[null,null,null,null,null,null,null,null,{"$f":"IF(ISBLANK(game!F1626),\"\",MOD(game!F1626,2))","v":""}]
[null,null,null,null,null,null,null,null,{"$f":"IF(ISBLANK(game!F1627),\"\",MOD(game!F1627,2))","v":""}]
[null,null,null,null,null,null,null,null,{"$f":"IF(ISBLANK(game!F1628),\"\",MOD(game!F1628,2))","v":""}]
[null,null,null,null,null,null,null,null,{"$f":"IF(ISBLANK(game!F1629),\"\",MOD(game!F1629,2))","v":""}]
[null,null,null,null,null,null,null,null,{"$f":"IF(ISBLANK(game!F1630),\"\",MOD(game!F1630,2))","v":""}]
[null,null,null,null,null,null,null,null,{"$f":"IF(ISBLANK(game!F1631),\"\",MOD(game!F1631,2))","v":""}]
[null,null,null,null,null,null,null,null,{"$f":"IF(ISBLANK(game!F1632),\"\",MOD(game!F1632,2))","v":""}]
[null,null,null,null,null,null,null,null,{"$f":"IF(ISBLANK(game!F1633),\"\",MOD(game!F1633,2))","v":""}]
[null,null,null,null,null,null,null,null,{"$f":"IF(ISBLANK(game!F1634),\"\",MOD(game!F1634,2))","v":""}]
[null,null,null,null,null,null,null,null,{"$f":"IF(ISBLANK(game!F1635),\"\",MOD(game!F1635,2))","v":""}]
[null,null,null,null,null,null,null,null,{"$f":"IF(ISBLANK(game!F1636),\"\",MOD(game!F1636,2))","v":""}]
[null,null,null,null,null,null,null,null,{"$f":"IF(ISBLANK(game!F1637),\"\",MOD(game!F1637,2))","v":""}]
[null,null,null,null,null,null,null,null,{"$f":"IF(ISBLANK(game!F1638),\"\",MOD(game!F1638,2))","v":""}]
[null,null,null,null,null,null,null,null,{"$f":"IF(ISBLANK(game!F1639),\"\",MOD(game!F1639,2))","v":""}]
[null,null,null,null,null,null,null,null,{"$f":"IF(ISBLANK(game!F1640),\"\",MOD(game!F1640,2))","v":""}]
[null,null,null,null,null,null,null,null,{"$f":"IF(ISBLANK(game!F1641),\"\",MOD(game!F1641,2))","v":""}]
[null,null,null,null,null,null,null,null,{"$f":"IF(ISBLANK(game!F1642),\"\",MOD(game!F1642,2))","v":""}]
[null,null,null,null,null,null,null,null,{"$f":"IF(ISBLANK(game!F1643),\"\",MOD(game!F1643,2))","v":""}]
[null,null,null,null,null,null,null,null,{"$f":"IF(ISBLANK(game!F1644),\"\",MOD(game!F1644,2))","v":""}]
[null,null,null,null,null,null,null,null,{"$f":"IF(ISBLANK(game!F1645),\"\",MOD(game!F1645,2))","v":""}]
[null,null,null,null,null,null,null,null,{"$f":"IF(ISBLANK(game!F1646),\"\",MOD(game!F1646,2))","v":""}]
[null,null,null,null,null,null,null,null,{"$f":"IF(ISBLANK(game!F1647),\"\",MOD(game!F1647,2))","v":""}]
[null,null,null,null,null,null,null,null,{"$f":"IF(ISBLANK(game!F1648),\"\",MOD(game!F1648,2))","v":""}]
[null,null,null,null,null,null,null,null,{"$f":"IF(ISBLANK(game!F1649),\"\",MOD(game!F1649,2))","v":""}]
[null,null,null,null,null,null,null,null,{"$f":"IF(ISBLANK(game!F1650),\"\",MOD(game!F1650,2))","v":""}]
[null,null,null,null,null,null,null,null,{"$f":"IF(ISBLANK(game!F1651),\"\",MOD(game!F1651,2))","v":""}]
[null,null,null,null,null,null,null,null,{"$f":"IF(ISBLANK(game!F1652),\"\",MOD(game!F1652,2))","v":""}]
[null,null,null,null,null,null,null,null,{"$f":"IF(ISBLANK(game!F1653),\"\",MOD(game!F1653,2))","v":""}]
[null,null,null,null,null,null,null,null,{"$f":"IF(ISBLANK(game!F1654),\"\",MOD(game!F1654,2))","v":""}]
[null,null,null,null,null,null,null,null,{"$f":"IF(ISBLANK(game!F1655),\"\",MOD(game!F1655,2))","v":""}]
[null,null,null,null,null,null,null,null,{"$f":"IF(ISBLANK(game!F1656),\"\",MOD(game!F1656,2))","v":""}]
[null,null,null,null,null,null,null,null,{"$f":"IF(ISBLANK(game!F1657),\"\",MOD(game!F1657,2))","v":""}]
[null,null,null,null,null,null,null,null,{"$f":"IF(ISBLANK(game!F1658),\"\",MOD(game!F1658,2))","v":""}]
[null,null,null,null,null,null,null,null,{"$f":"IF(ISBLANK(game!F1659),\"\",MOD(game!F1659,2))","v":""}]
[null,null,null,null,null,null,null,null,{"$f":"IF(ISBLANK(game!F1660),\"\",MOD(game!F1660,2))","v":""}]
[null,null,null,null,null,null,null,null,{"$f":"IF(ISBLANK(game!F1661),\"\",MOD(game!F1661,2))","v":""}]
[null,null,null,null,null,null,null,null,{"$f":"IF(ISBLANK(game!F1662),\"\",MOD(game!F1662,2))","v":""}]
[null,null,null,null,null,null,null,null,{"$f":"IF(ISBLANK(game!F1663),\"\",MOD(game!F1663,2))","v":""}]